{"text_format":"1","workbook":"xlsx","n_sheets":2,"sheets":["Intro","Monopoly"],"not_rendered":{"charts":0,"images":1,"macros":1,"external_links":3,"defined_names":382,"comments":0,"pivot_tables":0},"unopened":[],"bounds":{"document_bytes":16777216,"sheet_cells":100000,"rows_first":2000,"rows_last":500,"rows_between":2000,"halvings":0,"cell_chars":16384,"cell_head_chars":4096},"cells_cut":0,"cells_raw":0,"read":"whole","date_system":"1900"}

{"sheet":"Intro","index":0,"n_rows":0,"n_cols":0,"rows_kept":0,"cut":false,"hidden":false,"merged":[]}

{"sheet":"Monopoly","index":1,"n_rows":56,"n_cols":161,"rows_kept":56,"cut":false,"hidden":false,"merged":[[49,83,51,83],[53,79,55,79],[36,62,36,64],[36,66,37,70],[36,71,36,73],[37,6,37,8],[37,15,37,17],[37,62,37,64],[37,71,37,73],[36,33,37,35],[36,36,37,38],[36,42,37,44],[36,45,37,47],[36,48,37,50],[36,57,37,61],[33,57,33,64],[33,66,33,73],[34,1,34,8],[34,10,34,17],[34,57,34,64],[34,66,34,73],[33,36,34,38],[33,39,37,41],[33,42,34,44],[33,45,35,47],[33,48,34,50],[33,51,37,55],[35,42,35,44],[35,48,35,50],[35,57,35,64],[35,66,35,73],[36,1,37,5],[36,6,36,8],[36,10,37,14],[36,15,36,17],[36,21,37,23],[36,24,37,26],[36,27,37,29],[36,30,37,32],[33,1,33,8],[33,10,33,17],[33,19,37,20],[33,21,35,23],[33,24,34,26],[33,27,34,29],[33,30,35,32],[33,33,34,35],[30,54,32,55],[35,1,35,8],[35,10,35,17],[35,24,35,26],[35,27,35,29],[35,33,35,35],[35,36,35,38],[30,79,30,83],[31,1,31,8],[31,10,31,17],[31,57,31,64],[31,66,31,73],[32,1,32,8],[32,10,32,17],[29,10,29,17],[29,57,29,64],[29,66,29,73],[30,1,30,8],[30,10,30,17],[30,19,32,20],[30,21,32,21],[30,22,32,23],[30,51,32,52],[30,53,32,53],[27,51,29,55],[27,57,27,64],[27,66,27,73],[32,57,32,64],[32,66,32,73],[30,57,30,64],[30,66,30,73],[27,91,27,93],[27,95,27,97],[28,1,28,8],[28,10,28,17],[28,57,28,64],[28,66,28,73],[24,19,26,20],[24,21,26,21],[24,22,26,23],[24,51,26,52],[24,53,26,53],[24,54,26,55],[25,85,25,89],[26,1,26,8],[26,10,26,17],[26,57,26,64],[26,66,26,73],[27,1,27,8],[27,10,27,17],[27,19,29,20],[27,21,29,21],[27,22,29,23],[21,79,28,79],[23,10,23,17],[21,54,23,55],[21,57,21,64],[21,66,21,73],[19,10,19,17],[19,26,30,48],[19,57,19,64],[19,66,19,73],[20,1,20,8],[20,10,20,17],[20,57,20,64],[20,66,20,73],[29,1,29,8],[21,1,21,8],[21,10,21,17],[21,19,23,20],[21,21,23,21],[21,22,23,23],[22,1,22,8],[22,10,22,17],[22,57,22,64],[22,66,22,73],[23,1,23,8],[21,51,23,53],[18,35,18,38],[18,39,18,48],[18,51,20,52],[18,53,20,53],[18,54,20,55],[18,57,18,64],[24,57,24,64],[24,66,24,73],[25,1,25,8],[25,10,25,17],[25,57,25,64],[25,66,25,73],[23,57,23,64],[23,66,23,73],[24,1,24,8],[24,10,24,17],[18,1,18,8],[18,10,18,17],[18,19,20,20],[18,21,20,21],[18,22,20,23],[18,26,18,34],[18,66,18,73],[19,1,19,8],[13,1,13,8],[13,10,13,17],[14,1,14,8],[14,10,14,17],[12,1,12,8],[12,10,12,17],[12,19,14,20],[12,21,14,23],[17,35,17,38],[12,26,14,32],[16,1,16,8],[16,10,16,17],[17,1,17,8],[17,10,17,17],[17,26,17,34],[15,1,15,8],[15,10,15,17],[15,19,17,20],[15,21,17,21],[15,22,17,23],[15,51,17,52],[15,53,17,53],[12,51,14,53],[17,39,17,48],[12,42,14,48],[17,57,17,64],[17,66,17,73],[14,57,14,64],[14,66,14,73],[12,54,14,55],[12,57,12,64],[12,66,12,73],[13,57,13,64],[13,66,13,73],[15,54,17,55],[15,57,15,64],[15,66,15,73],[16,57,16,64],[16,66,16,73],[8,1,8,8],[8,10,8,17],[8,26,11,32],[8,42,11,48],[8,57,8,64],[8,66,8,73],[9,1,9,8],[9,10,9,17],[9,19,11,20],[9,21,11,21],[10,1,10,8],[10,10,10,17],[10,57,10,64],[10,66,10,73],[11,1,11,8],[11,10,11,17],[11,57,11,64],[11,66,11,73],[9,22,11,23],[9,51,11,52],[9,53,11,53],[9,54,11,55],[9,57,9,64],[9,66,9,73],[6,57,6,64],[6,66,6,73],[7,1,7,8],[7,10,7,17],[7,57,7,64],[7,66,7,73],[5,66,5,68],[5,69,5,71],[6,1,6,8],[6,10,6,17],[6,19,8,20],[6,21,8,21],[6,22,8,23],[6,51,8,52],[6,53,8,53],[6,54,8,55],[5,1,5,3],[5,4,5,6],[5,10,5,12],[5,13,5,15],[5,57,5,59],[5,60,5,62],[4,39,5,41],[4,42,5,44],[1,85,1,89],[1,91,1,93],[1,95,1,97],[2,57,3,64],[2,66,3,73],[4,66,4,71],[4,72,5,73],[1,33,2,35],[1,36,2,38],[1,39,2,41],[1,42,2,44],[1,45,2,47],[1,48,2,50],[4,45,5,47],[4,48,5,50],[4,57,4,62],[4,63,5,64],[3,48,3,50],[4,33,5,35],[4,36,5,38],[3,33,3,35],[3,36,3,38],[3,39,3,41],[3,42,3,44],[1,19,3,23],[1,24,2,26],[1,27,2,29],[1,30,2,32],[2,1,3,8],[2,10,3,17],[3,24,3,26],[3,27,5,29],[1,66,1,73],[4,1,4,6],[4,7,5,8],[4,10,4,15],[4,16,5,17],[4,19,5,23],[4,24,5,26],[4,30,5,32],[3,30,3,32],[3,45,3,47],[1,51,5,55],[1,57,1,64],[1,1,1,8],[1,10,1,17]]}
[]
[null,"Player 1",null,null,null,null,null,null,null,null,"Player 2",null,null,null,null,null,null,null,null,{"$f":"OFFSET($EC$23, 0, Monopoly_Edition)","v":"Free Parking"},null,null,null,null,null,null,null,{"$f":"OFFSET($EC25, 0, Monopoly_Edition)","v":"Chance"},null,null,null,null,null,null,null,null,null,null,null,null,null,null,null,null,null,null,null,null,null,null,null,{"$f":"OFFSET($EC$33, 0, Monopoly_Edition)","v":"Go To Jail"},null,null,null,null,null,"Player 3",null,null,null,null,null,null,null,null,"Player 4",null,null,null,null,null,null,null,null,null,"Now",{"$f":"NOW()","v":41788.491493981484},null,".","Sold P1 Information","Sold P2 Information","Sold P3 Information","Sold P4 Information",null,"CHANCE CARDS",null,null,null,null,null,"P1 Mortgaging Table",null,null,null,"P2 Mortgaging Table",null,null,null,"1 - Space Name","2 - Color","3 - Face Value","4 - Available?","5 - Full Name","6 - Rent - Site Only","7 - One House","8 - Two Houses","9 - Three Houses","10 - Four Houses","11 - Hotel","12 - No Houses","13 - Rent Multiplier","14 - House Cost","15 - Color Index","16 - Number In Group","17 - Left House Position","18 - Top House Position","19 - P1 Owns","20 - P2 Owns","21 - P3 Owns","22 - P4 Owns","23 - Mortgaged?","24 - Maximum Houses in Group","25 - Mininum Houses in Group","26 - Mortgage Value","27 - Any Mortgaged?","28 - Group Name","29 - US Proper Name","30 - England Proper Name","31 - World: Proper Name","32 - Spanish Proper Name","33 - LDS Proper Name","34 - US: Atlantic City","35 - UK: London","36 - The World Edition","37 - Spanish Board","38 - LDS Board","39 - P1 Houses Available","40 - P1 Sellable","41 - P2 Houses Available","42 - P2 Sellable","43 - P3 Houses Available","44 - P3 Sellable","45 - P4 Houses Available","46 - P4 Sellable","47 - P1 Auto Unmortgageable","48 - P2 Auto Unmortgageable","49 - P3 Auto Unmortgageable","50 - P4 Auto Unmortgageable","51 - Dummy Value","52 - P1 Wants","53 - P2 Wants","54 - P3 Wants","55 - P4 Wants","56 - Possible Trade","57 - P1 Offer Calculation","58 - P2 Offer Calculation","59 - P3 Offer Calculation","60 - P4 Offer Calculation","58 - Offer Property","59 - Sweetener"]
[null,{"$f":"Monopoly_P1_Property_Full_Name","v":"GO"},null,null,null,null,null,null,null,null,{"$f":"Monopoly_P2_Property_Full_Name","v":"GO"},null,null,null,null,null,null,null,null,null,null,null,null,null,null,null,null,null,null,null,null,null,null,null,null,null,null,null,null,null,null,null,null,null,null,null,null,null,null,null,null,null,null,null,null,null,null,{"$f":"Monopoly_P3_Property_Full_Name","v":"GO"},null,null,null,null,null,null,null,null,{"$f":"Monopoly_P4_Property_Full_Name","v":"GO"},null,null,null,null,null,null,null,null,null,"Start Time",41788.488076851849,null,"Current Location","Space_GO","Space_GO","Space_GO","Space_GO",null,"Cards","Chance","Index","Random","Instructions",null,{"$f":"SUM(Monopoly_P1_Mortgage_Table[[#All],[Column4]])","v":0},{"$f":"Monopoly_P1_Disposable + Monopoly_P1_Cash","v":1500},{"$f":"IF(ISERROR(CP4), \"\", CP4)","v":""},null,{"$f":"SUM(Monopoly_P2_Mortgage_Table[[#All],[Column3]])","v":0},{"$f":"Monopoly_P2_Disposable + Monopoly_P2_Cash","v":1500},{"$f":"IF(ISERROR(CT4), \"\", CT4)","v":""},null,"Space_GO",null,null,"NA","GO",null,null,null,null,null,null,0,null,null,null,"`",null,null,null,null,null,null,null,null,null,null,null,null,"GO","GO","Go","Salida","GO","GO","GO","Go","Salida","GO",null,null,null,null,null,null,null,null,null,null,null,null,null,null,null,null,null,null,null,null,null,null,null,{"$f":"IF(FD3 <> \"\", ROUND(IF(Monopoly_Active_Player = 1, EZ3, IF(Monopoly_Active_Player = 2, FA3, IF(Monopoly_Active_Player = 3, FB3, IF(Monopoly_Active_Player = 4, FC3)))), 0)  - CX3, \"\")","v":""}]
[null,null,null,null,null,null,null,null,null,null,null,null,null,null,null,null,null,null,null,null,null,null,null,null,{"$f":"IF(CY24=\"Yes\",Monopoly_Currency&CX24,IF(DR24=0,\"Mort P\",\"Sold P\")&CY24)","v":"$220"},null,null,"?",null,null,{"$f":"IF(CY26=\"Yes\",Monopoly_Currency&CX26,IF(DR26=0,\"Mort P\",\"Sold P\")&CY26)","v":"$220"},null,null,{"$f":"IF(CY27=\"Yes\",Monopoly_Currency&CX27,IF(DR27=0,\"Mort P\",\"Sold P\")&CY27)","v":"$240"},null,null,{"$f":"IF(CY28=\"Yes\",Monopoly_Currency&CX28,IF(DR28=0,\"Mort P\",\"Sold P\")&CY28)","v":"$200"},null,null,{"$f":"IF(CY29=\"Yes\",Monopoly_Currency&CX29,IF(DR29=0,\"Mort P\",\"Sold P\")&CY29)","v":"$260"},null,null,{"$f":"IF(CY30=\"Yes\",Monopoly_Currency&CX30,IF(DR30=0,\"Mort P\",\"Sold P\")&CY30)","v":"$260"},null,null,{"$f":"IF(CY31=\"Yes\",Monopoly_Currency&CX31,IF(DR31=0,\"Mort P\",\"Sold P\")&CY31)","v":"$150"},null,null,{"$f":"IF(CY32=\"Yes\",Monopoly_Currency&CX32,IF(DR32=0,\"Mort P\",\"Sold P\")&CY32)","v":"$280"},null,null,null,null,null,null,null,null,null,null,null,null,null,null,null,null,null,null,null,null,null,null,null,null,null,null,null,"Difference",{"$f":"BZ2-BZ3","v":"00:04:55.240"},null,"Current Location Full Name",{"$f":"VLOOKUP(Monopoly_P1_Location, Monopoly_Properties_Table, 29 + Monopoly_Edition, FALSE)","v":"GO"},{"$f":"VLOOKUP(Monopoly_P2_Location, Monopoly_Properties_Table, 29 + Monopoly_Edition, FALSE)","v":"GO"},{"$f":"VLOOKUP(Monopoly_P3_Location, Monopoly_Properties_Table, 29 + Monopoly_Edition, FALSE)","v":"GO"},{"$f":"VLOOKUP(Monopoly_P4_Location, Monopoly_Properties_Table, 29 + Monopoly_Edition, FALSE)","v":"GO"},null,0,"     Get out of jail free.\n     This card may be kept until needed or sold.",1,{"$f":"RAND()","v":0.32891653155725231},{"$f":"IF(OR(Monopoly_P1_Chance_GOOJF <> \"\", Monopoly_P2_Chance_GOOJF<>\"\", Monopoly_P3_Chance_GOOJF <> \"\", Monopoly_P4_Chance_GOOJF<>\"\"), \"Used\", \"\")","v":""},null,{"$f":"SUMIF(Monopoly_P1_Mortgage_Table[[#All],[Column2]], \">1000\", Monopoly_P1_Mortgage_Table[[#All],[Column4]])","v":0},{"$f":"MAX(Monopoly_P1_Mortgage_Table[[#All],[Column2]])","v":0},{"$f":"VLOOKUP(Monopoly_P1_Mortgage_This_Price,Monopoly_P1_Mortgage_Table[[#All],[Column2]:[Column3]], 2,FALSE)","v":{"$error":"#N/A"}},null,{"$f":" SUMIF(Monopoly_P2_Mortgage_Table[[#All],[Column1]], \">1000\", Monopoly_P2_Mortgage_Table[[#All],[Column3]])","v":0},{"$f":"MAX(Monopoly_P2_Mortgage_Table[[#All],[Column1]])","v":0},{"$f":"VLOOKUP(Monopoly_P2_Mortgage_This_Price, Monopoly_P2_Mortgage_Table[[#All],[Column1]:[Column2]], 2, FALSE)","v":{"$error":"#N/A"}},null,"Space_Mediterranean_Avenue","Brown",60,"Yes","Mediterranean Avenue",2,10,30,90,160,250,0,{"$f":"IF(AND(CY6=CY4, CY6<>\"Yes\"), \"2\", \"1\")","v":"1"},50,53,2,10,40,{"$f":"COUNTIF($CY$4:$CY$6, \"1\")","v":0},{"$f":"COUNTIF($CY$4:$CY$6, \"2\")","v":0},{"$f":"COUNTIF($CY$4:$CY$6, \"3\")","v":0},{"$f":"COUNTIF($CY$4:$CY$6, \"4\")","v":0},1,{"$f":"MAX(DG4,DG6)","v":0},{"$f":"MIN(DG$4,DG$6)","v":0},{"$f":"(DG4*DI4+CX4*DR4)/2","v":30},{"$f":"IF(OR(DR4=0, DR6=0), 0, 1)","v":1},{"$f":"CONCATENATE(\"Whole \" &CW4& \" Group\")","v":"Whole Brown Group"},"Mediterranean Avenue","Old Kent Road","Gdynia","Ronda de Valencia","Girls Camp","Med'ean Avenue","Old Kent Road","Gdynia","Ronda de Valencia","Girls Camp",{"$f":"IF(AND($CY4 = 1, $DV4 = 1, $DK4 = $DN4, $DG4 < 5, $DG4 = $DT4), OFFSET($DX4, 0, Monopoly_Edition), \"\")","v":""},{"$f":"IF(AND($CY4 = 1, $DG4 > 0, $DG4 = $DS4), OFFSET($DX4, 0, Monopoly_Edition), \"\")","v":""},{"$f":"IF(AND($CY4 = 2, $DV4 = 1, $DK4 = $DO4, $DG4 < 5, $DG4 = $DT4), OFFSET($DX4, 0, Monopoly_Edition), \"\")","v":""},{"$f":"IF(AND($CY4 = 2, $DG4 > 0, $DG4 = $DS4), OFFSET($DX4, 0, Monopoly_Edition), \"\")","v":""},{"$f":"IF(AND($CY4 = 3, $DV4 = 1, $DK4 = $DP4, $DG4 < 5, $DG4 = $DT4), OFFSET($DX4, 0, Monopoly_Edition), \"\")","v":""},{"$f":"IF(AND($CY4 = 3, $DG4 > 0, $DG4 = $DS4), OFFSET($DX4, 0, Monopoly_Edition), \"\")","v":""},{"$f":"IF(AND($CY4 = 4, $DV4 = 1, $DK4 = $DQ4, $DG4 < 5, $DG4 = $DT4), OFFSET($DX4, 0, Monopoly_Edition), \"\")","v":""},{"$f":"IF(AND($CY4 = 4, $DG4 > 0, $DG4 = $DS4), OFFSET($DX4, 0, Monopoly_Edition), \"\")","v":""},{"$f":"IF(AND(CY4 = 1, DR4 = 0, OR(DK4 = DN4, Monopoly_P1_Cash > 2000), (CX4*0.55) < (Monopoly_P1_Cash - 50)), CV4, \"\")","v":""},{"$f":"IF(AND(CY4 = 2, DR4 = 0, OR(DK4 = DO4, Monopoly_P2_Cash > 2000), (CX4*0.55) < (Monopoly_P2_Cash - 50)), CV4, \"\")","v":""},{"$f":"IF(AND(CY4 = 3, DR4 = 0, OR(DK4 = DP4, Monopoly_P3_Cash > 2000), (CX4*0.55) < (Monopoly_P3_Cash - 50)), CV4, \"\")","v":""},{"$f":"IF(AND(CY4 = 4, DR4 = 0, OR(DK4 = DQ4, Monopoly_P4_Cash > 2000), (CX4*0.55) < (Monopoly_P4_Cash - 50)), CV4, \"\")","v":""},{"$f":"CX4+ROW(A1)/100000","v":60.000010000000003},{"$f":"IF(AND(DG4 = 0, OR(CY4 = 2, CY4 = 3, CY4 = 4), DK4 - DN4 = 1), \"A\", IF(AND(DG4 = 0, OR(CY4 = 2, CY4 = 3, CY4 = 4), DN4 = 1, OR(DO4 = 1, DP4 = 1, DQ4 = 1)), \"B\", \"N\"))","v":"N"},{"$f":"IF(AND(DG4 = 0, OR(CY4 = 1, CY4 = 3, CY4 = 4), DK4 - DO4 = 1), \"A\", IF(AND(DG4 = 0, OR(CY4 = 1, CY4 = 3, CY4 = 4), DO4 = 1, OR(DN4 = 1, DP4 = 1, DQ4 = 1)), \"B\", \"N\"))","v":"N"},{"$f":"IF(AND(DG4 = 0, OR(CY4 = 1, CY4 = 2, CY4 = 4), DK4 - DP4 = 1), \"A\", IF(AND(DG4 = 0, OR(CY4 = 1, CY4 = 2, CY4 = 4), DP4 = 1, OR(DN4 = 1, DO4 = 1, DQ4 = 1)), \"B\", \"N\"))","v":"N"},{"$f":"IF(AND(DG4 = 0, OR(CY4 = 1, CY4 = 2, CY4 = 3), DK4 - DQ4 = 1), \"A\", IF(AND(DG4 = 0, OR(CY4 = 1, CY4 = 2, CY4 = 3), DQ4 = 1, OR(DN4 = 1, DO4 = 1, DP4 = 1)), \"B\", \"N\"))","v":"N"},{"$f":"IF(OR(EU4 = \"A\", EV4 = \"A\", EW4 = \"A\", EX4 = \"A\"), \"A\", IF(OR(EU4 = \"B\", EV4 = \"B\", EW4 = \"B\", EX4 = \"B\"), \"B\", \"N\"))","v":"N"},{"$f":"MAX(OR($EY$4 = \"A\", $EY$6 = \"A\") * (EU4 <> \"N\") * (EU3:EU44 <> EY4) * (Monopoly_Property_Availability = 1) *  ($CW$3:$CW$44 <> CW4) * (DK3:DK44 <> DN3:DN44) * $ET$3:$ET$44)","v":0},{"$f":"MAX(OR($EY$4 = \"A\", $EY$6 = \"A\") * (EV4 <> \"N\") * (EV3:EV44 <> EY4) * (Monopoly_Property_Availability = 2) *  ($CW$3:$CW$44 <> CW4) * (DK3:DK44 <> DN3:DN44) * $ET$3:$ET$44)","v":0},{"$f":"MAX(OR($EY$4 = \"A\", $EY$6 = \"A\") * (EW4 <> \"N\") * (EW3:EW44 <> EY4) * (Monopoly_Property_Availability = 3) *  ($CW$3:$CW$44 <> CW4) * (DK3:DK44 <> DN3:DN44) * $ET$3:$ET$44)","v":0},{"$f":"MAX(OR($EY$4 = \"A\", $EY$6 = \"A\") * (EX4 <> \"N\") * (EX3:EX44 <> EY4) * (Monopoly_Property_Availability = 4) *  ($CW$3:$CW$44 <> CW4) * (DK3:DK44 <> DN3:DN44) * $ET$3:$ET$44)","v":0},{"$f":"IF(IF(Monopoly_Active_Player = 1, EZ4 > 0, IF(Monopoly_Active_Player = 2, FA4 > 0, IF(Monopoly_Active_Player = 3, FB4 > 0, IF(Monopoly_Active_Player = 4, FC4 > 0)))), INDEX(Monopoly_Property_Full_Names, MATCH(IF(Monopoly_Active_Player = 1, EZ4, IF(Monopoly_Active_Player = 2, FA4, IF(Monopoly_Active_Player = 3, FB4, IF(Monopoly_Active_Player = 4, FC4)))), Monopoly_Property_Table[51 - Dummy Value], 0)), \"\")","v":""},{"$f":"IF(FD4 <> \"\", ROUND(IF(Monopoly_Active_Player = 1, EZ4, IF(Monopoly_Active_Player = 2, FA4, IF(Monopoly_Active_Player = 3, FB4, IF(Monopoly_Active_Player = 4, FC4)))), 0)  - CX4, \"\")","v":""}]
[null,{"$f":"IF(Monopoly_P1_House_Check = TRUE, \"Can Buy Houses\", \"Cannot Buy Houses\")","v":"Cannot Buy Houses"},null,null,null,null,null,"Q",null,null,{"$f":"IF(Monopoly_P2_House_Check = TRUE, \"Can Buy Houses\", \"Cannot Buy Houses\")","v":"Cannot Buy Houses"},null,null,null,null,null,"M",null,null,0,null,null,null,null,{"$f":"OFFSET($EC$24, 0, Monopoly_Edition)","v":"Kentucky Avenue"},null,null,null,null,null,{"$f":"OFFSET($EC$26, 0, Monopoly_Edition)","v":"Indiana Avenue"},null,null,{"$f":"OFFSET($EC$27, 0, Monopoly_Edition)","v":"Illinois Avenue"},null,null,{"$f":"OFFSET($EC$28, 0, Monopoly_Edition)","v":"B&O Railroad"},null,null,{"$f":"OFFSET($EC$29, 0, Monopoly_Edition)","v":"Atlantic Avenue"},null,null,{"$f":"OFFSET($EC$30, 0, Monopoly_Edition)","v":"Ventnor Avenue"},null,null,{"$f":"OFFSET($EC$31, 0, Monopoly_Edition)","v":"Water Works"},null,null,{"$f":"OFFSET($EC$32, 0, Monopoly_Edition)","v":"Marvin Gardens"},null,null,null,null,null,null,null,null,{"$f":"IF(Monopoly_P3_House_Check = TRUE, \"Can Buy Houses\", \"Cannot Buy Houses\")","v":"Cannot Buy Houses"},null,null,null,null,null,"R",null,null,{"$f":"IF(Monopoly_P4_House_Check = TRUE, \"Can Buy Houses\", \"Cannot Buy Houses\")","v":"Cannot Buy Houses"},null,null,null,null,null,"N",null,null,null,"Previous","00:00:00",null,"Property Availability",{"$f":"VLOOKUP(Monopoly_P1_Location, Monopoly_Properties_Table, 4, FALSE)","v":"NA"},{"$f":"VLOOKUP(Monopoly_P2_Location, Monopoly_Properties_Table, 4, FALSE)","v":"NA"},{"$f":"VLOOKUP(Monopoly_P3_Location, Monopoly_Properties_Table, 4, FALSE)","v":"NA"},{"$f":"VLOOKUP(Monopoly_P4_Location, Monopoly_Properties_Table, 4, FALSE)","v":"NA"},null,1,{"$f":"\"     Advance to \" & OFFSET($DX$27, 0, Monopoly_Edition) & \".\n     If you pass GO collect $200.\"","v":"     Advance to Illinois Avenue.\n     If you pass GO collect $200."},6,0.80574986162860451,"Space_Illinois_Avenue",null,null,null,null,null,null,null,null,null,"Space_Comm_Chest_One",null,null,"NA","Community Chest",null,null,null,null,null,null,0,null,null,null,null,null,null,null,null,null,null,1,null,null,0,null,null,"Community Chest","Community Chest","Community Chest","Caja de Comunidad","Ward Activity","Comm Chest","Comm Chest","Comm Chest","Caja Com'd","Ward Activity",{"$f":"IF(AND($CY5 = 1, $DV5 = 1, $DK5 = $DN5, $DG5 < 5, $DG5 = $DT5), OFFSET($DX5, 0, Monopoly_Edition), \"\")","v":""},{"$f":"IF(AND($CY5 = 1, $DG5 > 0, $DG5 = $DS5), OFFSET($DX5, 0, Monopoly_Edition), \"\")","v":""},{"$f":"IF(AND($CY5 = 2, $DV5 = 1, $DK5 = $DO5, $DG5 < 5, $DG5 = $DT5), OFFSET($DX5, 0, Monopoly_Edition), \"\")","v":""},{"$f":"IF(AND($CY5 = 2, $DG5 > 0, $DG5 = $DS5), OFFSET($DX5, 0, Monopoly_Edition), \"\")","v":""},{"$f":"IF(AND($CY5 = 3, $DV5 = 1, $DK5 = $DP5, $DG5 < 5, $DG5 = $DT5), OFFSET($DX5, 0, Monopoly_Edition), \"\")","v":""},{"$f":"IF(AND($CY5 = 3, $DG5 > 0, $DG5 = $DS5), OFFSET($DX5, 0, Monopoly_Edition), \"\")","v":""},{"$f":"IF(AND($CY5 = 4, $DV5 = 1, $DK5 = $DQ5, $DG5 < 5, $DG5 = $DT5), OFFSET($DX5, 0, Monopoly_Edition), \"\")","v":""},{"$f":"IF(AND($CY5 = 4, $DG5 > 0, $DG5 = $DS5), OFFSET($DX5, 0, Monopoly_Edition), \"\")","v":""},{"$f":"IF(AND(CY5 = 1, DR5 = 0, OR(DK5 = DN5, Monopoly_P1_Cash > 2000), (CX5*0.55) < (Monopoly_P1_Cash - 50)), CV5, \"\")","v":""},{"$f":"IF(AND(CY5 = 2, DR5 = 0, OR(DK5 = DO5, Monopoly_P2_Cash > 2000), (CX5*0.55) < (Monopoly_P2_Cash - 50)), CV5, \"\")","v":""},{"$f":"IF(AND(CY5 = 3, DR5 = 0, OR(DK5 = DP5, Monopoly_P3_Cash > 2000), (CX5*0.55) < (Monopoly_P3_Cash - 50)), CV5, \"\")","v":""},{"$f":"IF(AND(CY5 = 4, DR5 = 0, OR(DK5 = DQ5, Monopoly_P4_Cash > 2000), (CX5*0.55) < (Monopoly_P4_Cash - 50)), CV5, \"\")","v":""},null,null,null,null,null,null,null,null,null,null,null,""]
[null,"Houses: ",null,null,{"$f":"Monopoly_P1_Houses","v":0},null,null,null,null,null,"Houses: ",null,null,{"$f":"Monopoly_P2_Houses","v":0},null,null,null,null,null,null,null,null,null,null,null,null,null,null,null,null,null,null,null,null,null,null,null,null,null,null,null,null,null,null,null,null,null,null,null,null,null,null,null,null,null,null,null,"Houses: ",null,null,{"$f":"Monopoly_P3_Houses","v":0},null,null,null,null,null,"Houses: ",null,null,{"$f":"Monopoly_P4_Houses","v":0},null,null,null,null,null,null,"Total game time",{"$f":"BZ4+BZ5","v":"00:04:55.240"},null,"Property Value",{"$f":"VLOOKUP(Monopoly_P1_Location, Monopoly_Properties_Table, 3, FALSE)","v":0},{"$f":"VLOOKUP(Monopoly_P2_Location, Monopoly_Properties_Table, 3, FALSE)","v":0},{"$f":"VLOOKUP(Monopoly_P3_Location, Monopoly_Properties_Table, 3, FALSE)","v":0},{"$f":"VLOOKUP(Monopoly_P4_Location, Monopoly_Properties_Table, 3, FALSE)","v":0},null,2,"     Make general repairs on all of your property:\n          For each house pay $25\n          For each hotel pay $100",2,0.50904832321650728,null,null,null,null,null,null,null,null,null,null,"Space_Baltic_Avenue","Brown",60,"Yes","Baltic Avenue",4,20,60,180,320,450,0,{"$f":"IF(AND(CY4=CY6, CY4<>\"Yes\"), \"2\", \"1\")","v":"1"},50,53,2,10,40,{"$f":"COUNTIF($CY$4:$CY$6, \"1\")","v":0},{"$f":"COUNTIF($CY$4:$CY$6, \"2\")","v":0},{"$f":"COUNTIF($CY$4:$CY$6, \"3\")","v":0},{"$f":"COUNTIF($CY$4:$CY$6, \"4\")","v":0},1,{"$f":"MAX(DG6,DG4)","v":0},{"$f":"MIN(DG$4,DG$6)","v":0},30,{"$f":"IF(OR(DR6=0, DR4=0), 0, 1)","v":1},{"$f":"CONCATENATE(\"Whole \" &CW6& \" Group\")","v":"Whole Brown Group"},"Baltic Avenue","Whitechapel Road","Taipei","Plaza Lavapíes","Long Term Camp","Baltic Avenue","Whitechpl Road","Taipei","Plaza Lavapíes","Long Term Camp","","","","","","","","","","","","",{"$f":"CX6+ROW(A3)/100000","v":60.000030000000002},{"$f":"IF(AND(DG6 = 0, OR(CY6 = 2, CY6 = 3, CY6 = 4), DK6 - DN6 = 1), \"A\", IF(AND(DG6 = 0, OR(CY6 = 2, CY6 = 3, CY6 = 4), DN6 = 1, OR(DO6 = 1, DP6 = 1, DQ6 = 1)), \"B\", \"N\"))","v":"N"},{"$f":"IF(AND(DG6 = 0, OR(CY6 = 1, CY6 = 3, CY6 = 4), DK6 - DO6 = 1), \"A\", IF(AND(DG6 = 0, OR(CY6 = 1, CY6 = 3, CY6 = 4), DO6 = 1, OR(DN6 = 1, DP6 = 1, DQ6 = 1)), \"B\", \"N\"))","v":"N"},{"$f":"IF(AND(DG6 = 0, OR(CY6 = 1, CY6 = 2, CY6 = 4), DK6 - DP6 = 1), \"A\", IF(AND(DG6 = 0, OR(CY6 = 1, CY6 = 2, CY6 = 4), DP6 = 1, OR(DN6 = 1, DO6 = 1, DQ6 = 1)), \"B\", \"N\"))","v":"N"},{"$f":"IF(AND(DG6 = 0, OR(CY6 = 1, CY6 = 2, CY6 = 3), DK6 - DQ6 = 1), \"A\", IF(AND(DG6 = 0, OR(CY6 = 1, CY6 = 2, CY6 = 3), DQ6 = 1, OR(DN6 = 1, DO6 = 1, DP6 = 1)), \"B\", \"N\"))","v":"N"},{"$f":"IF(OR(EU6 = \"A\", EV6 = \"A\", EW6 = \"A\", EX6 = \"A\"), \"A\", IF(OR(EU6 = \"B\", EV6 = \"B\", EW6 = \"B\", EX6 = \"B\"), \"B\", \"N\"))","v":"N"},{"$f":"MAX(OR($EY$4 = \"A\", $EY$6 = \"A\") * (EU6 <> \"N\") * (EU3:EU44 <> EY6) * (Monopoly_Property_Availability = 1) *  ($CW$3:$CW$44 <> CW6) * (DK3:DK44 <> DN3:DN44) * $ET$3:$ET$44)","v":0},{"$f":"MAX(OR($EY$4 = \"A\", $EY$6 = \"A\") * (EV6 <> \"N\") * (EV3:EV44 <> EY6) * (Monopoly_Property_Availability = 2) *  ($CW$3:$CW$44 <> CW6) * (DK3:DK44 <> DN3:DN44) * $ET$3:$ET$44)","v":0},{"$f":"MAX(OR($EY$4 = \"A\", $EY$6 = \"A\") * (EW6 <> \"N\") * (EW3:EW44 <> EY6) * (Monopoly_Property_Availability = 3) *  ($CW$3:$CW$44 <> CW6) * (DK3:DK44 <> DN3:DN44) * $ET$3:$ET$44)","v":0},{"$f":"MAX(OR($EY$4 = \"A\", $EY$6 = \"A\") * (EX6 <> \"N\") * (EX3:EX44 <> EY6) * (Monopoly_Property_Availability = 4) *  ($CW$3:$CW$44 <> CW6) * (DK3:DK44 <> DN3:DN44) * $ET$3:$ET$44)","v":0},{"$f":"IF(IF(Monopoly_Active_Player = 1, EZ6 > 0, IF(Monopoly_Active_Player = 2, FA6 > 0, IF(Monopoly_Active_Player = 3, FB6 > 0, IF(Monopoly_Active_Player = 4, FC6 > 0)))), INDEX(Monopoly_Property_Full_Names, MATCH(IF(Monopoly_Active_Player = 1, EZ6, IF(Monopoly_Active_Player = 2, FA6, IF(Monopoly_Active_Player = 3, FB6, IF(Monopoly_Active_Player = 4, FC6)))), Monopoly_Property_Table[51 - Dummy Value], 0)), \"\")","v":""},{"$f":"IF(FD6 <> \"\", ROUND(IF(Monopoly_Active_Player = 1, EZ6, IF(Monopoly_Active_Player = 2, FA6, IF(Monopoly_Active_Player = 3, FB6, IF(Monopoly_Active_Player = 4, FC6)))), 0)  - CX6, \"\")","v":""}]
[null,"PROPERTIES",null,null,null,null,null,null,null,null,"PROPERTIES",null,null,null,null,null,null,null,null,null,null,{"$f":"IF(CY22=\"Yes\",Monopoly_Currency&CX22,IF(DR22=0,\"Mort P\",\"Sold P\")&CY22)","v":"$200"},{"$f":"OFFSET($EC22, 0, Monopoly_Edition)","v":"New York Avenue"},null,null,null,null,null,null,null,null,null,null,null,null,null,null,null,null,null,null,null,null,null,null,null,null,null,null,null,null,{"$f":"OFFSET($EC34, 0, Monopoly_Edition)","v":"Pacific Avenue"},null,{"$f":"IF(CY34=\"Yes\",Monopoly_Currency&CX34,IF(DR34=0,\"Mort P\",\"Sold P\")&CY34)","v":"$300"},null,null,null,"PROPERTIES",null,null,null,null,null,null,null,null,"PROPERTIES",null,null,null,null,null,null,null,null,null,null,null,null,"Owns Property",{"$f":"IF(COUNTIF(Monopoly_Property_Availability, 1) > 0, TRUE, FALSE)","v":false},{"$f":"IF(COUNTIF(Monopoly_Property_Availability, 2) > 0, TRUE, FALSE)","v":false},{"$f":"IF(COUNTIF(Monopoly_Property_Availability, 3) > 0, TRUE, FALSE)","v":false},{"$f":"IF(COUNTIF(Monopoly_Property_Availability, 4) > 0, TRUE, FALSE)","v":false},null,3,{"$f":"\"     Take a walk on the board walk.\n     Advance token to \" & OFFSET($DX$42, 0, Monopoly_Edition) & \".\"","v":"     Take a walk on the board walk.\n     Advance token to Board Walk."},6,0.98237825746216434,"Space_Board_Walk",null,null,null,null,null,null,null,null,null,"Space_Income_Tax",null,null,"NA","Income Tax",null,null,null,null,null,null,0,null,null,null,null,null,null,null,null,null,null,1,null,null,0,null,null,"Income Tax","Income Tax","Income Tax","Impuesto Sobre el Capitál","Tithing","Income Tax $200 or 10%","Income Tax £200 or 10%","Income Tax","Imp'sto Capitál","Tithing",{"$f":"IF(AND($CY7 = 1, $DV7 = 1, $DK7 = $DN7, $DG7 < 5, $DG7 = $DT7), OFFSET($DX7, 0, Monopoly_Edition), \"\")","v":""},{"$f":"IF(AND($CY7 = 1, $DG7 > 0, $DG7 = $DS7), OFFSET($DX7, 0, Monopoly_Edition), \"\")","v":""},{"$f":"IF(AND($CY7 = 2, $DV7 = 1, $DK7 = $DO7, $DG7 < 5, $DG7 = $DT7), OFFSET($DX7, 0, Monopoly_Edition), \"\")","v":""},{"$f":"IF(AND($CY7 = 2, $DG7 > 0, $DG7 = $DS7), OFFSET($DX7, 0, Monopoly_Edition), \"\")","v":""},{"$f":"IF(AND($CY7 = 3, $DV7 = 1, $DK7 = $DP7, $DG7 < 5, $DG7 = $DT7), OFFSET($DX7, 0, Monopoly_Edition), \"\")","v":""},{"$f":"IF(AND($CY7 = 3, $DG7 > 0, $DG7 = $DS7), OFFSET($DX7, 0, Monopoly_Edition), \"\")","v":""},{"$f":"IF(AND($CY7 = 4, $DV7 = 1, $DK7 = $DQ7, $DG7 < 5, $DG7 = $DT7), OFFSET($DX7, 0, Monopoly_Edition), \"\")","v":""},{"$f":"IF(AND($CY7 = 4, $DG7 > 0, $DG7 = $DS7), OFFSET($DX7, 0, Monopoly_Edition), \"\")","v":""},{"$f":"IF(AND(CY7 = 1, DR7 = 0, OR(DK7 = DN7, Monopoly_P1_Cash > 2000), (CX7*0.55) < (Monopoly_P1_Cash - 50)), CV7, \"\")","v":""},{"$f":"IF(AND(CY7 = 2, DR7 = 0, OR(DK7 = DO7, Monopoly_P2_Cash > 2000), (CX7*0.55) < (Monopoly_P2_Cash - 50)), CV7, \"\")","v":""},{"$f":"IF(AND(CY7 = 3, DR7 = 0, OR(DK7 = DP7, Monopoly_P3_Cash > 2000), (CX7*0.55) < (Monopoly_P3_Cash - 50)), CV7, \"\")","v":""},{"$f":"IF(AND(CY7 = 4, DR7 = 0, OR(DK7 = DQ7, Monopoly_P4_Cash > 2000), (CX7*0.55) < (Monopoly_P4_Cash - 50)), CV7, \"\")","v":""},null,null,null,null,null,null,null,null,null,null,null,""]
[null,{"$f":"IF($CY4 = 1, OFFSET($DX4, 0, Monopoly_Edition), \"\")","v":""},null,null,null,null,null,null,null,null,{"$f":"IF($CY4 = 2, OFFSET($DX4, 0, Monopoly_Edition), \"\")","v":""},null,null,null,null,null,null,null,null,null,null,null,null,null,null,null,null,null,null,null,null,null,null,null,null,null,null,null,null,null,null,null,null,null,null,null,null,null,null,null,null,null,null,null,null,null,null,{"$f":"IF($CY4 = 3, OFFSET($DX4, 0, Monopoly_Edition), \"\")","v":""},null,null,null,null,null,null,null,null,{"$f":"IF($CY4 = 4, OFFSET($DX4, 0, Monopoly_Edition), \"\")","v":""},null,null,null,null,null,null,null,null,null,"Game Over",false,null,"Houses",{"$f":"SUMIF(Monopoly_Property_Availability, 1, Monopoly_Number_of_Houses)","v":0},{"$f":"SUMIF(Monopoly_Property_Availability, 2, Monopoly_Number_of_Houses)","v":0},{"$f":"SUMIF(Monopoly_Property_Availability, 3, Monopoly_Number_of_Houses)","v":0},{"$f":"SUMIF(Monopoly_Property_Availability, 4, Monopoly_Number_of_Houses)","v":0},null,4,"     Pay your insurance premium of $50.",12,0.15339716639654277,-50,null,null,null,null,null,null,null,null,null,"Space_Reading_Railroad",null,200,"Yes","Reading Railroad",25,{"$f":"IF(CY8=\"Yes\", \"\", CY8)","v":""},{"$f":"CY$18","v":"Yes"},{"$f":"CY$28","v":"Yes"},{"$f":"CY$38","v":"Yes"},{"$f":"COUNTIF(DC8:DE8, DB8)+1","v":1},0,{"$f":"2^(DF8-1)","v":1},null,null,null,null,null,null,null,null,null,1,null,null,100,null,null,"Reading Railroad","King's Cross Station","Monopoly Rail","Estación de Goya","Handcart","Reading Railroad","King's X Station","Monopoly Rail","Estación de Goya","Handcart","","","","","","","","","","","","",{"$f":"CX8+ROW(A5)/100000","v":200.00004999999999},{"$f":"IF(AND(DG8 = 0, OR(CY8 = 2, CY8 = 3, CY8 = 4), DK8 - DN8 = 1), \"A\", IF(AND(DG8 = 0, OR(CY8 = 2, CY8 = 3, CY8 = 4), DN8 = 1, OR(DO8 = 1, DP8 = 1, DQ8 = 1)), \"B\", \"N\"))","v":"N"},{"$f":"IF(AND(DG8 = 0, OR(CY8 = 1, CY8 = 3, CY8 = 4), DK8 - DO8 = 1), \"A\", IF(AND(DG8 = 0, OR(CY8 = 1, CY8 = 3, CY8 = 4), DO8 = 1, OR(DN8 = 1, DP8 = 1, DQ8 = 1)), \"B\", \"N\"))","v":"N"},{"$f":"IF(AND(DG8 = 0, OR(CY8 = 1, CY8 = 2, CY8 = 4), DK8 - DP8 = 1), \"A\", IF(AND(DG8 = 0, OR(CY8 = 1, CY8 = 2, CY8 = 4), DP8 = 1, OR(DN8 = 1, DO8 = 1, DQ8 = 1)), \"B\", \"N\"))","v":"N"},{"$f":"IF(AND(DG8 = 0, OR(CY8 = 1, CY8 = 2, CY8 = 3), DK8 - DQ8 = 1), \"A\", IF(AND(DG8 = 0, OR(CY8 = 1, CY8 = 2, CY8 = 3), DQ8 = 1, OR(DN8 = 1, DO8 = 1, DP8 = 1)), \"B\", \"N\"))","v":"N"},{"$f":"IF(OR(EU8 = \"A\", EV8 = \"A\", EW8 = \"A\", EX8 = \"A\"), \"A\", IF(OR(EU8 = \"B\", EV8 = \"B\", EW8 = \"B\", EX8 = \"B\"), \"B\", \"N\"))","v":"N"},null,null,null,null,{"$f":"IF(IF(Monopoly_Active_Player = 1, EZ8 > 0, IF(Monopoly_Active_Player = 2, FA8 > 0, IF(Monopoly_Active_Player = 3, FB8 > 0, IF(Monopoly_Active_Player = 4, FC8 > 0)))), INDEX(Monopoly_Property_Full_Names, MATCH(IF(Monopoly_Active_Player = 1, EZ8, IF(Monopoly_Active_Player = 2, FA8, IF(Monopoly_Active_Player = 3, FB8, IF(Monopoly_Active_Player = 4, FC8)))), Monopoly_Property_Table[51 - Dummy Value], 0)), \"\")","v":""},""]
[null,{"$f":"IF($CY6 = 1, OFFSET($DX6, 0, Monopoly_Edition), \"\")","v":""},null,null,null,null,null,null,null,null,{"$f":"IF($CY6 = 2, OFFSET($DX6, 0, Monopoly_Edition), \"\")","v":""},null,null,null,null,null,null,null,null,null,null,null,null,null,null,null,"Game Duration",null,null,null,null,null,null,null,null,null,null,null,null,null,null,null,"Number of Players",null,null,null,null,null,null,null,null,null,null,null,null,null,null,{"$f":"IF($CY6 = 3, OFFSET($DX6, 0, Monopoly_Edition), \"\")","v":""},null,null,null,null,null,null,null,null,{"$f":"IF($CY6 = 4, OFFSET($DX6, 0, Monopoly_Edition), \"\")","v":""},null,null,null,null,null,null,null,null,null,"Monopoly_Edition",0,null,"Can Buy Houses",{"$f":"IF(41 - COUNTIF(Monopoly_P1_Monopolies, \"\") > 0, TRUE, FALSE)","v":false},{"$f":"IF(41 - COUNTIF(Monopoly_P2_Monopolies, \"\") > 0, TRUE, FALSE)","v":false},{"$f":"IF(41 - COUNTIF(Monopoly_P3_Monopolies,\"\") > 0, TRUE, FALSE)","v":false},{"$f":"IF(41 - COUNTIF(Monopoly_P4_Monopolies, \"\") > 0, TRUE, FALSE)","v":false},null,5,"     Advance token to the nearest Railroad\n     and pay owner TWICE the rental to which\n      he/she is otherwise entitled.\n\n     If Railroad is UNOWNED, you may buy it\n     from the Bank.",8,4.8231432881822633E-2,null,null,null,null,null,null,null,null,null,null,"Space_Oriental_Avenue","Light Blue",100,"Yes","Oriental Avenue",6,30,90,270,400,550,0,{"$f":"IF(AND(CY11=CY9, CY11=CY12, CY9<>\"Yes\"), \"2\", \"1\")","v":"1"},50,33,3,10,40,{"$f":"COUNTIF($CY$9:$CY$12, \"1\")","v":0},{"$f":"COUNTIF($CY$9:$CY$12, \"2\")","v":0},{"$f":"COUNTIF($CY$9:$CY$12, \"3\")","v":0},{"$f":"COUNTIF($CY$9:$CY$12, \"4\")","v":0},1,{"$f":"MAX(DG9,DG11,DG12)","v":0},{"$f":"MIN(DG9,DG11,DG12)","v":0},50,{"$f":"IF(OR(DR9=0, DR11=0, DR12=0), 0, 1)","v":1},{"$f":"CONCATENATE(\"Whole \" &CW9& \" Group\")","v":"Whole Light Blue Group"},"Oriental Avenue","The Angel Islington","Tokyo","Glorieta Cuatro Caminos","Zion's Camp","Oriental Avenue","The Angel Islington","Tokyo","Glorieta Caminos","Zion's Camp","","","","","","","","","","","","",{"$f":"CX9+ROW(A6)/100000","v":100.00006},"N","N","N","N","N",{"$f":"MAX(OR($EY$9 = \"A\", $EY$10 = \"A\", $EY$12 = \"A\") * (EU9 <> \"N\") *  (EU3:EU44 <> EY9) * (Monopoly_Property_Availability = 1) * ($CW$3:$CW$44 <> CW9) * (DK3:DK44 <> DN3:DN44) * $ET$3:$ET$44)","v":0},{"$f":"MAX(OR($EY$9 = \"A\", $EY$10 = \"A\", $EY$12 = \"A\") * (EV9 <> \"N\") *  (EV3:EV44 <> EY9) * (Monopoly_Property_Availability = 2) * ($CW$3:$CW$44 <> CW9) * (DK3:DK44 <> DN3:DN44) * $ET$3:$ET$44)","v":0},{"$f":"MAX(OR($EY$9 = \"A\", $EY$10 = \"A\", $EY$12 = \"A\") * (EW9 <> \"N\") *  (EW3:EW44 <> EY9) * (Monopoly_Property_Availability = 3) * ($CW$3:$CW$44 <> CW9) * (DK3:DK44 <> DN3:DN44) * $ET$3:$ET$44)","v":0},{"$f":"MAX(OR($EY$9 = \"A\", $EY$10 = \"A\", $EY$12 = \"A\") * (EX9 <> \"N\") *  (EX3:EX44 <> EY9) * (Monopoly_Property_Availability = 4) * ($CW$3:$CW$44 <> CW9) * (DK3:DK44 <> DN3:DN44) * $ET$3:$ET$44)","v":0},{"$f":"IF(IF(Monopoly_Active_Player = 1, EZ9 > 0, IF(Monopoly_Active_Player = 2, FA9 > 0, IF(Monopoly_Active_Player = 3, FB9 > 0, IF(Monopoly_Active_Player = 4, FC9 > 0)))), INDEX(Monopoly_Property_Full_Names, MATCH(IF(Monopoly_Active_Player = 1, EZ9, IF(Monopoly_Active_Player = 2, FA9, IF(Monopoly_Active_Player = 3, FB9, IF(Monopoly_Active_Player = 4, FC9)))), Monopoly_Property_Table[51 - Dummy Value], 0)), \"\")","v":""},{"$f":"IF(FD9 <> \"\", ROUND(IF(Monopoly_Active_Player = 1, EZ9, IF(Monopoly_Active_Player = 2, FA9, IF(Monopoly_Active_Player = 3, FB9, IF(Monopoly_Active_Player = 4, FC9)))), 0)  - CX9, \"\")","v":""}]
[null,{"$f":"IF($CY9 = 1, OFFSET($DX9, 0, Monopoly_Edition), \"\")","v":""},null,null,null,null,null,null,null,null,{"$f":"IF($CY9 = 2, OFFSET($DX9, 0, Monopoly_Edition), \"\")","v":""},null,null,null,null,null,null,null,null,null,null,{"$f":"IF(CY21=\"Yes\",Monopoly_Currency&CX21,IF(DR21=0,\"Mort P\",\"Sold P\")&CY21)","v":"$180"},{"$f":"OFFSET($EC21, 0, Monopoly_Edition)","v":"Ten'essee Avenue"},null,null,null,null,null,null,null,null,null,null,null,null,null,null,null,null,null,null,null,null,null,null,null,null,null,null,null,null,{"$f":"OFFSET($EC35, 0, Monopoly_Edition)","v":"N Carl'na Avenue"},null,{"$f":"IF(CY35=\"Yes\",Monopoly_Currency&CX35,IF(DR35=0,\"Mort P\",\"Sold P\")&CY35)","v":"$300"},null,null,null,{"$f":"IF($CY9 = 3, OFFSET($DX9, 0, Monopoly_Edition), \"\")","v":""},null,null,null,null,null,null,null,null,{"$f":"IF($CY9 = 4, OFFSET($DX9, 0, Monopoly_Edition), \"\")","v":""},null,null,null,null,null,null,null,null,null,"Monopoly_Currency",{"$f":"VLOOKUP(BZ9, BY13:BZ18, 2)","v":"$"},null,"Rent Owed",{"$f":"IF(VLOOKUP(Monopoly_P1_Location, Monopoly_Properties_Table, 12, FALSE) = 0, VLOOKUP(Monopoly_P1_Location, Monopoly_Properties_Table, 6 + VLOOKUP(Monopoly_P1_Location, Monopoly_Properties_Table, 12, FALSE), FALSE) *VLOOKUP(Monopoly_P1_Location, Monopoly_Properties_Table, 13, FALSE), (VLOOKUP(Monopoly_P1_Location, Monopoly_Properties_Table, 6 + VLOOKUP(Monopoly_P1_Location, Monopoly_Properties_Table, 12, FALSE), FALSE) *VLOOKUP(Monopoly_P1_Location, Monopoly_Properties_Table, 13, FALSE))/2) * VLOOKUP(Monopoly_P1_Location, Monopoly_Properties_Table, 23, FALSE)","v":0},{"$f":"IF(VLOOKUP(Monopoly_P2_Location, Monopoly_Properties_Table, 12, FALSE) = 0, VLOOKUP(Monopoly_P2_Location, Monopoly_Properties_Table, 6 + VLOOKUP(Monopoly_P2_Location, Monopoly_Properties_Table, 12, FALSE), FALSE) *VLOOKUP(Monopoly_P2_Location, Monopoly_Properties_Table, 13, FALSE), (VLOOKUP(Monopoly_P2_Location, Monopoly_Properties_Table, 6 + VLOOKUP(Monopoly_P2_Location, Monopoly_Properties_Table, 12, FALSE), FALSE) *VLOOKUP(Monopoly_P2_Location, Monopoly_Properties_Table, 13, FALSE))/2) * VLOOKUP(Monopoly_P2_Location, Monopoly_Properties_Table, 23, FALSE)","v":0},{"$f":"IF(VLOOKUP(Monopoly_P3_Location, Monopoly_Properties_Table, 12, FALSE) = 0, VLOOKUP(Monopoly_P3_Location, Monopoly_Properties_Table, 6 + VLOOKUP(Monopoly_P3_Location, Monopoly_Properties_Table, 12, FALSE), FALSE) *VLOOKUP(Monopoly_P3_Location, Monopoly_Properties_Table, 13, FALSE), (VLOOKUP(Monopoly_P3_Location, Monopoly_Properties_Table, 6 + VLOOKUP(Monopoly_P3_Location, Monopoly_Properties_Table, 12, FALSE), FALSE) *VLOOKUP(Monopoly_P3_Location, Monopoly_Properties_Table, 13, FALSE))/2) * VLOOKUP(Monopoly_P3_Location, Monopoly_Properties_Table, 23, FALSE)","v":0},{"$f":"IF(VLOOKUP(Monopoly_P4_Location, Monopoly_Properties_Table, 12, FALSE) = 0, VLOOKUP(Monopoly_P4_Location, Monopoly_Properties_Table, 6 + VLOOKUP(Monopoly_P4_Location, Monopoly_Properties_Table, 12, FALSE), FALSE) *VLOOKUP(Monopoly_P4_Location, Monopoly_Properties_Table, 13, FALSE), (VLOOKUP(Monopoly_P4_Location, Monopoly_Properties_Table, 6 + VLOOKUP(Monopoly_P4_Location, Monopoly_Properties_Table, 12, FALSE), FALSE) *VLOOKUP(Monopoly_P4_Location, Monopoly_Properties_Table, 13, FALSE))/2)* VLOOKUP(Monopoly_P4_Location, Monopoly_Properties_Table, 23, FALSE)","v":0},null,6,"     Go back 3 spaces.",10,0.35641675261867045,null,null,null,null,null,null,null,null,null,null,"Space_Chance_One",null,null,"NA","Chance",null,null,null,null,null,null,0,null,null,null,null,null,null,null,null,null,null,1,null,null,0,null,null,"Chance","Chance","Chance","Suerte","Mission","Chance","Chance","Chance","Suerte","Mission",{"$f":"IF(AND($CY10 = 1, $DV10 = 1, $DK10 = $DN10, $DG10 < 5, $DG10 = $DT10), OFFSET($DX10, 0, Monopoly_Edition), \"\")","v":""},{"$f":"IF(AND($CY10 = 1, $DG10 > 0, $DG10 = $DS10), OFFSET($DX10, 0, Monopoly_Edition), \"\")","v":""},{"$f":"IF(AND($CY10 = 2, $DV10 = 1, $DK10 = $DO10, $DG10 < 5, $DG10 = $DT10), OFFSET($DX10, 0, Monopoly_Edition), \"\")","v":""},{"$f":"IF(AND($CY10 = 2, $DG10 > 0, $DG10 = $DS10), OFFSET($DX10, 0, Monopoly_Edition), \"\")","v":""},{"$f":"IF(AND($CY10 = 3, $DV10 = 1, $DK10 = $DP10, $DG10 < 5, $DG10 = $DT10), OFFSET($DX10, 0, Monopoly_Edition), \"\")","v":""},{"$f":"IF(AND($CY10 = 3, $DG10 > 0, $DG10 = $DS10), OFFSET($DX10, 0, Monopoly_Edition), \"\")","v":""},{"$f":"IF(AND($CY10 = 4, $DV10 = 1, $DK10 = $DQ10, $DG10 < 5, $DG10 = $DT10), OFFSET($DX10, 0, Monopoly_Edition), \"\")","v":""},{"$f":"IF(AND($CY10 = 4, $DG10 > 0, $DG10 = $DS10), OFFSET($DX10, 0, Monopoly_Edition), \"\")","v":""},{"$f":"IF(AND(CY10 = 1, DR10 = 0, OR(DK10 = DN10, Monopoly_P1_Cash > 2000), (CX10*0.55) < (Monopoly_P1_Cash - 50)), CV10, \"\")","v":""},{"$f":"IF(AND(CY10 = 2, DR10 = 0, OR(DK10 = DO10, Monopoly_P2_Cash > 2000), (CX10*0.55) < (Monopoly_P2_Cash - 50)), CV10, \"\")","v":""},{"$f":"IF(AND(CY10 = 3, DR10 = 0, OR(DK10 = DP10, Monopoly_P3_Cash > 2000), (CX10*0.55) < (Monopoly_P3_Cash - 50)), CV10, \"\")","v":""},{"$f":"IF(AND(CY10 = 4, DR10 = 0, OR(DK10 = DQ10, Monopoly_P4_Cash > 2000), (CX10*0.55) < (Monopoly_P4_Cash - 50)), CV10, \"\")","v":""},null,null,null,null,null,null,null,null,null,null,null,""]
[null,{"$f":"IF($CY11 = 1, OFFSET($DX11, 0, Monopoly_Edition), \"\")","v":""},null,null,null,null,null,null,null,null,{"$f":"IF($CY11 = 2, OFFSET($DX11, 0, Monopoly_Edition), \"\")","v":""},null,null,null,null,null,null,null,null,null,null,null,null,null,null,null,null,null,null,null,null,null,null,null,null,null,null,null,null,null,null,null,null,null,null,null,null,null,null,null,null,null,null,null,null,null,null,{"$f":"IF($CY11 = 3, OFFSET($DX11, 0, Monopoly_Edition), \"\")","v":""},null,null,null,null,null,null,null,null,{"$f":"IF($CY11 = 4, OFFSET($DX11, 0, Monopoly_Edition), \"\")","v":""},null,null,null,null,null,null,null,null,null,null,null,null,"Current Cash",1500,1500,1500,1500,null,7,"     \"Drunk in charge.\"\n     Fine $20.",12,0.4839141875392331,-20,null,null,null,null,null,null,null,null,null,"Space_Vermont_Avenue","Light Blue",100,"Yes","Vermont Avenue",6,30,90,270,400,550,0,{"$f":"IF(AND(CY11=CY9, CY11=CY12, CY9<>\"Yes\"), \"2\", \"1\")","v":"1"},50,33,3,10,40,{"$f":"COUNTIF($CY$9:$CY$12, \"1\")","v":0},{"$f":"COUNTIF($CY$9:$CY$12, \"2\")","v":0},{"$f":"COUNTIF($CY$9:$CY$12, \"3\")","v":0},{"$f":"COUNTIF($CY$9:$CY$12, \"4\")","v":0},1,{"$f":"MAX(DG11,DG9,DG12)","v":0},{"$f":"MIN(DG9,DG11,DG12)","v":0},50,{"$f":"IF(OR(DR11=0, DR12=0, DR9=0), 0, 1)","v":1},{"$f":"CONCATENATE(\"Whole \" &CW11& \" Group\")","v":"Whole Light Blue Group"},"Vermont Avenue","Euston Road","Barcelona","Avenida Reina Victoria","Smith Family Ranch","Vermont Avenue","Euston Road","Barcelona","Reina Victoria","Smith Ranch","","","","","","","","","","","","",{"$f":"CX11+ROW(A8)/100000","v":100.00008},{"$f":"IF(AND(DG11 = 0, OR(CY11 = 2, CY11 = 3, CY11 = 4), DK11 - DN11 = 1), \"A\", IF(AND(DG11 = 0, OR(CY11 = 2, CY11 = 3, CY11 = 4), DN11 = 1, OR(DO11 = 1, DP11 = 1, DQ11 = 1)), \"B\", \"N\"))","v":"N"},{"$f":"IF(AND(DG11 = 0, OR(CY11 = 1, CY11 = 3, CY11 = 4), DK11 - DO11 = 1), \"A\", IF(AND(DG11 = 0, OR(CY11 = 1, CY11 = 3, CY11 = 4), DO11 = 1, OR(DN11 = 1, DP11 = 1, DQ11 = 1)), \"B\", \"N\"))","v":"N"},{"$f":"IF(AND(DG11 = 0, OR(CY11 = 1, CY11 = 2, CY11 = 4), DK11 - DP11 = 1), \"A\", IF(AND(DG11 = 0, OR(CY11 = 1, CY11 = 2, CY11 = 4), DP11 = 1, OR(DN11 = 1, DO11 = 1, DQ11 = 1)), \"B\", \"N\"))","v":"N"},{"$f":"IF(AND(DG11 = 0, OR(CY11 = 1, CY11 = 2, CY11 = 3), DK11 - DQ11 = 1), \"A\", IF(AND(DG11 = 0, OR(CY11 = 1, CY11 = 2, CY11 = 3), DQ11 = 1, OR(DN11 = 1, DO11 = 1, DP11 = 1)), \"B\", \"N\"))","v":"N"},{"$f":"IF(OR(EU11 = \"A\", EV11 = \"A\", EW11 = \"A\", EX11 = \"A\"), \"A\", IF(OR(EU11 = \"B\", EV11 = \"B\", EW11 = \"B\", EX11 = \"B\"), \"B\", \"N\"))","v":"N"},{"$f":"MAX(OR($EY$9 = \"A\", $EY$10 = \"A\", $EY$12 = \"A\") * (EU11 <> \"N\") *  (EU3:EU44 <> EY11) * (Monopoly_Property_Availability = 1) * ($CW$3:$CW$44 <> CW11) * (DK3:DK44 <> DN3:DN44) * $ET$3:$ET$44)","v":0},{"$f":"MAX(OR($EY$9 = \"A\", $EY$10 = \"A\", $EY$12 = \"A\") * (EV11 <> \"N\") *  (EV3:EV44 <> EY11) * (Monopoly_Property_Availability = 2) * ($CW$3:$CW$44 <> CW11) * (DK3:DK44 <> DN3:DN44) * $ET$3:$ET$44)","v":0},{"$f":"MAX(OR($EY$9 = \"A\", $EY$10 = \"A\", $EY$12 = \"A\") * (EW11 <> \"N\") *  (EW3:EW44 <> EY11) * (Monopoly_Property_Availability = 3) * ($CW$3:$CW$44 <> CW11) * (DK3:DK44 <> DN3:DN44) * $ET$3:$ET$44)","v":0},{"$f":"MAX(OR($EY$9 = \"A\", $EY$10 = \"A\", $EY$12 = \"A\") * (EX11 <> \"N\") *  (EX3:EX44 <> EY11) * (Monopoly_Property_Availability = 4) * ($CW$3:$CW$44 <> CW11) * (DK3:DK44 <> DN3:DN44) * $ET$3:$ET$44)","v":0},{"$f":"IF(IF(Monopoly_Active_Player = 1, EZ11 > 0, IF(Monopoly_Active_Player = 2, FA11 > 0, IF(Monopoly_Active_Player = 3, FB11 > 0, IF(Monopoly_Active_Player = 4, FC11 > 0)))), INDEX(Monopoly_Property_Full_Names, MATCH(IF(Monopoly_Active_Player = 1, EZ11, IF(Monopoly_Active_Player = 2, FA11, IF(Monopoly_Active_Player = 3, FB11, IF(Monopoly_Active_Player = 4, FC11)))), Monopoly_Property_Table[51 - Dummy Value], 0)), \"\")","v":""},{"$f":"IF(FD11 <> \"\", ROUND(IF(Monopoly_Active_Player = 1, EZ11, IF(Monopoly_Active_Player = 2, FA11, IF(Monopoly_Active_Player = 3, FB11, IF(Monopoly_Active_Player = 4, FC11)))), 0)  - CX11, \"\")","v":""}]
[null,{"$f":"IF($CY12 = 1, OFFSET($DX12, 0, Monopoly_Edition), \"\")","v":""},null,null,null,null,null,null,null,null,{"$f":"IF($CY12 = 2, OFFSET($DX12, 0, Monopoly_Edition), \"\")","v":""},null,null,null,null,null,null,null,null,null,null,null,null,null,null,null,null,null,null,null,null,null,null,null,null,null,null,null,null,null,null,null,null,null,null,null,null,null,null,null,null,null,null,null,null,null,null,{"$f":"IF($CY12 = 3, OFFSET($DX12, 0, Monopoly_Edition), \"\")","v":""},null,null,null,null,null,null,null,null,{"$f":"IF($CY12 = 4, OFFSET($DX12, 0, Monopoly_Edition), \"\")","v":""},null,null,null,null,null,null,null,null,null,"Edition Index","Edition",null,"Mortgageable Property Value",{"$f":"SUMPRODUCT(--(Monopoly_Property_Availability=1),--(DR3:DR44 = 1), CX3:CX44) / 2","v":0},{"$f":"SUMPRODUCT(--(Monopoly_Property_Availability=2),--(DR3:DR44 = 1), CX3:CX44) / 2","v":0},{"$f":"SUMPRODUCT(--(Monopoly_Property_Availability=3),--(DR3:DR44 = 1), CX3:CX44) / 2","v":0},{"$f":"SUMPRODUCT(--(Monopoly_Property_Availability=4),--(DR3:DR44 = 1), CX3:CX44) / 2","v":0},null,8,"Advance token to nearest utility.\n\n     If UNOWNED you may buy it\n     from the Bank.\n\n     If OWNED, throw dice and pay owner\n     a total ten times the amount thrown.",9,6.6533383092781118E-2,null,null,null,null,null,null,null,null,null,null,"Space_Connecticut_Avenue","Light Blue",120,"Yes","Connecticut Avenue",8,40,100,300,450,600,0,{"$f":"IF(AND(CY11=CY12, CY11=CY9, CY12<>\"Yes\"), \"2\", \"1\")","v":"1"},50,33,3,10,40,{"$f":"COUNTIF($CY$9:$CY$12, \"1\")","v":0},{"$f":"COUNTIF($CY$9:$CY$12, \"2\")","v":0},{"$f":"COUNTIF($CY$9:$CY$12, \"3\")","v":0},{"$f":"COUNTIF($CY$9:$CY$12, \"4\")","v":0},1,{"$f":"MAX(DG12,DG11,DG9)","v":0},{"$f":"MIN(DG9,DG11,DG12)","v":0},60,{"$f":"IF(OR(DR12=0, DR11=0, DR9=0), 0, 1)","v":1},{"$f":"CONCATENATE(\"Whole \" &CW12& \" Group\")","v":"Whole Light Blue Group"},"Connecticut Avenue","Pentonville Road","Athens","Calle Bravo Murillo","Hill Cumorah","C'nn'ticut Avenue","Pent'nville Road","Athens","Bravo Murillo","Hill Cumorah",{"$f":"IF(AND($CY12 = 1, $DV12 = 1, $DK12 = $DN12, $DG12 < 5, $DG12 = $DT12), OFFSET($DX12, 0, Monopoly_Edition), \"\")","v":""},{"$f":"IF(AND($CY12 = 1, $DG12 > 0, $DG12 = $DS12), OFFSET($DX12, 0, Monopoly_Edition), \"\")","v":""},{"$f":"IF(AND($CY12 = 2, $DV12 = 1, $DK12 = $DO12, $DG12 < 5, $DG12 = $DT12), OFFSET($DX12, 0, Monopoly_Edition), \"\")","v":""},{"$f":"IF(AND($CY12 = 2, $DG12 > 0, $DG12 = $DS12), OFFSET($DX12, 0, Monopoly_Edition), \"\")","v":""},{"$f":"IF(AND($CY12 = 3, $DV12 = 1, $DK12 = $DP12, $DG12 < 5, $DG12 = $DT12), OFFSET($DX12, 0, Monopoly_Edition), \"\")","v":""},{"$f":"IF(AND($CY12 = 3, $DG12 > 0, $DG12 = $DS12), OFFSET($DX12, 0, Monopoly_Edition), \"\")","v":""},{"$f":"IF(AND($CY12 = 4, $DV12 = 1, $DK12 = $DQ12, $DG12 < 5, $DG12 = $DT12), OFFSET($DX12, 0, Monopoly_Edition), \"\")","v":""},{"$f":"IF(AND($CY12 = 4, $DG12 > 0, $DG12 = $DS12), OFFSET($DX12, 0, Monopoly_Edition), \"\")","v":""},{"$f":"IF(AND(CY12 = 1, DR12 = 0, OR(DK12 = DN12, Monopoly_P1_Cash > 2000), (CX12*0.55) < (Monopoly_P1_Cash - 50)), CV12, \"\")","v":""},{"$f":"IF(AND(CY12 = 2, DR12 = 0, OR(DK12 = DO12, Monopoly_P2_Cash > 2000), (CX12*0.55) < (Monopoly_P2_Cash - 50)), CV12, \"\")","v":""},{"$f":"IF(AND(CY12 = 3, DR12 = 0, OR(DK12 = DP12, Monopoly_P3_Cash > 2000), (CX12*0.55) < (Monopoly_P3_Cash - 50)), CV12, \"\")","v":""},{"$f":"IF(AND(CY12 = 4, DR12 = 0, OR(DK12 = DQ12, Monopoly_P4_Cash > 2000), (CX12*0.55) < (Monopoly_P4_Cash - 50)), CV12, \"\")","v":""},{"$f":"CX12+ROW(A9)/100000","v":120.00009},"N","N","N","N","N",{"$f":"MAX(OR($EY$9 = \"A\", $EY$10 = \"A\", $EY$12 = \"A\") * (EU12 <> \"N\") *  (EU3:EU44 <> EY12) * (Monopoly_Property_Availability = 1) * ($CW$3:$CW$44 <> CW12) * (DK3:DK44 <> DN3:DN44) * $ET$3:$ET$44)","v":0},{"$f":"MAX(OR($EY$9 = \"A\", $EY$10 = \"A\", $EY$12 = \"A\") * (EV12 <> \"N\") *  (EV3:EV44 <> EY12) * (Monopoly_Property_Availability = 2) * ($CW$3:$CW$44 <> CW12) * (DK3:DK44 <> DN3:DN44) * $ET$3:$ET$44)","v":0},{"$f":"MAX(OR($EY$9 = \"A\", $EY$10 = \"A\", $EY$12 = \"A\") * (EW12 <> \"N\") *  (EW3:EW44 <> EY12) * (Monopoly_Property_Availability = 3) * ($CW$3:$CW$44 <> CW12) * (DK3:DK44 <> DN3:DN44) * $ET$3:$ET$44)","v":0},{"$f":"MAX(OR($EY$9 = \"A\", $EY$10 = \"A\", $EY$12 = \"A\") * (EX12 <> \"N\") *  (EX3:EX44 <> EY12) * (Monopoly_Property_Availability = 4) * ($CW$3:$CW$44 <> CW12) * (DK3:DK44 <> DN3:DN44) * $ET$3:$ET$44)","v":0},{"$f":"IF(IF(Monopoly_Active_Player = 1, EZ12 > 0, IF(Monopoly_Active_Player = 2, FA12 > 0, IF(Monopoly_Active_Player = 3, FB12 > 0, IF(Monopoly_Active_Player = 4, FC12 > 0)))), INDEX(Monopoly_Property_Full_Names, MATCH(IF(Monopoly_Active_Player = 1, EZ12, IF(Monopoly_Active_Player = 2, FA12, IF(Monopoly_Active_Player = 3, FB12, IF(Monopoly_Active_Player = 4, FC12)))), Monopoly_Property_Table[51 - Dummy Value], 0)), \"\")","v":""},{"$f":"IF(FD12 <> \"\", ROUND(IF(Monopoly_Active_Player = 1, EZ12, IF(Monopoly_Active_Player = 2, FA12, IF(Monopoly_Active_Player = 3, FB12, IF(Monopoly_Active_Player = 4, FC12)))), 0)  - CX12, \"\")","v":""}]
[null,{"$f":"IF($CY14 = 1, OFFSET($DX14, 0, Monopoly_Edition), \"\")","v":""},null,null,null,null,null,null,null,null,{"$f":"IF($CY14 = 2, OFFSET($DX14, 0, Monopoly_Edition), \"\")","v":""},null,null,null,null,null,null,null,null,{"$f":"OFFSET($EC20, 0, Monopoly_Edition)","v":"Comm Chest"},null,"CC",null,null,null,null,{"$f":"Monopoly_Game_Time","v":"00:04:55.240"},null,null,null,null,null,null,null,{"$f":"IF(OR(Monopoly_Die_One = 2, Monopoly_Die_One = 4, Monopoly_Die_One = 5,  Monopoly_Die_One = 6), \"l\", \"\")","v":"l"},null,{"$f":"IF(OR(Monopoly_Die_One = 3, Monopoly_Die_One = 4, Monopoly_Die_One = 5, Monopoly_Die_One = 6), \"l\", \"\")","v":"l"},4,{"$f":"IF(OR(Monopoly_Die_Two = 2, Monopoly_Die_Two = 4, Monopoly_Die_Two = 5, Monopoly_Die_Two = 6), \"l\", \"\")","v":"l"},null,{"$f":"IF(OR(Monopoly_Die_Two = 3, Monopoly_Die_Two = 4, Monopoly_Die_Two = 5, Monopoly_Die_Two = 6), \"l\", \"\")","v":"l"},null,4,null,null,null,null,null,null,null,null,"CC",null,null,{"$f":"OFFSET($EC36, 0, Monopoly_Edition)","v":"Comm Chest"},null,null,{"$f":"IF($CY14 = 3, OFFSET($DX14, 0, Monopoly_Edition), \"\")","v":""},null,null,null,null,null,null,null,null,{"$f":"IF($CY14 = 4, OFFSET($DX14, 0, Monopoly_Edition), \"\")","v":""},null,null,null,null,null,null,null,null,null,0,"$",null,"Sellable House Value",{"$f":"SUMPRODUCT(--(Monopoly_Property_Availability=1),--(Monopoly_Property_Table[12 - No Houses] > 0),Monopoly_House_Cost / 2 * Monopoly_Property_Table[12 - No Houses])","v":0},{"$f":"SUMPRODUCT(--(Monopoly_Property_Availability=2),--(Monopoly_Property_Table[12 - No Houses] > 0),Monopoly_House_Cost / 2 * Monopoly_Property_Table[12 - No Houses])","v":0},{"$f":"SUMPRODUCT(--(Monopoly_Property_Availability=3),--(Monopoly_Property_Table[12 - No Houses] > 0),Monopoly_House_Cost / 2 * Monopoly_Property_Table[12 - No Houses])","v":0},{"$f":"SUMPRODUCT(--(Monopoly_Property_Availability=4),--(Monopoly_Property_Table[12 - No Houses] > 0),Monopoly_House_Cost / 2 * Monopoly_Property_Table[12 - No Houses])","v":0},null,9,"     Advance to Go.\n     (Collect $200)",6,0.66061635561374887,"Space_GO",null,null,null,null,null,null,null,null,null,"Space_Just_Visiting",null,null,"NA","Just Visiting",null,null,null,null,null,null,0,null,null,null,null,null,null,null,null,null,null,1,null,null,0,null,null,"Just Visiting","Just Visiting","Just Visiting","Solo Visitas","Just Visiting","Just Visiting","Just Visiting","Just Visiting","Solo Visitas","Just Visiting",{"$f":"IF(AND($CY13 = 1, $DV13 = 1, $DK13 = $DN13, $DG13 < 5, $DG13 = $DT13), OFFSET($DX13, 0, Monopoly_Edition), \"\")","v":""},{"$f":"IF(AND($CY13 = 1, $DG13 > 0, $DG13 = $DS13), OFFSET($DX13, 0, Monopoly_Edition), \"\")","v":""},{"$f":"IF(AND($CY13 = 2, $DV13 = 1, $DK13 = $DO13, $DG13 < 5, $DG13 = $DT13), OFFSET($DX13, 0, Monopoly_Edition), \"\")","v":""},{"$f":"IF(AND($CY13 = 2, $DG13 > 0, $DG13 = $DS13), OFFSET($DX13, 0, Monopoly_Edition), \"\")","v":""},{"$f":"IF(AND($CY13 = 3, $DV13 = 1, $DK13 = $DP13, $DG13 < 5, $DG13 = $DT13), OFFSET($DX13, 0, Monopoly_Edition), \"\")","v":""},{"$f":"IF(AND($CY13 = 3, $DG13 > 0, $DG13 = $DS13), OFFSET($DX13, 0, Monopoly_Edition), \"\")","v":""},{"$f":"IF(AND($CY13 = 4, $DV13 = 1, $DK13 = $DQ13, $DG13 < 5, $DG13 = $DT13), OFFSET($DX13, 0, Monopoly_Edition), \"\")","v":""},{"$f":"IF(AND($CY13 = 4, $DG13 > 0, $DG13 = $DS13), OFFSET($DX13, 0, Monopoly_Edition), \"\")","v":""},{"$f":"IF(AND(CY13 = 1, DR13 = 0, OR(DK13 = DN13, Monopoly_P1_Cash > 2000), (CX13*0.55) < (Monopoly_P1_Cash - 50)), CV13, \"\")","v":""},{"$f":"IF(AND(CY13 = 2, DR13 = 0, OR(DK13 = DO13, Monopoly_P2_Cash > 2000), (CX13*0.55) < (Monopoly_P2_Cash - 50)), CV13, \"\")","v":""},{"$f":"IF(AND(CY13 = 3, DR13 = 0, OR(DK13 = DP13, Monopoly_P3_Cash > 2000), (CX13*0.55) < (Monopoly_P3_Cash - 50)), CV13, \"\")","v":""},{"$f":"IF(AND(CY13 = 4, DR13 = 0, OR(DK13 = DQ13, Monopoly_P4_Cash > 2000), (CX13*0.55) < (Monopoly_P4_Cash - 50)), CV13, \"\")","v":""},null,null,null,null,null,null,null,null,null,null,null,""]
[null,{"$f":"IF($CY16 = 1, OFFSET($DX16, 0, Monopoly_Edition), \"\")","v":""},null,null,null,null,null,null,null,null,{"$f":"IF($CY16 = 2, OFFSET($DX16, 0, Monopoly_Edition), \"\")","v":""},null,null,null,null,null,null,null,null,null,null,null,null,null,null,null,null,null,null,null,null,null,null,null,{"$f":"IF(OR(Monopoly_Die_One = 6), \"l\", \"\")","v":""},{"$f":"IF(OR(Monopoly_Die_One = 3, Monopoly_Die_One = 5, Monopoly_Die_One = 1), \"l\", \"\")","v":""},{"$f":"IF(OR(Monopoly_Die_One = 6), \"l\", \"\")","v":""},null,{"$f":"IF(OR(Monopoly_Die_Two = 6), \"l\", \"\")","v":"l"},{"$f":"IF(OR(Monopoly_Die_Two = 3, Monopoly_Die_Two = 5, Monopoly_Die_Two = 1), \"l\", \"\")","v":""},{"$f":"IF(OR(Monopoly_Die_Two = 6), \"l\", \"\")","v":"l"},null,null,null,null,null,null,null,null,null,null,null,null,null,null,null,null,{"$f":"IF($CY16 = 3, OFFSET($DX16, 0, Monopoly_Edition), \"\")","v":""},null,null,null,null,null,null,null,null,{"$f":"IF($CY16 = 4, OFFSET($DX16, 0, Monopoly_Edition), \"\")","v":""},null,null,null,null,null,null,null,null,null,1,"£",null,"Total Liquidable Assets",{"$f":"SUM(CC11:CC13)","v":1500},{"$f":"SUM(CD11:CD13)","v":1500},{"$f":"SUM(CE11:CE13)","v":1500},{"$f":"SUM(CF11:CF13)","v":1500},null,10,"     You have been elected chairman of the board.\n     Pay each player $50.",11,0.5245670430462821,-50,null,null,null,null,null,null,null,null,null,"Space_St_Charles_Place","Purple",140,"Yes","St. Charles Place",10,50,150,450,625,750,0,{"$f":"IF(AND(CY14=CY16, CY14=CY17, CY17<>\"Yes\"), \"2\", \"1\")","v":"1"},100,7,3,10,8,{"$f":"COUNTIF($CY$14:$CY$17,\"1\")-(IF($CY$15=1,1, 0))","v":0},{"$f":"COUNTIF($CY$14:$CY$17,\"2\")-(IF($CY$15=2,1, 0))","v":0},{"$f":"COUNTIF($CY$14:$CY$17,\"3\")-(IF($CY$15=3,1, 0))","v":0},{"$f":"COUNTIF($CY$14:$CY$17,\"4\")-(IF($CY$15=4, 1, 0))","v":0},1,{"$f":"MAX(DG14,DG16,DG17)","v":0},{"$f":"MIN(DG14,DG16,DG17)","v":0},70,{"$f":"IF(OR(DR14=0, DR16=0, DR17=0), 0, 1)","v":1},{"$f":"CONCATENATE(\"Whole \" &CW14& \" Group\")","v":"Whole Purple Group"},"St. Charles Place","Pall Mall","Istanbul","Glorieta de Bilbao","Manti","St Charls Place","Pall Mall","Istanbul","Glorieta de Bilbao","Manti","","","","","","","","","","","","",{"$f":"CX14+ROW(A11)/100000","v":140.00011000000001},{"$f":"IF(AND(DG14 = 0, OR(CY14 = 2, CY14 = 3, CY14 = 4), DK14 - DN14 = 1), \"A\", IF(AND(DG14 = 0, OR(CY14 = 2, CY14 = 3, CY14 = 4), DN14 = 1, OR(DO14 = 1, DP14 = 1, DQ14 = 1)), \"B\", \"N\"))","v":"N"},{"$f":"IF(AND(DG14 = 0, OR(CY14 = 1, CY14 = 3, CY14 = 4), DK14 - DO14 = 1), \"A\", IF(AND(DG14 = 0, OR(CY14 = 1, CY14 = 3, CY14 = 4), DO14 = 1, OR(DN14 = 1, DP14 = 1, DQ14 = 1)), \"B\", \"N\"))","v":"N"},{"$f":"IF(AND(DG14 = 0, OR(CY14 = 1, CY14 = 2, CY14 = 4), DK14 - DP14 = 1), \"A\", IF(AND(DG14 = 0, OR(CY14 = 1, CY14 = 2, CY14 = 4), DP14 = 1, OR(DN14 = 1, DO14 = 1, DQ14 = 1)), \"B\", \"N\"))","v":"N"},{"$f":"IF(AND(DG14 = 0, OR(CY14 = 1, CY14 = 2, CY14 = 3), DK14 - DQ14 = 1), \"A\", IF(AND(DG14 = 0, OR(CY14 = 1, CY14 = 2, CY14 = 3), DQ14 = 1, OR(DN14 = 1, DO14 = 1, DP14 = 1)), \"B\", \"N\"))","v":"N"},{"$f":"IF(OR(EU14 = \"A\", EV14 = \"A\", EW14 = \"A\", EX14 = \"A\"), \"A\", IF(OR(EU14 = \"B\", EV14 = \"B\", EW14 = \"B\", EX14 = \"B\"), \"B\", \"N\"))","v":"N"},{"$f":"MAX(OR($EY$14 = \"A\", $EY$16 = \"A\", $EY$17 = \"A\") * (EU14 <> \"N\") *  (EU3:EU44 <> EY14) * (Monopoly_Property_Availability = 1) * ($CW$3:$CW$44 <> CW14) * (DK3:DK44 <> DN3:DN44) * $ET$3:$ET$44)","v":0},{"$f":"MAX(OR($EY$14 = \"A\", $EY$16 = \"A\", $EY$17 = \"A\") * (EV14 <> \"N\") *  (EV3:EV44 <> EY14) * (Monopoly_Property_Availability = 2) * ($CW$3:$CW$44 <> CW14) * (DK3:DK44 <> DN3:DN44) * $ET$3:$ET$44)","v":0},{"$f":"MAX(OR($EY$14 = \"A\", $EY$16 = \"A\", $EY$17 = \"A\") * (EW14 <> \"N\") *  (EW3:EW44 <> EY14) * (Monopoly_Property_Availability = 3) * ($CW$3:$CW$44 <> CW14) * (DK3:DK44 <> DN3:DN44) * $ET$3:$ET$44)","v":0},{"$f":"MAX(OR($EY$14 = \"A\", $EY$16 = \"A\", $EY$17 = \"A\") * (EX14 <> \"N\") *  (EX3:EX44 <> EY14) * (Monopoly_Property_Availability = 4) * ($CW$3:$CW$44 <> CW14) * (DK3:DK44 <> DN3:DN44) * $ET$3:$ET$44)","v":0},{"$f":"IF(IF(Monopoly_Active_Player = 1, EZ14 > 0, IF(Monopoly_Active_Player = 2, FA14 > 0, IF(Monopoly_Active_Player = 3, FB14 > 0, IF(Monopoly_Active_Player = 4, FC14 > 0)))), INDEX(Monopoly_Property_Full_Names, MATCH(IF(Monopoly_Active_Player = 1, EZ14, IF(Monopoly_Active_Player = 2, FA14, IF(Monopoly_Active_Player = 3, FB14, IF(Monopoly_Active_Player = 4, FC14)))), Monopoly_Property_Table[51 - Dummy Value], 0)), \"\")","v":""},{"$f":"IF(FD14 <> \"\", ROUND(IF(Monopoly_Active_Player = 1, EZ14, IF(Monopoly_Active_Player = 2, FA14, IF(Monopoly_Active_Player = 3, FB14, IF(Monopoly_Active_Player = 4, FC14)))), 0)  - CX14, \"\")","v":""}]
[null,{"$f":"IF($CY17 = 1, OFFSET($DX17, 0, Monopoly_Edition), \"\")","v":""},null,null,null,null,null,null,null,null,{"$f":"IF($CY17 = 2, OFFSET($DX17, 0, Monopoly_Edition), \"\")","v":""},null,null,null,null,null,null,null,null,null,null,null,null,null,null,null,null,null,null,null,null,null,null,null,{"$f":"IF(OR(Monopoly_Die_One = 3, Monopoly_Die_One = 4, Monopoly_Die_One = 5, Monopoly_Die_One = 6), \"l\", \"\")","v":"l"},null,{"$f":"IF(OR(Monopoly_Die_One = 2, Monopoly_Die_One = 4, Monopoly_Die_One = 5, Monopoly_Die_One = 6), \"l\", \"\")","v":"l"},6,{"$f":"IF(OR(Monopoly_Die_Two = 3, Monopoly_Die_Two = 4, Monopoly_Die_Two = 5, Monopoly_Die_Two = 6), \"l\", \"\")","v":"l"},null,{"$f":"IF(OR(Monopoly_Die_Two = 2, Monopoly_Die_Two = 4, Monopoly_Die_Two = 5, Monopoly_Die_Two = 6), \"l\", \"\")","v":"l"},null,null,null,null,null,null,null,null,null,null,null,null,null,null,null,null,{"$f":"IF($CY17 = 3, OFFSET($DX17, 0, Monopoly_Edition), \"\")","v":""},null,null,null,null,null,null,null,null,{"$f":"IF($CY17 = 4, OFFSET($DX17, 0, Monopoly_Edition), \"\")","v":""},null,null,null,null,null,null,null,null,null,2,"ᵯ",null,"Total Assets",{"$f":"SUM(CC11:CC12,CC13*2) + SUMIF(Monopoly_Property_Availability, 1, CX3:CX44)  / 2","v":1500},{"$f":"SUM(CD11:CD12,CD13*2) + SUMIF(Monopoly_Property_Availability, 2, CX3:CX44)  / 2","v":1500},{"$f":"SUM(CE11:CE12,CE13*2) + SUMIF(Monopoly_Property_Availability, 3, CX3:CX44)  / 2","v":1500},{"$f":"SUM(CF11:CF12,CF13*2) + SUMIF(Monopoly_Property_Availability, 4, CX3:CX44)  / 2","v":1500},null,11,"     Advance token to the nearest Railroad\n     and pay owner TWICE the rental to which\n      he/she is otherwise entitled.\n\n     If Railroad is UNOWNED, you may buy it\n     from the Bank.",8,0.75167630471937952,null,null,null,null,null,null,null,null,null,null,"Space_Electric_Company",null,150,"Yes","Electric Company",{"$f":"Monopoly_Die_One + Monopoly_Die_Two","v":10},null,null,null,null,null,0,{"$f":"IF(AND(CY15=CY31, CY15<>\"Yes\"), \"10\", \"4\")","v":"4"},null,null,null,null,null,null,null,null,null,1,null,null,75,null,null,"Electric Company","Electric Company","Solar Energy","Compañía de Electricidad","Candle Light","Electric Comp","Electric Comp","Solar Energy","C'mpañía El'ctric'd","Candle Light",{"$f":"IF(AND($CY15 = 1, $DV15 = 1, $DK15 = $DN15, $DG15 < 5, $DG15 = $DT15), OFFSET($DX15, 0, Monopoly_Edition), \"\")","v":""},{"$f":"IF(AND($CY15 = 1, $DG15 > 0, $DG15 = $DS15), OFFSET($DX15, 0, Monopoly_Edition), \"\")","v":""},{"$f":"IF(AND($CY15 = 2, $DV15 = 1, $DK15 = $DO15, $DG15 < 5, $DG15 = $DT15), OFFSET($DX15, 0, Monopoly_Edition), \"\")","v":""},{"$f":"IF(AND($CY15 = 2, $DG15 > 0, $DG15 = $DS15), OFFSET($DX15, 0, Monopoly_Edition), \"\")","v":""},{"$f":"IF(AND($CY15 = 3, $DV15 = 1, $DK15 = $DP15, $DG15 < 5, $DG15 = $DT15), OFFSET($DX15, 0, Monopoly_Edition), \"\")","v":""},{"$f":"IF(AND($CY15 = 3, $DG15 > 0, $DG15 = $DS15), OFFSET($DX15, 0, Monopoly_Edition), \"\")","v":""},{"$f":"IF(AND($CY15 = 4, $DV15 = 1, $DK15 = $DQ15, $DG15 < 5, $DG15 = $DT15), OFFSET($DX15, 0, Monopoly_Edition), \"\")","v":""},{"$f":"IF(AND($CY15 = 4, $DG15 > 0, $DG15 = $DS15), OFFSET($DX15, 0, Monopoly_Edition), \"\")","v":""},{"$f":"IF(AND(CY15 = 1, DR15 = 0, OR(DK15 = DN15, Monopoly_P1_Cash > 2000), (CX15*0.55) < (Monopoly_P1_Cash - 50)), CV15, \"\")","v":""},{"$f":"IF(AND(CY15 = 2, DR15 = 0, OR(DK15 = DO15, Monopoly_P2_Cash > 2000), (CX15*0.55) < (Monopoly_P2_Cash - 50)), CV15, \"\")","v":""},{"$f":"IF(AND(CY15 = 3, DR15 = 0, OR(DK15 = DP15, Monopoly_P3_Cash > 2000), (CX15*0.55) < (Monopoly_P3_Cash - 50)), CV15, \"\")","v":""},{"$f":"IF(AND(CY15 = 4, DR15 = 0, OR(DK15 = DQ15, Monopoly_P4_Cash > 2000), (CX15*0.55) < (Monopoly_P4_Cash - 50)), CV15, \"\")","v":""},150.00012000000001,"N","N","N","N","N",null,null,null,null,{"$f":"IF(IF(Monopoly_Active_Player = 1, EZ15 > 0, IF(Monopoly_Active_Player = 2, FA15 > 0, IF(Monopoly_Active_Player = 3, FB15 > 0, IF(Monopoly_Active_Player = 4, FC15 > 0)))), INDEX(Monopoly_Property_Full_Names, MATCH(IF(Monopoly_Active_Player = 1, EZ15, IF(Monopoly_Active_Player = 2, FA15, IF(Monopoly_Active_Player = 3, FB15, IF(Monopoly_Active_Player = 4, FC15)))), Monopoly_Property_Table[51 - Dummy Value], 0)), \"\")","v":""},""]
[null,{"$f":"IF($CY19 = 1, OFFSET($DX19, 0, Monopoly_Edition), \"\")","v":""},null,null,null,null,null,null,null,null,{"$f":"IF($CY19 = 2, OFFSET($DX19, 0, Monopoly_Edition), \"\")","v":""},null,null,null,null,null,null,null,null,null,null,{"$f":"IF(CY19=\"Yes\",Monopoly_Currency&CX19,IF(DR19=0,\"Mort P\",\"Sold P\")&CY19)","v":"$180"},{"$f":"OFFSET($EC19, 0, Monopoly_Edition)","v":"St James Place"},null,null,null,null,null,null,null,null,null,null,null,null,null,null,null,null,null,null,null,null,null,null,null,null,null,null,null,null,{"$f":"OFFSET($EC37, 0, Monopoly_Edition)","v":"Penn'ia Avenue"},null,{"$f":"IF(CY37=\"Yes\",Monopoly_Currency&CX37,IF(DR37=0,\"Mort P\",\"Sold P\")&CY37)","v":"$320"},null,null,null,{"$f":"IF($CY19 = 3, OFFSET($DX19, 0, Monopoly_Edition), \"\")","v":""},null,null,null,null,null,null,null,null,{"$f":"IF($CY19 = 4, OFFSET($DX19, 0, Monopoly_Edition), \"\")","v":""},null,null,null,null,null,null,null,null,null,3,"₡",null,"Tax Liability",{"$f":"MIN(200, ROUND(Monopoly_P1_Total_Assets * 0.1, 0))","v":150},{"$f":"MIN(200, ROUND(Monopoly_P2_Total_Assets * 0.1, 0))","v":150},{"$f":"MIN(200, ROUND(Monopoly_P3_Total_Assets * 0.1, 0))","v":150},{"$f":"MIN(200, ROUND(Monopoly_P4_Total_Assets * 0.1, 0))","v":150},null,12,"     Bank pays you dividend of $50.",12,0.1373140917770469,50,null,null,null,null,null,null,null,null,null,"Space_States_Avenue","Purple",140,"Yes","States Avenue",10,50,150,450,625,750,0,{"$f":"IF(AND(CY14=CY16, CY14=CY17, CY16<>\"Yes\"), \"2\", \"1\")","v":"1"},100,7,3,10,8,{"$f":"COUNTIF($CY$14:$CY$17,\"1\")-(IF($CY$15=1,1))","v":0},{"$f":"COUNTIF($CY$14:$CY$17,\"2\")-(IF($CY$15=2,1))","v":0},{"$f":"COUNTIF($CY$14:$CY$17,\"3\")-(IF($CY$15=3,1))","v":0},{"$f":"COUNTIF($CY$14:$CY$17,\"4\")-(IF($CY$15=4, 1))","v":0},1,{"$f":"MAX(DG14,DG16,DG17)","v":0},{"$f":"MIN(DG14,DG16,DG17)","v":0},70,{"$f":"IF(OR(DR16=0, DR17=0, DR14=0), 0, 1)","v":1},{"$f":"CONCATENATE(\"Whole \" &CW16& \" Group\")","v":"Whole Purple Group"},"States Avenue","Whitehall","Kyiv","Calle Alberto Aguilera","Tabernacle","States Avenue","Whitehall","Kyiv","Alberto Aguilera","Tabrn'cle","","","","","","","","","","","","",140.00013000000001,"N","N","N","N","N",{"$f":"MAX(OR($EY$14 = \"A\", $EY$16 = \"A\", $EY$17 = \"A\") * (EU16 <> \"N\") *  (EU3:EU44 <> EY16) * (Monopoly_Property_Availability = 1) * ($CW$3:$CW$44 <> CW16) * (DK3:DK44 <> DN3:DN44) * $ET$3:$ET$44)","v":0},{"$f":"MAX(OR($EY$14 = \"A\", $EY$16 = \"A\", $EY$17 = \"A\") * (EV16 <> \"N\") *  (EV3:EV44 <> EY16) * (Monopoly_Property_Availability = 2) * ($CW$3:$CW$44 <> CW16) * (DK3:DK44 <> DN3:DN44) * $ET$3:$ET$44)","v":0},{"$f":"MAX(OR($EY$14 = \"A\", $EY$16 = \"A\", $EY$17 = \"A\") * (EW16 <> \"N\") *  (EW3:EW44 <> EY16) * (Monopoly_Property_Availability = 3) * ($CW$3:$CW$44 <> CW16) * (DK3:DK44 <> DN3:DN44) * $ET$3:$ET$44)","v":0},{"$f":"MAX(OR($EY$14 = \"A\", $EY$16 = \"A\", $EY$17 = \"A\") * (EX16 <> \"N\") *  (EX3:EX44 <> EY16) * (Monopoly_Property_Availability = 4) * ($CW$3:$CW$44 <> CW16) * (DK3:DK44 <> DN3:DN44) * $ET$3:$ET$44)","v":0},{"$f":"IF(IF(Monopoly_Active_Player = 1, EZ16 > 0, IF(Monopoly_Active_Player = 2, FA16 > 0, IF(Monopoly_Active_Player = 3, FB16 > 0, IF(Monopoly_Active_Player = 4, FC16 > 0)))), INDEX(Monopoly_Property_Full_Names, MATCH(IF(Monopoly_Active_Player = 1, EZ16, IF(Monopoly_Active_Player = 2, FA16, IF(Monopoly_Active_Player = 3, FB16, IF(Monopoly_Active_Player = 4, FC16)))), Monopoly_Property_Table[51 - Dummy Value], 0)), \"\")","v":""},{"$f":"IF(FD16 <> \"\", ROUND(IF(Monopoly_Active_Player = 1, EZ16, IF(Monopoly_Active_Player = 2, FA16, IF(Monopoly_Active_Player = 3, FB16, IF(Monopoly_Active_Player = 4, FC16)))), 0)  - CX16, \"\")","v":""}]
[null,{"$f":"IF($CY21 = 1, OFFSET($DX21, 0, Monopoly_Edition), \"\")","v":""},null,null,null,null,null,null,null,null,{"$f":"IF($CY21 = 2, OFFSET($DX21, 0, Monopoly_Edition), \"\")","v":""},null,null,null,null,null,null,null,null,null,null,null,null,null,null,null,null,null,null,null,null,null,null,null,null,null,null,null,null,null,null,null,null,null,null,null,null,null,null,null,null,null,null,null,null,null,null,{"$f":"IF($CY21 = 3, OFFSET($DX21, 0, Monopoly_Edition), \"\")","v":""},null,null,null,null,null,null,null,null,{"$f":"IF($CY21 = 4, OFFSET($DX21, 0, Monopoly_Edition), \"\")","v":""},null,null,null,null,null,null,null,null,null,4,"$",null,"Dice Doubles Count",0,0,0,0,null,13,{"$f":"\"     Take a ride on the \" & OFFSET($DX$8, 0, Monopoly_Edition) & \".\n     If you pass Go collect $200.\"","v":"     Take a ride on the Reading Railroad.\n     If you pass Go collect $200."},6,0.79117495064692533,"Space_Reading_Railroad",null,null,null,null,null,null,null,null,null,"Space_Virginia_Avenue","Purple",160,"Yes","Virginia Avenue",12,60,180,500,700,900,0,{"$f":"IF(AND(CY16=CY17, CY16=CY14, CY17<>\"Yes\"), \"2\", \"1\")","v":"1"},100,7,3,10,8,{"$f":"COUNTIF($CY$14:$CY$17,\"1\")-(IF($CY$15=1,1))","v":0},{"$f":"COUNTIF($CY$14:$CY$17,\"2\")-(IF($CY$15=2,1))","v":0},{"$f":"COUNTIF($CY$14:$CY$17,\"3\")-(IF($CY$15=3, 1))","v":0},{"$f":"COUNTIF($CY$14:$CY$17,\"4\")-(IF($CY$15=4, 1))","v":0},1,{"$f":"MAX(DG14,DG16,DG17)","v":0},{"$f":"MIN(DG14,DG16,DG17)","v":0},80,{"$f":"IF(OR(DR17=0, DR16=0, DR14=0), 0, 1)","v":1},{"$f":"CONCATENATE(\"Whole \" &CW17& \" Group\")","v":"Whole Purple Group"},"Virginia Avenue","Northumberland Avenue","Toronto","Calle Fuencarral","St. George","Virginia Avenue","North'lnd Avenue","Toronto","Calle Fuenc'rral","St. George",{"$f":"IF(AND($CY17 = 1, $DV17 = 1, $DK17 = $DN17, $DG17 < 5, $DG17 = $DT17), OFFSET($DX17, 0, Monopoly_Edition), \"\")","v":""},{"$f":"IF(AND($CY17 = 1, $DG17 > 0, $DG17 = $DS17), OFFSET($DX17, 0, Monopoly_Edition), \"\")","v":""},{"$f":"IF(AND($CY17 = 2, $DV17 = 1, $DK17 = $DO17, $DG17 < 5, $DG17 = $DT17), OFFSET($DX17, 0, Monopoly_Edition), \"\")","v":""},{"$f":"IF(AND($CY17 = 2, $DG17 > 0, $DG17 = $DS17), OFFSET($DX17, 0, Monopoly_Edition), \"\")","v":""},{"$f":"IF(AND($CY17 = 3, $DV17 = 1, $DK17 = $DP17, $DG17 < 5, $DG17 = $DT17), OFFSET($DX17, 0, Monopoly_Edition), \"\")","v":""},{"$f":"IF(AND($CY17 = 3, $DG17 > 0, $DG17 = $DS17), OFFSET($DX17, 0, Monopoly_Edition), \"\")","v":""},{"$f":"IF(AND($CY17 = 4, $DV17 = 1, $DK17 = $DQ17, $DG17 < 5, $DG17 = $DT17), OFFSET($DX17, 0, Monopoly_Edition), \"\")","v":""},{"$f":"IF(AND($CY17 = 4, $DG17 > 0, $DG17 = $DS17), OFFSET($DX17, 0, Monopoly_Edition), \"\")","v":""},{"$f":"IF(AND(CY17 = 1, DR17 = 0, OR(DK17 = DN17, Monopoly_P1_Cash > 2000), (CX17*0.55) < (Monopoly_P1_Cash - 50)), CV17, \"\")","v":""},{"$f":"IF(AND(CY17 = 2, DR17 = 0, OR(DK17 = DO17, Monopoly_P2_Cash > 2000), (CX17*0.55) < (Monopoly_P2_Cash - 50)), CV17, \"\")","v":""},{"$f":"IF(AND(CY17 = 3, DR17 = 0, OR(DK17 = DP17, Monopoly_P3_Cash > 2000), (CX17*0.55) < (Monopoly_P3_Cash - 50)), CV17, \"\")","v":""},{"$f":"IF(AND(CY17 = 4, DR17 = 0, OR(DK17 = DQ17, Monopoly_P4_Cash > 2000), (CX17*0.55) < (Monopoly_P4_Cash - 50)), CV17, \"\")","v":""},160.00013999999999,"N","N","N","N","N",{"$f":"MAX(OR($EY$14 = \"A\", $EY$16 = \"A\", $EY$17 = \"A\") * (EU17 <> \"N\") *  (EU3:EU44 <> EY17) * (Monopoly_Property_Availability = 1) * ($CW$3:$CW$44 <> CW17) * (DK3:DK44 <> DN3:DN44) * $ET$3:$ET$44)","v":0},{"$f":"MAX(OR($EY$14 = \"A\", $EY$16 = \"A\", $EY$17 = \"A\") * (EV17 <> \"N\") *  (EV3:EV44 <> EY17) * (Monopoly_Property_Availability = 2) * ($CW$3:$CW$44 <> CW17) * (DK3:DK44 <> DN3:DN44) * $ET$3:$ET$44)","v":0},{"$f":"MAX(OR($EY$14 = \"A\", $EY$16 = \"A\", $EY$17 = \"A\") * (EW17 <> \"N\") *  (EW3:EW44 <> EY17) * (Monopoly_Property_Availability = 3) * ($CW$3:$CW$44 <> CW17) * (DK3:DK44 <> DN3:DN44) * $ET$3:$ET$44)","v":0},{"$f":"MAX(OR($EY$14 = \"A\", $EY$16 = \"A\", $EY$17 = \"A\") * (EX17 <> \"N\") *  (EX3:EX44 <> EY17) * (Monopoly_Property_Availability = 4) * ($CW$3:$CW$44 <> CW17) * (DK3:DK44 <> DN3:DN44) * $ET$3:$ET$44)","v":0},{"$f":"IF(IF(Monopoly_Active_Player = 1, EZ17 > 0, IF(Monopoly_Active_Player = 2, FA17 > 0, IF(Monopoly_Active_Player = 3, FB17 > 0, IF(Monopoly_Active_Player = 4, FC17 > 0)))), INDEX(Monopoly_Property_Full_Names, MATCH(IF(Monopoly_Active_Player = 1, EZ17, IF(Monopoly_Active_Player = 2, FA17, IF(Monopoly_Active_Player = 3, FB17, IF(Monopoly_Active_Player = 4, FC17)))), Monopoly_Property_Table[51 - Dummy Value], 0)), \"\")","v":""},{"$f":"IF(FD17 <> \"\", ROUND(IF(Monopoly_Active_Player = 1, EZ17, IF(Monopoly_Active_Player = 2, FA17, IF(Monopoly_Active_Player = 3, FB17, IF(Monopoly_Active_Player = 4, FC17)))), 0)  - CX17, \"\")","v":""}]
[null,{"$f":"IF($CY22 = 1, OFFSET($DX22, 0, Monopoly_Edition), \"\")","v":""},null,null,null,null,null,null,null,null,{"$f":"IF($CY22 = 2, OFFSET($DX22, 0, Monopoly_Edition), \"\")","v":""},null,null,null,null,null,null,null,null,null,null,null,null,null,null,null,"History of Active Player",null,null,null,null,null,null,null,null,null,null,null,null,"Current Status",null,null,null,null,null,null,null,null,null,null,null,null,null,null,null,null,null,{"$f":"IF($CY22 = 3, OFFSET($DX22, 0, Monopoly_Edition), \"\")","v":""},null,null,null,null,null,null,null,null,{"$f":"IF($CY22 = 4, OFFSET($DX22, 0, Monopoly_Edition), \"\")","v":""},null,null,null,null,null,null,null,null,null,null,null,null,"Jail Escape Roll Count",0,0,0,0,null,14,"     Your building loan matures.\n     Collect $150.",12,0.14427305111631794,150,null,null,null,null,null,null,null,null,null,"Space_Pennsylvania_Railroad",null,200,"Yes","Pennsylvania Railroad",25,{"$f":"IF(CY18=\"Yes\", \"\", CY18)","v":""},{"$f":"CY$8","v":"Yes"},{"$f":"CY$28","v":"Yes"},{"$f":"CY$38","v":"Yes"},{"$f":"COUNTIF(DC18:DE18, DB18)+1","v":1},0,{"$f":"2^(DF18-1)","v":1},null,null,null,null,null,null,null,null,null,1,null,null,100,null,null,"Pennsylvania Railroad","Marylebone Station","Monopoly Air","Estación de Pennsylvania","Horse Buggy","Penn'ia Railroad","Mary'bone Station","Monop'ly Air","Estación Penn'ia","Horse Buggy",{"$f":"IF(AND($CY18 = 1, $DV18 = 1, $DK18 = $DN18, $DG18 < 5, $DG18 = $DT18), OFFSET($DX18, 0, Monopoly_Edition), \"\")","v":""},{"$f":"IF(AND($CY18 = 1, $DG18 > 0, $DG18 = $DS18), OFFSET($DX18, 0, Monopoly_Edition), \"\")","v":""},{"$f":"IF(AND($CY18 = 2, $DV18 = 1, $DK18 = $DO18, $DG18 < 5, $DG18 = $DT18), OFFSET($DX18, 0, Monopoly_Edition), \"\")","v":""},{"$f":"IF(AND($CY18 = 2, $DG18 > 0, $DG18 = $DS18), OFFSET($DX18, 0, Monopoly_Edition), \"\")","v":""},{"$f":"IF(AND($CY18 = 3, $DV18 = 1, $DK18 = $DP18, $DG18 < 5, $DG18 = $DT18), OFFSET($DX18, 0, Monopoly_Edition), \"\")","v":""},{"$f":"IF(AND($CY18 = 3, $DG18 > 0, $DG18 = $DS18), OFFSET($DX18, 0, Monopoly_Edition), \"\")","v":""},{"$f":"IF(AND($CY18 = 4, $DV18 = 1, $DK18 = $DQ18, $DG18 < 5, $DG18 = $DT18), OFFSET($DX18, 0, Monopoly_Edition), \"\")","v":""},{"$f":"IF(AND($CY18 = 4, $DG18 > 0, $DG18 = $DS18), OFFSET($DX18, 0, Monopoly_Edition), \"\")","v":""},{"$f":"IF(AND(CY18 = 1, DR18 = 0, OR(DK18 = DN18, Monopoly_P1_Cash > 2000), (CX18*0.55) < (Monopoly_P1_Cash - 50)), CV18, \"\")","v":""},{"$f":"IF(AND(CY18 = 2, DR18 = 0, OR(DK18 = DO18, Monopoly_P2_Cash > 2000), (CX18*0.55) < (Monopoly_P2_Cash - 50)), CV18, \"\")","v":""},{"$f":"IF(AND(CY18 = 3, DR18 = 0, OR(DK18 = DP18, Monopoly_P3_Cash > 2000), (CX18*0.55) < (Monopoly_P3_Cash - 50)), CV18, \"\")","v":""},{"$f":"IF(AND(CY18 = 4, DR18 = 0, OR(DK18 = DQ18, Monopoly_P4_Cash > 2000), (CX18*0.55) < (Monopoly_P4_Cash - 50)), CV18, \"\")","v":""},200.00014999999999,"N","N","N","N","N",null,null,null,null,{"$f":"IF(IF(Monopoly_Active_Player = 1, EZ18 > 0, IF(Monopoly_Active_Player = 2, FA18 > 0, IF(Monopoly_Active_Player = 3, FB18 > 0, IF(Monopoly_Active_Player = 4, FC18 > 0)))), INDEX(Monopoly_Property_Full_Names, MATCH(IF(Monopoly_Active_Player = 1, EZ18, IF(Monopoly_Active_Player = 2, FA18, IF(Monopoly_Active_Player = 3, FB18, IF(Monopoly_Active_Player = 4, FC18)))), Monopoly_Property_Table[51 - Dummy Value], 0)), \"\")","v":""},""]
[null,{"$f":"IF($CY24 = 1, OFFSET($DX24, 0, Monopoly_Edition), \"\")","v":""},null,null,null,null,null,null,null,null,{"$f":"IF($CY24 = 2, OFFSET($DX24, 0, Monopoly_Edition), \"\")","v":""},null,null,null,null,null,null,null,null,null,null,{"$f":"IF(CY18=\"Yes\",Monopoly_Currency&CX18,IF(DR18=0,\"Mort P\",\"Sold P\")&CY18)","v":"$200"},{"$f":"OFFSET($EC18, 0, Monopoly_Edition)","v":"Penn'ia Railroad"},null,null,3,{"$f":"\"Active Player: \" & Monopoly_Active_Player","v":"Active Player: 3"},null,null,null,null,null,null,null,null,{"$f":"IF(Monopoly_Die_One = Monopoly_Die_Two, \"DOUBLE\", \"\")","v":""},null,null,null,"Ready",null,null,null,null,null,null,null,null,null,null,null,{"$f":"OFFSET($EC38, 0, Monopoly_Edition)","v":"Short Line Railroad"},null,{"$f":"IF(CY38=\"Yes\",Monopoly_Currency&CX38,IF(DR38=0,\"Mort P\",\"Sold P\")&CY38)","v":"$200"},null,null,null,{"$f":"IF($CY24 = 3, OFFSET($DX24, 0, Monopoly_Edition), \"\")","v":""},null,null,null,null,null,null,null,null,{"$f":"IF($CY24 = 4, OFFSET($DX24, 0, Monopoly_Edition), \"\")","v":""},null,null,null,null,null,null,null,null,null,"Total Houses",32,null,"Bankrupt",false,false,false,false,null,15,"     Go directly to Jail.\n     Do not pass Go.\n     Do not collect $200.",5,8.6728387336759694E-2,null,null,null,null,null,null,null,null,null,null,"Space_St_James_Place","Orange",180,"Yes","St. James Place",14,70,200,550,750,950,0,{"$f":"IF(AND(CY21=CY19, CY21=CY22, CY19<>\"Yes\"), \"2\", \"1\")","v":"1"},100,45,3,10,8,{"$f":"COUNTIF($CY$19:$CY$22, \"1\")","v":0},{"$f":"COUNTIF($CY$19:$CY$22, \"2\")","v":0},{"$f":"COUNTIF($CY$19:$CY$22, \"3\")","v":0},{"$f":"COUNTIF($CY$19:$CY$22, \"4\")","v":0},1,{"$f":"MAX(DG19,DG21,DG22)","v":0},{"$f":"MIN(DG19,DG21,DG22)","v":0},90,{"$f":"IF(OR(DR19=0, DR21=0, DR22=0), 0, 1)","v":1},{"$f":"CONCATENATE(\"Whole \" &CW19& \" Group\")","v":"Whole Orange Group"},"St. James Place","Bow Street","Rome","Calle San Diego","Harmony","St James Place","Bow Street","Rome","Calle San Diego","Harmony","","","","","","","","","","","","",180.00015999999999,"N","N","N","N","N",{"$f":"MAX(OR($EY$19 = \"A\", $EY$21 = \"A\", $EY$22 = \"A\") * (EU19 <> \"N\") *  (EU3:EU44 <> EY19) * (Monopoly_Property_Availability = 1) * ($CW$3:$CW$44 <> CW19) * (DK3:DK44 <> DN3:DN44) * $ET$3:$ET$44)","v":0},{"$f":"MAX(OR($EY$19 = \"A\", $EY$21 = \"A\", $EY$22 = \"A\") * (EV19 <> \"N\") *  (EV3:EV44 <> EY19) * (Monopoly_Property_Availability = 2) * ($CW$3:$CW$44 <> CW19) * (DK3:DK44 <> DN3:DN44) * $ET$3:$ET$44)","v":0},{"$f":"MAX(OR($EY$19 = \"A\", $EY$21 = \"A\", $EY$22 = \"A\") * (EW19 <> \"N\") *  (EW3:EW44 <> EY19) * (Monopoly_Property_Availability = 3) * ($CW$3:$CW$44 <> CW19) * (DK3:DK44 <> DN3:DN44) * $ET$3:$ET$44)","v":0},{"$f":"MAX(OR($EY$19 = \"A\", $EY$21 = \"A\", $EY$22 = \"A\") * (EX19 <> \"N\") *  (EX3:EX44 <> EY19) * (Monopoly_Property_Availability = 4) * ($CW$3:$CW$44 <> CW19) * (DK3:DK44 <> DN3:DN44) * $ET$3:$ET$44)","v":0},{"$f":"IF(IF(Monopoly_Active_Player = 1, EZ19 > 0, IF(Monopoly_Active_Player = 2, FA19 > 0, IF(Monopoly_Active_Player = 3, FB19 > 0, IF(Monopoly_Active_Player = 4, FC19 > 0)))), INDEX(Monopoly_Property_Full_Names, MATCH(IF(Monopoly_Active_Player = 1, EZ19, IF(Monopoly_Active_Player = 2, FA19, IF(Monopoly_Active_Player = 3, FB19, IF(Monopoly_Active_Player = 4, FC19)))), Monopoly_Property_Table[51 - Dummy Value], 0)), \"\")","v":""},{"$f":"IF(FD19 <> \"\", ROUND(IF(Monopoly_Active_Player = 1, EZ19, IF(Monopoly_Active_Player = 2, FA19, IF(Monopoly_Active_Player = 3, FB19, IF(Monopoly_Active_Player = 4, FC19)))), 0)  - CX19, \"\")","v":""}]
[null,{"$f":"IF($CY26 = 1, OFFSET($DX26, 0, Monopoly_Edition), \"\")","v":""},null,null,null,null,null,null,null,null,{"$f":"IF($CY26 = 2, OFFSET($DX26, 0, Monopoly_Edition), \"\")","v":""},null,null,null,null,null,null,null,null,null,null,null,null,null,null,4,null,null,null,null,null,null,null,null,null,null,null,null,null,null,null,null,null,null,null,null,null,null,null,null,null,null,null,null,null,null,null,{"$f":"IF($CY26 = 3, OFFSET($DX26, 0, Monopoly_Edition), \"\")","v":""},null,null,null,null,null,null,null,null,{"$f":"IF($CY26 = 4, OFFSET($DX26, 0, Monopoly_Edition), \"\")","v":""},null,null,null,null,null,null,null,null,null,"Total Hotels",12,null,"Computer Player",{"$f":"IF($B$2=\"Player 1\",FALSE,TRUE)","v":false},{"$f":"IF($K$2=\"Player 2\",FALSE,TRUE)","v":false},{"$f":"IF($BF$2=\"Player 3\",FALSE,TRUE)","v":false},{"$f":"IF($BO$2=\"Player 4\",FALSE,TRUE)","v":false},null,16,"     Pay poor tax of $15.",12,0.88172889117372411,-15,null,null,null,null,null,null,null,null,null,"Space_Comm_Chest_Two",null,null,"NA","Community Chest",null,null,null,null,null,null,0,null,null,null,null,null,null,null,null,null,null,1,null,null,0,null,null,"Community Chest","Community Chest","Community Chest","Caja de Comunidad","Ward Activity","Comm Chest","Comm Chest","Comm Chest","Caja Com'd","Ward Actvity",{"$f":"IF(AND($CY20 = 1, $DV20 = 1, $DK20 = $DN20, $DG20 < 5, $DG20 = $DT20), OFFSET($DX20, 0, Monopoly_Edition), \"\")","v":""},{"$f":"IF(AND($CY20 = 1, $DG20 > 0, $DG20 = $DS20), OFFSET($DX20, 0, Monopoly_Edition), \"\")","v":""},{"$f":"IF(AND($CY20 = 2, $DV20 = 1, $DK20 = $DO20, $DG20 < 5, $DG20 = $DT20), OFFSET($DX20, 0, Monopoly_Edition), \"\")","v":""},{"$f":"IF(AND($CY20 = 2, $DG20 > 0, $DG20 = $DS20), OFFSET($DX20, 0, Monopoly_Edition), \"\")","v":""},{"$f":"IF(AND($CY20 = 3, $DV20 = 1, $DK20 = $DP20, $DG20 < 5, $DG20 = $DT20), OFFSET($DX20, 0, Monopoly_Edition), \"\")","v":""},{"$f":"IF(AND($CY20 = 3, $DG20 > 0, $DG20 = $DS20), OFFSET($DX20, 0, Monopoly_Edition), \"\")","v":""},{"$f":"IF(AND($CY20 = 4, $DV20 = 1, $DK20 = $DQ20, $DG20 < 5, $DG20 = $DT20), OFFSET($DX20, 0, Monopoly_Edition), \"\")","v":""},{"$f":"IF(AND($CY20 = 4, $DG20 > 0, $DG20 = $DS20), OFFSET($DX20, 0, Monopoly_Edition), \"\")","v":""},{"$f":"IF(AND(CY20 = 1, DR20 = 0, OR(DK20 = DN20, Monopoly_P1_Cash > 2000), (CX20*0.55) < (Monopoly_P1_Cash - 50)), CV20, \"\")","v":""},{"$f":"IF(AND(CY20 = 2, DR20 = 0, OR(DK20 = DO20, Monopoly_P2_Cash > 2000), (CX20*0.55) < (Monopoly_P2_Cash - 50)), CV20, \"\")","v":""},{"$f":"IF(AND(CY20 = 3, DR20 = 0, OR(DK20 = DP20, Monopoly_P3_Cash > 2000), (CX20*0.55) < (Monopoly_P3_Cash - 50)), CV20, \"\")","v":""},{"$f":"IF(AND(CY20 = 4, DR20 = 0, OR(DK20 = DQ20, Monopoly_P4_Cash > 2000), (CX20*0.55) < (Monopoly_P4_Cash - 50)), CV20, \"\")","v":""},null,null,null,null,null,null,null,null,null,null,null,""]
[null,{"$f":"IF($CY27 = 1, OFFSET($DX27, 0, Monopoly_Edition), \"\")","v":""},null,null,null,null,null,null,null,null,{"$f":"IF($CY27 = 2, OFFSET($DX27, 0, Monopoly_Edition), \"\")","v":""},null,null,null,null,null,null,null,null,null,null,null,null,null,null,1,null,null,null,null,null,null,null,null,null,null,null,null,null,null,null,null,null,null,null,null,null,null,null,null,null,null,null,null,null,null,null,{"$f":"IF($CY27 = 3, OFFSET($DX27, 0, Monopoly_Edition), \"\")","v":""},null,null,null,null,null,null,null,null,{"$f":"IF($CY27 = 4, OFFSET($DX27, 0, Monopoly_Edition), \"\")","v":""},null,null,null,null,null,null,null,null,null,null,null,null,null,null,null,null,null,null,17,{"$f":"\"     Advance to \" & OFFSET($DX$14, 0, Monopoly_Edition) & \".\n     If you pass GO collect $200.\"","v":"     Advance to St. Charles Place.\n     If you pass GO collect $200."},6,0.6487285287096427,"Space_St_Charles_Place",null,null,null,null,null,null,null,null,null,"Space_Tennessee_Avenue","Orange",180,"Yes","Tennessee Avenue",14,70,200,550,750,950,0,{"$f":"IF(AND(CY22=CY21, CY22=CY19, CY21<>\"Yes\"), \"2\", \"1\")","v":"1"},100,45,3,10,8,{"$f":"COUNTIF($CY$19:$CY$22, \"1\")","v":0},{"$f":"COUNTIF($CY$19:$CY$22, \"2\")","v":0},{"$f":"COUNTIF($CY$19:$CY$22, \"3\")","v":0},{"$f":"COUNTIF($CY$19:$CY$22, \"4\")","v":0},1,{"$f":"MAX(DG19,DG21,DG22)","v":0},{"$f":"MIN(DG19,DG21,DG22)","v":0},90,{"$f":"IF(OR(DR21=0, DR22=0, DR19=0), 0, 1)","v":1},{"$f":"CONCATENATE(\"Whole \" &CW21& \" Group\")","v":"Whole Orange Group"},"Tennessee Avenue","Marlborough Street","Shanghai","Calle Velázquez","Fayette","Ten'essee Avenue","Marlboro Street","Shanghai","Calle Vel'zquez","Fayette","","","","","","","","","","","","",{"$f":"CX21+ROW(A18)/100000","v":180.00018},{"$f":"IF(AND(DG21 = 0, OR(CY21 = 2, CY21 = 3, CY21 = 4), DK21 - DN21 = 1), \"A\", IF(AND(DG21 = 0, OR(CY21 = 2, CY21 = 3, CY21 = 4), DN21 = 1, OR(DO21 = 1, DP21 = 1, DQ21 = 1)), \"B\", \"N\"))","v":"N"},{"$f":"IF(AND(DG21 = 0, OR(CY21 = 1, CY21 = 3, CY21 = 4), DK21 - DO21 = 1), \"A\", IF(AND(DG21 = 0, OR(CY21 = 1, CY21 = 3, CY21 = 4), DO21 = 1, OR(DN21 = 1, DP21 = 1, DQ21 = 1)), \"B\", \"N\"))","v":"N"},{"$f":"IF(AND(DG21 = 0, OR(CY21 = 1, CY21 = 2, CY21 = 4), DK21 - DP21 = 1), \"A\", IF(AND(DG21 = 0, OR(CY21 = 1, CY21 = 2, CY21 = 4), DP21 = 1, OR(DN21 = 1, DO21 = 1, DQ21 = 1)), \"B\", \"N\"))","v":"N"},{"$f":"IF(AND(DG21 = 0, OR(CY21 = 1, CY21 = 2, CY21 = 3), DK21 - DQ21 = 1), \"A\", IF(AND(DG21 = 0, OR(CY21 = 1, CY21 = 2, CY21 = 3), DQ21 = 1, OR(DN21 = 1, DO21 = 1, DP21 = 1)), \"B\", \"N\"))","v":"N"},{"$f":"IF(OR(EU21 = \"A\", EV21 = \"A\", EW21 = \"A\", EX21 = \"A\"), \"A\", IF(OR(EU21 = \"B\", EV21 = \"B\", EW21 = \"B\", EX21 = \"B\"), \"B\", \"N\"))","v":"N"},{"$f":"MAX(OR($EY$19 = \"A\", $EY$21 = \"A\", $EY$22 = \"A\") * (EU21 <> \"N\") *  (EU3:EU44 <> EY21) * (Monopoly_Property_Availability = 1) * ($CW$3:$CW$44 <> CW21) * (DK3:DK44 <> DN3:DN44) * $ET$3:$ET$44)","v":0},{"$f":"MAX(OR($EY$19 = \"A\", $EY$21 = \"A\", $EY$22 = \"A\") * (EV21 <> \"N\") *  (EV3:EV44 <> EY21) * (Monopoly_Property_Availability = 2) * ($CW$3:$CW$44 <> CW21) * (DK3:DK44 <> DN3:DN44) * $ET$3:$ET$44)","v":0},{"$f":"MAX(OR($EY$19 = \"A\", $EY$21 = \"A\", $EY$22 = \"A\") * (EW21 <> \"N\") *  (EW3:EW44 <> EY21) * (Monopoly_Property_Availability = 3) * ($CW$3:$CW$44 <> CW21) * (DK3:DK44 <> DN3:DN44) * $ET$3:$ET$44)","v":0},{"$f":"MAX(OR($EY$19 = \"A\", $EY$21 = \"A\", $EY$22 = \"A\") * (EX21 <> \"N\") *  (EX3:EX44 <> EY21) * (Monopoly_Property_Availability = 4) * ($CW$3:$CW$44 <> CW21) * (DK3:DK44 <> DN3:DN44) * $ET$3:$ET$44)","v":0},{"$f":"IF(IF(Monopoly_Active_Player = 1, EZ21 > 0, IF(Monopoly_Active_Player = 2, FA21 > 0, IF(Monopoly_Active_Player = 3, FB21 > 0, IF(Monopoly_Active_Player = 4, FC21 > 0)))), INDEX(Monopoly_Property_Full_Names, MATCH(IF(Monopoly_Active_Player = 1, EZ21, IF(Monopoly_Active_Player = 2, FA21, IF(Monopoly_Active_Player = 3, FB21, IF(Monopoly_Active_Player = 4, FC21)))), Monopoly_Property_Table[51 - Dummy Value], 0)), \"\")","v":""},{"$f":"IF(FD21 <> \"\", ROUND(IF(Monopoly_Active_Player = 1, EZ21, IF(Monopoly_Active_Player = 2, FA21, IF(Monopoly_Active_Player = 3, FB21, IF(Monopoly_Active_Player = 4, FC21)))), 0)  - CX21, \"\")","v":""}]
[null,{"$f":"IF($CY29 = 1, OFFSET($DX29, 0, Monopoly_Edition), \"\")","v":""},null,null,null,null,null,null,null,null,{"$f":"IF($CY29 = 2, OFFSET($DX29, 0, Monopoly_Edition), \"\")","v":""},null,null,null,null,null,null,null,null,null,null,{"$f":"IF(CY17=\"Yes\",Monopoly_Currency&CX17,IF(DR17=0,\"Mort P\",\"Sold P\")&CY17)","v":"$160"},{"$f":"OFFSET($EC17, 0, Monopoly_Edition)","v":"Virginia Avenue"},null,null,null,null,null,null,null,null,null,null,null,null,null,null,null,null,null,null,null,null,null,null,null,null,null,null,null,null,"?",null,null,{"$f":"OFFSET($EC39, 0, Monopoly_Edition)","v":"Chance"},null,null,{"$f":"IF($CY29 = 3, OFFSET($DX29, 0, Monopoly_Edition), \"\")","v":""},null,null,null,null,null,null,null,null,{"$f":"IF($CY29 = 4, OFFSET($DX29, 0, Monopoly_Edition), \"\")","v":""},null,null,null,null,null,null,null,null,null,null,null,null,"Title Deed Arranger",{"$f":"Monopoly_P1_Property_Full_Name","v":"GO"},{"$f":"Monopoly_P2_Property_Full_Name","v":"GO"},{"$f":"Monopoly_P3_Property_Full_Name","v":"GO"},{"$f":"Monopoly_P4_Property_Full_Name","v":"GO"},null,null,null,null,null,null,null,null,null,null,null,null,null,null,null,"Space_New_York_Avenue","Orange",200,"Yes","New York Avenue",16,80,220,600,800,1000,0,{"$f":"IF(AND(CY21=CY22, CY21=CY19, CY22<>\"Yes\"), \"2\", \"1\")","v":"1"},100,45,3,10,8,{"$f":"COUNTIF($CY$19:$CY$22, \"1\")","v":0},{"$f":"COUNTIF($CY$19:$CY$22, \"2\")","v":0},{"$f":"COUNTIF($CY$19:$CY$22, \"3\")","v":0},{"$f":"COUNTIF($CY$19:$CY$22, \"4\")","v":0},1,{"$f":"MAX(DG19,DG21,DG22)","v":0},{"$f":"MIN(DG19,DG21,DG22)","v":0},100,{"$f":"IF(OR(DR22=0, DR21=0, DR19=0), 0, 1)","v":1},{"$f":"CONCATENATE(\"Whole \" &CW22& \" Group\")","v":"Whole Orange Group"},"New York Avenue","Vine Street","Vancouver","Calle Serrano","Far West","New York Avenue","Vine Street","Vancouv'r","Calle Serrano","Far West",{"$f":"IF(AND($CY22 = 1, $DV22 = 1, $DK22 = $DN22, $DG22 < 5, $DG22 = $DT22), OFFSET($DX22, 0, Monopoly_Edition), \"\")","v":""},{"$f":"IF(AND($CY22 = 1, $DG22 > 0, $DG22 = $DS22), OFFSET($DX22, 0, Monopoly_Edition), \"\")","v":""},{"$f":"IF(AND($CY22 = 2, $DV22 = 1, $DK22 = $DO22, $DG22 < 5, $DG22 = $DT22), OFFSET($DX22, 0, Monopoly_Edition), \"\")","v":""},{"$f":"IF(AND($CY22 = 2, $DG22 > 0, $DG22 = $DS22), OFFSET($DX22, 0, Monopoly_Edition), \"\")","v":""},{"$f":"IF(AND($CY22 = 3, $DV22 = 1, $DK22 = $DP22, $DG22 < 5, $DG22 = $DT22), OFFSET($DX22, 0, Monopoly_Edition), \"\")","v":""},{"$f":"IF(AND($CY22 = 3, $DG22 > 0, $DG22 = $DS22), OFFSET($DX22, 0, Monopoly_Edition), \"\")","v":""},{"$f":"IF(AND($CY22 = 4, $DV22 = 1, $DK22 = $DQ22, $DG22 < 5, $DG22 = $DT22), OFFSET($DX22, 0, Monopoly_Edition), \"\")","v":""},{"$f":"IF(AND($CY22 = 4, $DG22 > 0, $DG22 = $DS22), OFFSET($DX22, 0, Monopoly_Edition), \"\")","v":""},{"$f":"IF(AND(CY22 = 1, DR22 = 0, OR(DK22 = DN22, Monopoly_P1_Cash > 2000), (CX22*0.55) < (Monopoly_P1_Cash - 50)), CV22, \"\")","v":""},{"$f":"IF(AND(CY22 = 2, DR22 = 0, OR(DK22 = DO22, Monopoly_P2_Cash > 2000), (CX22*0.55) < (Monopoly_P2_Cash - 50)), CV22, \"\")","v":""},{"$f":"IF(AND(CY22 = 3, DR22 = 0, OR(DK22 = DP22, Monopoly_P3_Cash > 2000), (CX22*0.55) < (Monopoly_P3_Cash - 50)), CV22, \"\")","v":""},{"$f":"IF(AND(CY22 = 4, DR22 = 0, OR(DK22 = DQ22, Monopoly_P4_Cash > 2000), (CX22*0.55) < (Monopoly_P4_Cash - 50)), CV22, \"\")","v":""},{"$f":"CX22+ROW(A19)/100000","v":200.00019},"N","N","N","N","N",{"$f":"MAX(OR($EY$19 = \"A\", $EY$21 = \"A\", $EY$22 = \"A\") * (EU22 <> \"N\") *  (EU3:EU44 <> EY22) * (Monopoly_Property_Availability = 1) * ($CW$3:$CW$44 <> CW22) * (DK3:DK44 <> DN3:DN44) * $ET$3:$ET$44)","v":0},{"$f":"MAX(OR($EY$19 = \"A\", $EY$21 = \"A\", $EY$22 = \"A\") * (EV22 <> \"N\") *  (EV3:EV44 <> EY22) * (Monopoly_Property_Availability = 2) * ($CW$3:$CW$44 <> CW22) * (DK3:DK44 <> DN3:DN44) * $ET$3:$ET$44)","v":0},{"$f":"MAX(OR($EY$19 = \"A\", $EY$21 = \"A\", $EY$22 = \"A\") * (EW22 <> \"N\") *  (EW3:EW44 <> EY22) * (Monopoly_Property_Availability = 3) * ($CW$3:$CW$44 <> CW22) * (DK3:DK44 <> DN3:DN44) * $ET$3:$ET$44)","v":0},{"$f":"MAX(OR($EY$19 = \"A\", $EY$21 = \"A\", $EY$22 = \"A\") * (EX22 <> \"N\") *  (EX3:EX44 <> EY22) * (Monopoly_Property_Availability = 4) * ($CW$3:$CW$44 <> CW22) * (DK3:DK44 <> DN3:DN44) * $ET$3:$ET$44)","v":0},{"$f":"IF(IF(Monopoly_Active_Player = 1, EZ22 > 0, IF(Monopoly_Active_Player = 2, FA22 > 0, IF(Monopoly_Active_Player = 3, FB22 > 0, IF(Monopoly_Active_Player = 4, FC22 > 0)))), INDEX(Monopoly_Property_Full_Names, MATCH(IF(Monopoly_Active_Player = 1, EZ22, IF(Monopoly_Active_Player = 2, FA22, IF(Monopoly_Active_Player = 3, FB22, IF(Monopoly_Active_Player = 4, FC22)))), Monopoly_Property_Table[51 - Dummy Value], 0)), \"\")","v":""},{"$f":"IF(FD22 <> \"\", ROUND(IF(Monopoly_Active_Player = 1, EZ22, IF(Monopoly_Active_Player = 2, FA22, IF(Monopoly_Active_Player = 3, FB22, IF(Monopoly_Active_Player = 4, FC22)))), 0)  - CX22, \"\")","v":""}]
[null,{"$f":"IF($CY30 = 1, OFFSET($DX30, 0, Monopoly_Edition), \"\")","v":""},null,null,null,null,null,null,null,null,{"$f":"IF($CY30 = 2, OFFSET($DX30, 0, Monopoly_Edition), \"\")","v":""},null,null,null,null,null,null,null,null,null,null,null,null,null,null,null,null,null,null,null,null,null,null,null,null,null,null,null,null,null,null,null,null,null,null,null,null,null,null,null,null,null,null,null,null,null,null,{"$f":"IF($CY30 = 3, OFFSET($DX30, 0, Monopoly_Edition), \"\")","v":""},null,null,null,null,null,null,null,null,{"$f":"IF($CY30 = 4, OFFSET($DX30, 0, Monopoly_Edition), \"\")","v":""},null,null,null,null,null,null,null,null,null,null,null,null,null,{"$f":"INDEX($DA$3:$DA$44, MATCH(Monopoly_P1_Location, Monopoly_Property_Full_Names, 0))","v":0},{"$f":"INDEX($DA$3:$DA$44, MATCH(Monopoly_P2_Location, Monopoly_Property_Full_Names, 0))","v":0},{"$f":"INDEX($DA$3:$DA$44, MATCH(Monopoly_P3_Location, Monopoly_Property_Full_Names, 0))","v":0},{"$f":"INDEX($DA$3:$DA$44, MATCH(Monopoly_P4_Location, Monopoly_Property_Full_Names, 0))","v":0},null,"Next:",{"$f":"SUBSTITUTE(VLOOKUP(CK24, Chance_Pack, 2, FALSE), \"$\", Monopoly_Currency)","v":"     Get out of jail free.\n     This card may be kept until needed or sold."},{"$f":"VLOOKUP($CK$24, Chance_Pack, 3, FALSE)","v":1},0,{"$f":"VLOOKUP($CK$24, Chance_Pack, 5, FALSE)","v":""},null,null,null,null,null,null,null,null,null,"Space_Free_Parking",null,null,"NA","Free Parking",null,null,null,null,null,null,0,null,null,null,null,null,null,null,null,null,null,1,null,null,0,null,null,"Free Parking","Free Parking","Free Parking","Parque Gratuito","Free Camp","Free Parking","Free Parking","Free Parking","Parque Gratuito","Free Camp",{"$f":"IF(AND($CY23 = 1, $DV23 = 1, $DK23 = $DN23, $DG23 < 5, $DG23 = $DT23), OFFSET($DX23, 0, Monopoly_Edition), \"\")","v":""},{"$f":"IF(AND($CY23 = 1, $DG23 > 0, $DG23 = $DS23), OFFSET($DX23, 0, Monopoly_Edition), \"\")","v":""},{"$f":"IF(AND($CY23 = 2, $DV23 = 1, $DK23 = $DO23, $DG23 < 5, $DG23 = $DT23), OFFSET($DX23, 0, Monopoly_Edition), \"\")","v":""},{"$f":"IF(AND($CY23 = 2, $DG23 > 0, $DG23 = $DS23), OFFSET($DX23, 0, Monopoly_Edition), \"\")","v":""},{"$f":"IF(AND($CY23 = 3, $DV23 = 1, $DK23 = $DP23, $DG23 < 5, $DG23 = $DT23), OFFSET($DX23, 0, Monopoly_Edition), \"\")","v":""},{"$f":"IF(AND($CY23 = 3, $DG23 > 0, $DG23 = $DS23), OFFSET($DX23, 0, Monopoly_Edition), \"\")","v":""},{"$f":"IF(AND($CY23 = 4, $DV23 = 1, $DK23 = $DQ23, $DG23 < 5, $DG23 = $DT23), OFFSET($DX23, 0, Monopoly_Edition), \"\")","v":""},{"$f":"IF(AND($CY23 = 4, $DG23 > 0, $DG23 = $DS23), OFFSET($DX23, 0, Monopoly_Edition), \"\")","v":""},{"$f":"IF(AND(CY23 = 1, DR23 = 0, OR(DK23 = DN23, Monopoly_P1_Cash > 2000), (CX23*0.55) < (Monopoly_P1_Cash - 50)), CV23, \"\")","v":""},{"$f":"IF(AND(CY23 = 2, DR23 = 0, OR(DK23 = DO23, Monopoly_P2_Cash > 2000), (CX23*0.55) < (Monopoly_P2_Cash - 50)), CV23, \"\")","v":""},{"$f":"IF(AND(CY23 = 3, DR23 = 0, OR(DK23 = DP23, Monopoly_P3_Cash > 2000), (CX23*0.55) < (Monopoly_P3_Cash - 50)), CV23, \"\")","v":""},{"$f":"IF(AND(CY23 = 4, DR23 = 0, OR(DK23 = DQ23, Monopoly_P4_Cash > 2000), (CX23*0.55) < (Monopoly_P4_Cash - 50)), CV23, \"\")","v":""},null,null,null,null,null,null,null,null,null,null,null,""]
[null,{"$f":"IF($CY32 = 1, OFFSET($DX32, 0, Monopoly_Edition), \"\")","v":""},null,null,null,null,null,null,null,null,{"$f":"IF($CY32 = 2, OFFSET($DX32, 0, Monopoly_Edition), \"\")","v":""},null,null,null,null,null,null,null,null,null,null,null,null,null,null,null,null,null,null,null,null,null,null,null,null,null,null,null,null,null,null,null,null,null,null,null,null,null,null,null,null,null,null,null,null,null,null,{"$f":"IF($CY32 = 3, OFFSET($DX32, 0, Monopoly_Edition), \"\")","v":""},null,null,null,null,null,null,null,null,{"$f":"IF($CY32 = 4, OFFSET($DX32, 0, Monopoly_Edition), \"\")","v":""},null,null,null,null,null,null,null,null,null,null,null,null,null,{"$f":"IF(OR(Monopoly_P1_Location=\"Space_Reading_Railroad\",Monopoly_P1_Location=\"Space_Pennsylvania_Railroad\",Monopoly_P1_Location=\"Space_BO_Railroad\",Monopoly_P1_Location=\"Space_Short_Line_Railroad\"),\"NA\",INDEX($DB$3:$DB$44,MATCH(Monopoly_P1_Location,Monopoly_Property_Full_Names,0)))","v":0},{"$f":"IF(OR(Monopoly_P2_Location=\"Space_Reading_Railroad\",Monopoly_P2_Location=\"Space_Pennsylvania_Railroad\",Monopoly_P2_Location=\"Space_BO_Railroad\",Monopoly_P2_Location=\"Space_Short_Line_Railroad\"),\"NA\",INDEX($DB$3:$DB$44,MATCH(Monopoly_P2_Location,Monopoly_Property_Full_Names,0)))","v":0},{"$f":"IF(OR(Monopoly_P3_Location=\"Space_Reading_Railroad\",Monopoly_P3_Location=\"Space_Pennsylvania_Railroad\",Monopoly_P3_Location=\"Space_BO_Railroad\",Monopoly_P3_Location=\"Space_Short_Line_Railroad\"),\"NA\",INDEX($DB$3:$DB$44,MATCH(Monopoly_P3_Location,Monopoly_Property_Full_Names,0)))","v":0},{"$f":"IF(OR(Monopoly_P4_Location=\"Space_Reading_Railroad\",Monopoly_P4_Location=\"Space_Pennsylvania_Railroad\",Monopoly_P4_Location=\"Space_BO_Railroad\",Monopoly_P4_Location=\"Space_Short_Line_Railroad\"),\"NA\",INDEX($DB$3:$DB$44,MATCH(Monopoly_P4_Location,Monopoly_Property_Full_Names,0)))","v":0},null,null,{"$f":"SUBSTITUTE(Chance_Text, \"$\",Monopoly_Currency)","v":"     Get out of jail free.\n     This card may be kept until needed or sold."},null,{"$f":"MOD(Chance_Number, 18)","v":0},null,null,null,null,null,null,null,null,null,null,"Space_Kentucky_Avenue","Red",220,"Yes","Kentucky Avenue",18,90,250,700,875,1050,0,{"$f":"IF(AND(CY26=CY24, CY26=CY27, CY24<>\"Yes\"), \"2\", \"1\")","v":"1"},150,3,3,15,3,{"$f":"COUNTIF($CY$24:$CY$27, \"1\")","v":0},{"$f":"COUNTIF($CY$24:$CY$27, \"2\")","v":0},{"$f":"COUNTIF($CY$24:$CY$27, \"3\")","v":0},{"$f":"COUNTIF($CY$24:$CY$27, \"4\")","v":0},1,{"$f":"MAX(DG24,DG26,DG27)","v":0},{"$f":"MIN(DG24,DG26,DG27)","v":0},110,{"$f":"IF(OR(DR24=0, DR26=0, DR27=0), 0, 1)","v":1},{"$f":"CONCATENATE(\"Whole \" &CW24& \" Group\")","v":"Whole Red Group"},"Kentucky Avenue","Strand","Sydney","Avenida de América","Independence","Kentucky Avenue","Strand","Sydney","Avenida de América","Indep'ence","","","","","","","","","","","","",{"$f":"CX24+ROW(A21)/100000","v":220.00021000000001},{"$f":"IF(AND(DG24 = 0, OR(CY24 = 2, CY24 = 3, CY24 = 4), DK24 - DN24 = 1), \"A\", IF(AND(DG24 = 0, OR(CY24 = 2, CY24 = 3, CY24 = 4), DN24 = 1, OR(DO24 = 1, DP24 = 1, DQ24 = 1)), \"B\", \"N\"))","v":"N"},{"$f":"IF(AND(DG24 = 0, OR(CY24 = 1, CY24 = 3, CY24 = 4), DK24 - DO24 = 1), \"A\", IF(AND(DG24 = 0, OR(CY24 = 1, CY24 = 3, CY24 = 4), DO24 = 1, OR(DN24 = 1, DP24 = 1, DQ24 = 1)), \"B\", \"N\"))","v":"N"},{"$f":"IF(AND(DG24 = 0, OR(CY24 = 1, CY24 = 2, CY24 = 4), DK24 - DP24 = 1), \"A\", IF(AND(DG24 = 0, OR(CY24 = 1, CY24 = 2, CY24 = 4), DP24 = 1, OR(DN24 = 1, DO24 = 1, DQ24 = 1)), \"B\", \"N\"))","v":"N"},{"$f":"IF(AND(DG24 = 0, OR(CY24 = 1, CY24 = 2, CY24 = 3), DK24 - DQ24 = 1), \"A\", IF(AND(DG24 = 0, OR(CY24 = 1, CY24 = 2, CY24 = 3), DQ24 = 1, OR(DN24 = 1, DO24 = 1, DP24 = 1)), \"B\", \"N\"))","v":"N"},{"$f":"IF(OR(EU24 = \"A\", EV24 = \"A\", EW24 = \"A\", EX24 = \"A\"), \"A\", IF(OR(EU24 = \"B\", EV24 = \"B\", EW24 = \"B\", EX24 = \"B\"), \"B\", \"N\"))","v":"N"},{"$f":"MAX(OR($EY$24 = \"A\", $EY$26 = \"A\", $EY$27 = \"A\") * (EU24 <> \"N\") *  (EU3:EU44 <> EY24) * (Monopoly_Property_Availability = 1) * ($CW$3:$CW$44 <> CW24) * (DK3:DK44 <> DN3:DN44) * $ET$3:$ET$44)","v":0},{"$f":"MAX(OR($EY$24 = \"A\", $EY$26 = \"A\", $EY$27 = \"A\") * (EV24 <> \"N\") *  (EV3:EV44 <> EY24) * (Monopoly_Property_Availability = 2) * ($CW$3:$CW$44 <> CW24) * (DK3:DK44 <> DN3:DN44) * $ET$3:$ET$44)","v":0},{"$f":"MAX(OR($EY$24 = \"A\", $EY$26 = \"A\", $EY$27 = \"A\") * (EW24 <> \"N\") *  (EW3:EW44 <> EY24) * (Monopoly_Property_Availability = 3) * ($CW$3:$CW$44 <> CW24) * (DK3:DK44 <> DN3:DN44) * $ET$3:$ET$44)","v":0},{"$f":"MAX(OR($EY$24 = \"A\", $EY$26 = \"A\", $EY$27 = \"A\") * (EX24 <> \"N\") *  (EX3:EX44 <> EY24) * (Monopoly_Property_Availability = 4) * ($CW$3:$CW$44 <> CW24) * (DK3:DK44 <> DN3:DN44) * $ET$3:$ET$44)","v":0},{"$f":"IF(IF(Monopoly_Active_Player = 1, EZ24 > 0, IF(Monopoly_Active_Player = 2, FA24 > 0, IF(Monopoly_Active_Player = 3, FB24 > 0, IF(Monopoly_Active_Player = 4, FC24 > 0)))), INDEX(Monopoly_Property_Full_Names, MATCH(IF(Monopoly_Active_Player = 1, EZ24, IF(Monopoly_Active_Player = 2, FA24, IF(Monopoly_Active_Player = 3, FB24, IF(Monopoly_Active_Player = 4, FC24)))), Monopoly_Property_Table[51 - Dummy Value], 0)), \"\")","v":""},{"$f":"IF(FD24 <> \"\", ROUND(IF(Monopoly_Active_Player = 1, EZ24, IF(Monopoly_Active_Player = 2, FA24, IF(Monopoly_Active_Player = 3, FB24, IF(Monopoly_Active_Player = 4, FC24)))), 0)  - CX24, \"\")","v":""}]
[null,{"$f":"IF($CY34 = 1, OFFSET($DX34, 0, Monopoly_Edition), \"\")","v":""},null,null,null,null,null,null,null,null,{"$f":"IF($CY34 = 2, OFFSET($DX34, 0, Monopoly_Edition), \"\")","v":""},null,null,null,null,null,null,null,null,null,null,{"$f":"IF(CY16=\"Yes\",Monopoly_Currency&CX16,IF(DR16=0,\"Mort P\",\"Sold P\")&CY16)","v":"$140"},{"$f":"OFFSET($EC16, 0, Monopoly_Edition)","v":"States Avenue"},null,null,null,null,null,null,null,null,null,null,null,null,null,null,null,null,null,null,null,null,null,null,null,null,null,null,null,null,{"$f":"OFFSET($EC40, 0, Monopoly_Edition)","v":"Park Place"},null,{"$f":"IF(CY40=\"Yes\",Monopoly_Currency&CX40,IF(DR40=0,\"Mort P\",\"Sold P\")&CY40)","v":"$350"},null,null,null,{"$f":"IF($CY34 = 3, OFFSET($DX34, 0, Monopoly_Edition), \"\")","v":""},null,null,null,null,null,null,null,null,{"$f":"IF($CY34 = 4, OFFSET($DX34, 0, Monopoly_Edition), \"\")","v":""},null,null,null,null,null,null,null,null,null,null,null,null,null,{"$f":"IF(OR(Monopoly_P1_Location=\"Space_Reading_Railroad\",Monopoly_P1_Location=\"Space_Pennsylvania_Railroad\",Monopoly_P1_Location=\"Space_BO_Railroad\",Monopoly_P1_Location=\"Space_Short_Line_Railroad\"),\"NA\",INDEX($DC$3:$DC$44,MATCH(Monopoly_P1_Location,Monopoly_Property_Full_Names,0)))","v":0},{"$f":"IF(OR(Monopoly_P2_Location=\"Space_Reading_Railroad\",Monopoly_P2_Location=\"Space_Pennsylvania_Railroad\",Monopoly_P2_Location=\"Space_BO_Railroad\",Monopoly_P2_Location=\"Space_Short_Line_Railroad\"),\"NA\",INDEX($DC$3:$DC$44,MATCH(Monopoly_P2_Location,Monopoly_Property_Full_Names,0)))","v":0},{"$f":"IF(OR(Monopoly_P3_Location=\"Space_Reading_Railroad\",Monopoly_P3_Location=\"Space_Pennsylvania_Railroad\",Monopoly_P3_Location=\"Space_BO_Railroad\",Monopoly_P3_Location=\"Space_Short_Line_Railroad\"),\"NA\",INDEX($DC$3:$DC$44,MATCH(Monopoly_P3_Location,Monopoly_Property_Full_Names,0)))","v":0},{"$f":"IF(OR(Monopoly_P4_Location=\"Space_Reading_Railroad\",Monopoly_P4_Location=\"Space_Pennsylvania_Railroad\",Monopoly_P4_Location=\"Space_BO_Railroad\",Monopoly_P4_Location=\"Space_Short_Line_Railroad\"),\"NA\",INDEX($DC$3:$DC$44,MATCH(Monopoly_P4_Location,Monopoly_Property_Full_Names,0)))","v":0},null,null,null,null,null,null,null,null,null,null,null,null,null,null,null,"Space_Chance_Two",null,null,"NA","Chance",null,null,null,null,null,null,0,null,null,null,null,null,null,null,null,null,null,1,null,null,0,null,null,"Chance","Chance","Chance","Suerte","Mission","Chance","Chance","Chance","Suerte","Mission",{"$f":"IF(AND($CY25 = 1, $DV25 = 1, $DK25 = $DN25, $DG25 < 5, $DG25 = $DT25), OFFSET($DX25, 0, Monopoly_Edition), \"\")","v":""},{"$f":"IF(AND($CY25 = 1, $DG25 > 0, $DG25 = $DS25), OFFSET($DX25, 0, Monopoly_Edition), \"\")","v":""},{"$f":"IF(AND($CY25 = 2, $DV25 = 1, $DK25 = $DO25, $DG25 < 5, $DG25 = $DT25), OFFSET($DX25, 0, Monopoly_Edition), \"\")","v":""},{"$f":"IF(AND($CY25 = 2, $DG25 > 0, $DG25 = $DS25), OFFSET($DX25, 0, Monopoly_Edition), \"\")","v":""},{"$f":"IF(AND($CY25 = 3, $DV25 = 1, $DK25 = $DP25, $DG25 < 5, $DG25 = $DT25), OFFSET($DX25, 0, Monopoly_Edition), \"\")","v":""},{"$f":"IF(AND($CY25 = 3, $DG25 > 0, $DG25 = $DS25), OFFSET($DX25, 0, Monopoly_Edition), \"\")","v":""},{"$f":"IF(AND($CY25 = 4, $DV25 = 1, $DK25 = $DQ25, $DG25 < 5, $DG25 = $DT25), OFFSET($DX25, 0, Monopoly_Edition), \"\")","v":""},{"$f":"IF(AND($CY25 = 4, $DG25 > 0, $DG25 = $DS25), OFFSET($DX25, 0, Monopoly_Edition), \"\")","v":""},{"$f":"IF(AND(CY25 = 1, DR25 = 0, OR(DK25 = DN25, Monopoly_P1_Cash > 2000), (CX25*0.55) < (Monopoly_P1_Cash - 50)), CV25, \"\")","v":""},{"$f":"IF(AND(CY25 = 2, DR25 = 0, OR(DK25 = DO25, Monopoly_P2_Cash > 2000), (CX25*0.55) < (Monopoly_P2_Cash - 50)), CV25, \"\")","v":""},{"$f":"IF(AND(CY25 = 3, DR25 = 0, OR(DK25 = DP25, Monopoly_P3_Cash > 2000), (CX25*0.55) < (Monopoly_P3_Cash - 50)), CV25, \"\")","v":""},{"$f":"IF(AND(CY25 = 4, DR25 = 0, OR(DK25 = DQ25, Monopoly_P4_Cash > 2000), (CX25*0.55) < (Monopoly_P4_Cash - 50)), CV25, \"\")","v":""},null,null,null,null,null,null,null,null,null,null,null,""]
[null,{"$f":"IF($CY35 = 1, OFFSET($DX35, 0, Monopoly_Edition), \"\")","v":""},null,null,null,null,null,null,null,null,{"$f":"IF($CY35 = 2, OFFSET($DX35, 0, Monopoly_Edition), \"\")","v":""},null,null,null,null,null,null,null,null,null,null,null,null,null,null,null,null,null,null,null,null,null,null,null,null,null,null,null,null,null,null,null,null,null,null,null,null,null,null,null,null,null,null,null,null,null,null,{"$f":"IF($CY35 = 3, OFFSET($DX35, 0, Monopoly_Edition), \"\")","v":""},null,null,null,null,null,null,null,null,{"$f":"IF($CY35 = 4, OFFSET($DX35, 0, Monopoly_Edition), \"\")","v":""},null,null,null,null,null,null,null,null,null,null,null,null,null,{"$f":"IF(OR(Monopoly_P1_Location=\"Space_Reading_Railroad\",Monopoly_P1_Location=\"Space_Pennsylvania_Railroad\",Monopoly_P1_Location=\"Space_BO_Railroad\",Monopoly_P1_Location=\"Space_Short_Line_Railroad\"),\"NA\",INDEX($DD$3:$DD$44,MATCH(Monopoly_P1_Location,Monopoly_Property_Full_Names,0)))","v":0},{"$f":"IF(OR(Monopoly_P2_Location=\"Space_Reading_Railroad\",Monopoly_P2_Location=\"Space_Pennsylvania_Railroad\",Monopoly_P2_Location=\"Space_BO_Railroad\",Monopoly_P2_Location=\"Space_Short_Line_Railroad\"),\"NA\",INDEX($DD$3:$DD$44,MATCH(Monopoly_P2_Location,Monopoly_Property_Full_Names,0)))","v":0},{"$f":"IF(OR(Monopoly_P3_Location=\"Space_Reading_Railroad\",Monopoly_P3_Location=\"Space_Pennsylvania_Railroad\",Monopoly_P3_Location=\"Space_BO_Railroad\",Monopoly_P3_Location=\"Space_Short_Line_Railroad\"),\"NA\",INDEX($DD$3:$DD$44,MATCH(Monopoly_P3_Location,Monopoly_Property_Full_Names,0)))","v":0},{"$f":"IF(OR(Monopoly_P4_Location=\"Space_Reading_Railroad\",Monopoly_P4_Location=\"Space_Pennsylvania_Railroad\",Monopoly_P4_Location=\"Space_BO_Railroad\",Monopoly_P4_Location=\"Space_Short_Line_Railroad\"),\"NA\", INDEX($DD$3:$DD$44,MATCH(Monopoly_P4_Location,Monopoly_Property_Full_Names,0)))","v":0},null,"COMMUNITY CHEST CARDS",null,null,null,null,null,null,null,null,null,null,null,null,null,"Space_Indiana_Avenue","Red",220,"Yes","Indiana Avenue",18,90,250,700,875,1050,0,{"$f":"IF(AND(CY27=CY26, CY27=CY24, CY26<>\"Yes\"), \"2\", \"1\")","v":"1"},150,3,3,15,3,{"$f":"COUNTIF($CY$24:$CY$27, \"1\")","v":0},{"$f":"COUNTIF($CY$24:$CY$27, \"2\")","v":0},{"$f":"COUNTIF($CY$24:$CY$27, \"3\")","v":0},{"$f":"COUNTIF($CY$24:$CY$27, \"4\")","v":0},1,{"$f":"MAX(DG24,DG26,DG27)","v":0},{"$f":"MIN(DG24,DG26,DG27)","v":0},110,{"$f":"IF(OR(DR26=0, DR27=0, DR24=0), 0, 1)","v":1},{"$f":"CONCATENATE(\"Whole \" &CW26& \" Group\")","v":"Whole Red Group"},"Indiana Avenue","Fleet Street","New York","Calle María de Molina","Grandin Building","Indiana Avenue","Fleet Street","New York","María de Molina","Grandin Building","","","","","","","","","","","","",{"$f":"CX26+ROW(A23)/100000","v":220.00022999999999},{"$f":"IF(AND(DG26 = 0, OR(CY26 = 2, CY26 = 3, CY26 = 4), DK26 - DN26 = 1), \"A\", IF(AND(DG26 = 0, OR(CY26 = 2, CY26 = 3, CY26 = 4), DN26 = 1, OR(DO26 = 1, DP26 = 1, DQ26 = 1)), \"B\", \"N\"))","v":"N"},{"$f":"IF(AND(DG26 = 0, OR(CY26 = 1, CY26 = 3, CY26 = 4), DK26 - DO26 = 1), \"A\", IF(AND(DG26 = 0, OR(CY26 = 1, CY26 = 3, CY26 = 4), DO26 = 1, OR(DN26 = 1, DP26 = 1, DQ26 = 1)), \"B\", \"N\"))","v":"N"},{"$f":"IF(AND(DG26 = 0, OR(CY26 = 1, CY26 = 2, CY26 = 4), DK26 - DP26 = 1), \"A\", IF(AND(DG26 = 0, OR(CY26 = 1, CY26 = 2, CY26 = 4), DP26 = 1, OR(DN26 = 1, DO26 = 1, DQ26 = 1)), \"B\", \"N\"))","v":"N"},{"$f":"IF(AND(DG26 = 0, OR(CY26 = 1, CY26 = 2, CY26 = 3), DK26 - DQ26 = 1), \"A\", IF(AND(DG26 = 0, OR(CY26 = 1, CY26 = 2, CY26 = 3), DQ26 = 1, OR(DN26 = 1, DO26 = 1, DP26 = 1)), \"B\", \"N\"))","v":"N"},{"$f":"IF(OR(EU26 = \"A\", EV26 = \"A\", EW26 = \"A\", EX26 = \"A\"), \"A\", IF(OR(EU26 = \"B\", EV26 = \"B\", EW26 = \"B\", EX26 = \"B\"), \"B\", \"N\"))","v":"N"},{"$f":"MAX(OR($EY$24 = \"A\", $EY$26 = \"A\", $EY$27 = \"A\") * (EU26 <> \"N\") *  (EU3:EU44 <> EY26) * (Monopoly_Property_Availability = 1) * ($CW$3:$CW$44 <> CW26) * (DK3:DK44 <> DN3:DN44) * $ET$3:$ET$44)","v":0},{"$f":"MAX(OR($EY$24 = \"A\", $EY$26 = \"A\", $EY$27 = \"A\") * (EV26 <> \"N\") *  (EV3:EV44 <> EY26) * (Monopoly_Property_Availability = 2) * ($CW$3:$CW$44 <> CW26) * (DK3:DK44 <> DN3:DN44) * $ET$3:$ET$44)","v":0},{"$f":"MAX(OR($EY$24 = \"A\", $EY$26 = \"A\", $EY$27 = \"A\") * (EW26 <> \"N\") *  (EW3:EW44 <> EY26) * (Monopoly_Property_Availability = 3) * ($CW$3:$CW$44 <> CW26) * (DK3:DK44 <> DN3:DN44) * $ET$3:$ET$44)","v":0},{"$f":"MAX(OR($EY$24 = \"A\", $EY$26 = \"A\", $EY$27 = \"A\") * (EX26 <> \"N\") *  (EX3:EX44 <> EY26) * (Monopoly_Property_Availability = 4) * ($CW$3:$CW$44 <> CW26) * (DK3:DK44 <> DN3:DN44) * $ET$3:$ET$44)","v":0},{"$f":"IF(IF(Monopoly_Active_Player = 1, EZ26 > 0, IF(Monopoly_Active_Player = 2, FA26 > 0, IF(Monopoly_Active_Player = 3, FB26 > 0, IF(Monopoly_Active_Player = 4, FC26 > 0)))), INDEX(Monopoly_Property_Full_Names, MATCH(IF(Monopoly_Active_Player = 1, EZ26, IF(Monopoly_Active_Player = 2, FA26, IF(Monopoly_Active_Player = 3, FB26, IF(Monopoly_Active_Player = 4, FC26)))), Monopoly_Property_Table[51 - Dummy Value], 0)), \"\")","v":""},{"$f":"IF(FD26 <> \"\", ROUND(IF(Monopoly_Active_Player = 1, EZ26, IF(Monopoly_Active_Player = 2, FA26, IF(Monopoly_Active_Player = 3, FB26, IF(Monopoly_Active_Player = 4, FC26)))), 0)  - CX26, \"\")","v":""}]
[null,{"$f":"IF($CY37 = 1, OFFSET($DX37, 0, Monopoly_Edition), \"\")","v":""},null,null,null,null,null,null,null,null,{"$f":"IF($CY37 = 2, OFFSET($DX37, 0, Monopoly_Edition), \"\")","v":""},null,null,null,null,null,null,null,null,null,null,null,null,null,null,null,null,null,null,null,null,null,null,null,null,null,null,null,null,null,null,null,null,null,null,null,null,null,null,null,null,null,null,null,null,null,null,{"$f":"IF($CY37 = 3, OFFSET($DX37, 0, Monopoly_Edition), \"\")","v":""},null,null,null,null,null,null,null,null,{"$f":"IF($CY37 = 4, OFFSET($DX37, 0, Monopoly_Edition), \"\")","v":""},null,null,null,null,null,null,null,null,null,null,null,null,null,{"$f":"IF(OR(Monopoly_P1_Location=\"Space_Reading_Railroad\",Monopoly_P1_Location=\"Space_Pennsylvania_Railroad\",Monopoly_P1_Location=\"Space_BO_Railroad\",Monopoly_P1_Location=\"Space_Short_Line_Railroad\"),\"NA\",INDEX($DE$3:$DE$44,MATCH(Monopoly_P1_Location,Monopoly_Property_Full_Names,0)))","v":0},{"$f":"IF(OR(Monopoly_P2_Location=\"Space_Reading_Railroad\",Monopoly_P2_Location=\"Space_Pennsylvania_Railroad\",Monopoly_P2_Location=\"Space_BO_Railroad\",Monopoly_P2_Location=\"Space_Short_Line_Railroad\"),\"NA\",INDEX($DE$3:$DE$44,MATCH(Monopoly_P2_Location,Monopoly_Property_Full_Names,0)))","v":0},{"$f":"IF(OR(Monopoly_P3_Location=\"Space_Reading_Railroad\",Monopoly_P3_Location=\"Space_Pennsylvania_Railroad\",Monopoly_P3_Location=\"Space_BO_Railroad\",Monopoly_P3_Location=\"Space_Short_Line_Railroad\"),\"NA\",INDEX($DE$3:$DE$44,MATCH(Monopoly_P3_Location,Monopoly_Property_Full_Names,0)))","v":0},{"$f":"IF(OR(Monopoly_P4_Location=\"Space_Reading_Railroad\",Monopoly_P4_Location=\"Space_Pennsylvania_Railroad\",Monopoly_P4_Location=\"Space_BO_Railroad\",Monopoly_P4_Location=\"Space_Short_Line_Railroad\"),\"NA\",INDEX($DE$3:$DE$44,MATCH(Monopoly_P4_Location,Monopoly_Property_Full_Names,0)))","v":0},null,"Cards","Community chest","Index","Random","Instructions",null,null,null,null,null,null,null,null,null,"Space_Illinois_Avenue","Red",240,"Yes","Illinois Avenue",20,100,300,750,925,1100,0,{"$f":"IF(AND(CY26=CY27, CY26=CY24, CY27<>\"Yes\"), \"2\", \"1\")","v":"1"},150,3,3,15,3,{"$f":"COUNTIF($CY$24:$CY$27, \"1\")","v":0},{"$f":"COUNTIF($CY$24:$CY$27, \"2\")","v":0},{"$f":"COUNTIF($CY$24:$CY$27, \"3\")","v":0},{"$f":"COUNTIF($CY$24:$CY$27, \"4\")","v":0},1,{"$f":"MAX(DG26,DG24,DG27)","v":0},{"$f":"MIN(DG24,DG26,DG27)","v":0},120,{"$f":"IF(OR(DR27=0, DR26=0, DR24=0), 0, 1)","v":1},{"$f":"CONCATENATE(\"Whole \" &CW27& \" Group\")","v":"Whole Red Group"},"Illinois Avenue","Trafalgar Square","London","Calle Cea Bermúdez","Sacred Grove","Illinois Avenue","Trafalgar Square","London","Cea Bermúdez","Sacred Grove",{"$f":"IF(AND($CY27 = 1, $DV27 = 1, $DK27 = $DN27, $DG27 < 5, $DG27 = $DT27), OFFSET($DX27, 0, Monopoly_Edition), \"\")","v":""},{"$f":"IF(AND($CY27 = 1, $DG27 > 0, $DG27 = $DS27), OFFSET($DX27, 0, Monopoly_Edition), \"\")","v":""},{"$f":"IF(AND($CY27 = 2, $DV27 = 1, $DK27 = $DO27, $DG27 < 5, $DG27 = $DT27), OFFSET($DX27, 0, Monopoly_Edition), \"\")","v":""},{"$f":"IF(AND($CY27 = 2, $DG27 > 0, $DG27 = $DS27), OFFSET($DX27, 0, Monopoly_Edition), \"\")","v":""},{"$f":"IF(AND($CY27 = 3, $DV27 = 1, $DK27 = $DP27, $DG27 < 5, $DG27 = $DT27), OFFSET($DX27, 0, Monopoly_Edition), \"\")","v":""},{"$f":"IF(AND($CY27 = 3, $DG27 > 0, $DG27 = $DS27), OFFSET($DX27, 0, Monopoly_Edition), \"\")","v":""},{"$f":"IF(AND($CY27 = 4, $DV27 = 1, $DK27 = $DQ27, $DG27 < 5, $DG27 = $DT27), OFFSET($DX27, 0, Monopoly_Edition), \"\")","v":""},{"$f":"IF(AND($CY27 = 4, $DG27 > 0, $DG27 = $DS27), OFFSET($DX27, 0, Monopoly_Edition), \"\")","v":""},{"$f":"IF(AND(CY27 = 1, DR27 = 0, OR(DK27 = DN27, Monopoly_P1_Cash > 2000), (CX27*0.55) < (Monopoly_P1_Cash - 50)), CV27, \"\")","v":""},{"$f":"IF(AND(CY27 = 2, DR27 = 0, OR(DK27 = DO27, Monopoly_P2_Cash > 2000), (CX27*0.55) < (Monopoly_P2_Cash - 50)), CV27, \"\")","v":""},{"$f":"IF(AND(CY27 = 3, DR27 = 0, OR(DK27 = DP27, Monopoly_P3_Cash > 2000), (CX27*0.55) < (Monopoly_P3_Cash - 50)), CV27, \"\")","v":""},{"$f":"IF(AND(CY27 = 4, DR27 = 0, OR(DK27 = DQ27, Monopoly_P4_Cash > 2000), (CX27*0.55) < (Monopoly_P4_Cash - 50)), CV27, \"\")","v":""},240.00023999999999,"N","N","N","N","N",{"$f":"MAX(OR($EY$24 = \"A\", $EY$26 = \"A\", $EY$27 = \"A\") * (EU27 <> \"N\") *  (EU3:EU44 <> EY27) * (Monopoly_Property_Availability = 1) * ($CW$3:$CW$44 <> CW27) * (DK3:DK44 <> DN3:DN44) * $ET$3:$ET$44)","v":0},{"$f":"MAX(OR($EY$24 = \"A\", $EY$26 = \"A\", $EY$27 = \"A\") * (EV27 <> \"N\") *  (EV3:EV44 <> EY27) * (Monopoly_Property_Availability = 2) * ($CW$3:$CW$44 <> CW27) * (DK3:DK44 <> DN3:DN44) * $ET$3:$ET$44)","v":0},{"$f":"MAX(OR($EY$24 = \"A\", $EY$26 = \"A\", $EY$27 = \"A\") * (EW27 <> \"N\") *  (EW3:EW44 <> FA27) * (Monopoly_Property_Availability = 3) * ($CW$3:$CW$44 <> CW27) * (DK3:DK44 <> DN3:DN44) * $ET$3:$ET$44)","v":0},{"$f":"MAX(OR($EY$24 = \"A\", $EY$26 = \"A\", $EY$27 = \"A\") * (EX27 <> \"N\") *  (EX3:EX44 <> EY27) * (Monopoly_Property_Availability = 4) * ($CW$3:$CW$44 <> CW27) * (DK3:DK44 <> DN3:DN44) * $ET$3:$ET$44)","v":0},{"$f":"IF(IF(Monopoly_Active_Player = 1, EZ27 > 0, IF(Monopoly_Active_Player = 2, FA27 > 0, IF(Monopoly_Active_Player = 3, FB27 > 0, IF(Monopoly_Active_Player = 4, FC27 > 0)))), INDEX(Monopoly_Property_Full_Names, MATCH(IF(Monopoly_Active_Player = 1, EZ27, IF(Monopoly_Active_Player = 2, FA27, IF(Monopoly_Active_Player = 3, FB27, IF(Monopoly_Active_Player = 4, FC27)))), Monopoly_Property_Table[51 - Dummy Value], 0)), \"\")","v":""},{"$f":"IF(FD27 <> \"\", ROUND(IF(Monopoly_Active_Player = 1, EZ27, IF(Monopoly_Active_Player = 2, FA27, IF(Monopoly_Active_Player = 3, FB27, IF(Monopoly_Active_Player = 4, FC27)))), 0)  - CX27, \"\")","v":""}]
[null,{"$f":"IF($CY40 = 1, OFFSET($DX40, 0, Monopoly_Edition), \"\")","v":""},null,null,null,null,null,null,null,null,{"$f":"IF($CY40 = 2, OFFSET($DX40, 0, Monopoly_Edition), \"\")","v":""},null,null,null,null,null,null,null,null,null,null,{"$f":"IF(CY15=\"Yes\",Monopoly_Currency&CX15,IF(DR15=0,\"Mort P\",\"Sold P\")&CY15)","v":"$150"},{"$f":"OFFSET($EC15, 0, Monopoly_Edition)","v":"Electric Comp"},null,null,null,null,null,null,null,null,null,null,null,null,null,null,null,null,null,null,null,null,null,null,null,null,null,null,null,null,{"$f":"OFFSET(EC41, 0, Monopoly_Edition)","v":"Luxury Tax $75"},null,null,null,null,null,{"$f":"IF($CY40 = 3, OFFSET($DX40, 0, Monopoly_Edition), \"\")","v":""},null,null,null,null,null,null,null,null,{"$f":"IF($CY40 = 4, OFFSET($DX40, 0, Monopoly_Edition), \"\")","v":""},null,null,null,null,null,null,null,null,null,null,null,null,null,{"$f":"IF(OR(Monopoly_P1_Location=\"Space_Reading_Railroad\",Monopoly_P1_Location=\"Space_Pennsylvania_Railroad\",Monopoly_P1_Location=\"Space_BO_Railroad\",Monopoly_P1_Location=\"Space_Short_Line_Railroad\"),\"NA\",INDEX($DF$3:$DF$44,MATCH(Monopoly_P1_Location,Monopoly_Property_Full_Names,0)))","v":0},{"$f":"IF(OR(Monopoly_P2_Location=\"Space_Reading_Railroad\",Monopoly_P2_Location=\"Space_Pennsylvania_Railroad\",Monopoly_P2_Location=\"Space_BO_Railroad\",Monopoly_P2_Location=\"Space_Short_Line_Railroad\"),\"NA\",INDEX($DF$3:$DF$44,MATCH(Monopoly_P2_Location,Monopoly_Property_Full_Names,0)))","v":0},{"$f":"IF(OR(Monopoly_P3_Location=\"Space_Reading_Railroad\",Monopoly_P3_Location=\"Space_Pennsylvania_Railroad\",Monopoly_P3_Location=\"Space_BO_Railroad\",Monopoly_P3_Location=\"Space_Short_Line_Railroad\"),\"NA\",INDEX($DF$3:$DF$44,MATCH(Monopoly_P3_Location,Monopoly_Property_Full_Names,0)))","v":0},{"$f":"IF(OR(Monopoly_P4_Location=\"Space_Reading_Railroad\",Monopoly_P4_Location=\"Space_Pennsylvania_Railroad\",Monopoly_P4_Location=\"Space_BO_Railroad\",Monopoly_P4_Location=\"Space_Short_Line_Railroad\"),\"NA\",INDEX($DF$3:$DF$44,MATCH(Monopoly_P4_Location,Monopoly_Property_Full_Names,0)))","v":0},null,0,"     Get out of jail free.\n     This card may be kept until needed or sold.",1,{"$f":"RAND()","v":0.51303500514071154},{"$f":"IF(OR(Monopoly_P1_Comm_Chest_GOOJF <> \"\", Monopoly_P2_Comm_Chest_GOOJF<>\"\", Monopoly_P3_Comm_Chest_GOOJF <> \"\", Monopoly_P4_Comm_Chest_GOOJF<>\"\"), \"Used\", \"\")","v":""},null,"P3 Mortgaging Table",null,null,null,"P4 Mortgaging Table",null,null,null,"Space_BO_Railroad",null,200,"Yes","B&O Railroad",25,{"$f":"IF(CY28=\"Yes\", \"\", CY28)","v":""},{"$f":"CY$8","v":"Yes"},{"$f":"CY$18","v":"Yes"},{"$f":"CY$38","v":"Yes"},{"$f":"COUNTIF(DC28:DE28, DB28)+1","v":1},0,{"$f":"2^(DF28-1)","v":1},null,null,null,null,null,null,null,null,null,1,null,null,100,null,null,"B&O Railroad","Fenchurch Street Station","Monopoly Cruise","Estación del Mediodía","Water Raft","B&O Railroad","Fen'ch St Station","Monopoly Cruise","Estación Mediodía","Water Raft",{"$f":"IF(AND($CY28 = 1, $DV28 = 1, $DK28 = $DN28, $DG28 < 5, $DG28 = $DT28), OFFSET($DX28, 0, Monopoly_Edition), \"\")","v":""},{"$f":"IF(AND($CY28 = 1, $DG28 > 0, $DG28 = $DS28), OFFSET($DX28, 0, Monopoly_Edition), \"\")","v":""},{"$f":"IF(AND($CY28 = 2, $DV28 = 1, $DK28 = $DO28, $DG28 < 5, $DG28 = $DT28), OFFSET($DX28, 0, Monopoly_Edition), \"\")","v":""},{"$f":"IF(AND($CY28 = 2, $DG28 > 0, $DG28 = $DS28), OFFSET($DX28, 0, Monopoly_Edition), \"\")","v":""},{"$f":"IF(AND($CY28 = 3, $DV28 = 1, $DK28 = $DP28, $DG28 < 5, $DG28 = $DT28), OFFSET($DX28, 0, Monopoly_Edition), \"\")","v":""},{"$f":"IF(AND($CY28 = 3, $DG28 > 0, $DG28 = $DS28), OFFSET($DX28, 0, Monopoly_Edition), \"\")","v":""},{"$f":"IF(AND($CY28 = 4, $DV28 = 1, $DK28 = $DQ28, $DG28 < 5, $DG28 = $DT28), OFFSET($DX28, 0, Monopoly_Edition), \"\")","v":""},{"$f":"IF(AND($CY28 = 4, $DG28 > 0, $DG28 = $DS28), OFFSET($DX28, 0, Monopoly_Edition), \"\")","v":""},{"$f":"IF(AND(CY28 = 1, DR28 = 0, OR(DK28 = DN28, Monopoly_P1_Cash > 2000), (CX28*0.55) < (Monopoly_P1_Cash - 50)), CV28, \"\")","v":""},{"$f":"IF(AND(CY28 = 2, DR28 = 0, OR(DK28 = DO28, Monopoly_P2_Cash > 2000), (CX28*0.55) < (Monopoly_P2_Cash - 50)), CV28, \"\")","v":""},{"$f":"IF(AND(CY28 = 3, DR28 = 0, OR(DK28 = DP28, Monopoly_P3_Cash > 2000), (CX28*0.55) < (Monopoly_P3_Cash - 50)), CV28, \"\")","v":""},{"$f":"IF(AND(CY28 = 4, DR28 = 0, OR(DK28 = DQ28, Monopoly_P4_Cash > 2000), (CX28*0.55) < (Monopoly_P4_Cash - 50)), CV28, \"\")","v":""},200.00024999999999,"N","N","N","N","N",null,null,null,null,{"$f":"IF(IF(Monopoly_Active_Player = 1, EZ28 > 0, IF(Monopoly_Active_Player = 2, FA28 > 0, IF(Monopoly_Active_Player = 3, FB28 > 0, IF(Monopoly_Active_Player = 4, FC28 > 0)))), INDEX(Monopoly_Property_Full_Names, MATCH(IF(Monopoly_Active_Player = 1, EZ28, IF(Monopoly_Active_Player = 2, FA28, IF(Monopoly_Active_Player = 3, FB28, IF(Monopoly_Active_Player = 4, FC28)))), Monopoly_Property_Table[51 - Dummy Value], 0)), \"\")","v":""},""]
[null,{"$f":"IF($CY42 = 1, OFFSET($DX42, 0, Monopoly_Edition), \"\")","v":""},null,null,null,null,null,null,null,null,{"$f":"IF($CY42 = 2, OFFSET($DX42, 0, Monopoly_Edition), \"\")","v":""},null,null,null,null,null,null,null,null,null,null,null,null,null,null,null,null,null,null,null,null,null,null,null,null,null,null,null,null,null,null,null,null,null,null,null,null,null,null,null,null,null,null,null,null,null,null,{"$f":"IF($CY42 = 3, OFFSET($DX42, 0, Monopoly_Edition), \"\")","v":""},null,null,null,null,null,null,null,null,{"$f":"IF($CY42 = 4, OFFSET($DX42, 0, Monopoly_Edition), \"\")","v":""},null,null,null,null,null,null,null,null,null,null,null,null,null,{"$f":"IF(OR(Monopoly_P1_Location = \"Space_Electric_Company\", Monopoly_P1_Location = \"Space_Water_Works\"), $CC$23 * $DH$31, \"\")","v":""},{"$f":"IF(OR(Monopoly_P2_Location = \"Space_Electric_Company\", Monopoly_P2_Location = \"Space_Water_Works\"), $CD$23 * $DH$31, \"\")","v":""},{"$f":"IF(OR(Monopoly_P3_Location = \"Space_Electric_Company\", Monopoly_P3_Location = \"Space_Water_Works\"), $CE$23 * $DH$31, \"\")","v":""},{"$f":"IF(OR(Monopoly_P4_Location = \"Space_Electric_Company\", Monopoly_P4_Location = \"Space_Water_Works\"), $CF$23 * $DH$31, \"\")","v":""},null,1,"     Xmas fund matures.\n     Collect $100.",12,9.9824504994790786E-2,100,null,{"$f":"SUM(Monopoly_P3_Mortgage_Table[[#All],[Column4]])","v":0},{"$f":"Monopoly_P3_Disposable + Monopoly_P3_Cash","v":1500},{"$f":"IF(ISERROR(CP30), \"\", CP30)","v":""},null,{"$f":"SUM(Monopoly_P4_Mortgage_Table[[#All],[Column4]])","v":0},{"$f":"Monopoly_P4_Disposable + Monopoly_P4_Cash","v":1500},{"$f":"IF(ISERROR(CT30), \"\", CT30)","v":""},null,"Space_Atlantic_Avenue","Yellow",260,"Yes","Atlantic Avenue",22,110,330,800,975,1150,0,{"$f":"IF(AND(CY30=CY29, CY30=CY32, CY29<>\"Yes\"), \"2\", \"1\")","v":"1"},150,6,3,15,3,{"$f":"COUNTIF($CY$29:$CY$32,\"1\")-(IF($CY$31=1,1))","v":0},{"$f":"COUNTIF($CY$29:$CY$32,\"2\")-(IF($CY$31=2, 1))","v":0},{"$f":"COUNTIF($CY$29:$CY$32,\"3\")-(IF($CY$31=3, 1))","v":0},{"$f":"COUNTIF($CY$29:$CY$32,\"4\")-(IF($CY$31=4, 1))","v":0},1,{"$f":"MAX(DG29,DG30,DG32)","v":0},{"$f":"MIN(DG29,DG30,DG32)","v":0},130,{"$f":"IF(OR(DR29=0, DR30=0, DR32=0), 0, 1)","v":1},{"$f":"CONCATENATE(\"Whole \" &CW29& \" Group\")","v":"Whole Yellow Group"},"Atlantic Avenue","Leicester Square","Beijing","Avenida de los Reyes Católicos","Brigham Young University","Atlantic Avenue","Leicester Square","Beijing","Reyes Católicos","BYU","","","","","","","","","","","","",260.00026000000003,"N","N","N","N","N",{"$f":"MAX(OR($EY$29 = \"A\", $EY$30 = \"A\", $EY$32 = \"A\") * (EU29 <> \"N\") *  (EU3:EU44 <> EY29) * (Monopoly_Property_Availability = 1) * ($CW$3:$CW$44 <> CW29) * (DK3:DK44 <> DN3:DN44) * $ET$3:$ET$44)","v":0},{"$f":"MAX(OR($EY$29 = \"A\", $EY$30 = \"A\", $EY$32 = \"A\") * (EV29 <> \"N\") *  (EV3:EV44 <> EY29) * (Monopoly_Property_Availability = 2) * ($CW$3:$CW$44 <> CW29) * (DK3:DK44 <> DN3:DN44) * $ET$3:$ET$44)","v":0},{"$f":"MAX(OR($EY$29 = \"A\", $EY$30 = \"A\", $EY$32 = \"A\") * (EW29 <> \"N\") *  (EW3:EW44 <> EY29) * (Monopoly_Property_Availability = 3) * ($CW$3:$CW$44 <> CW29) * (DK3:DK44 <> DN3:DN44) * $ET$3:$ET$44)","v":0},{"$f":"MAX(OR($EY$29 = \"A\", $EY$30 = \"A\", $EY$32 = \"A\") * (EX29 <> \"N\") *  (EX3:EX44 <> EY29) * (Monopoly_Property_Availability = 4) * ($CW$3:$CW$44 <> CW29) * (DK3:DK44 <> DN3:DN44) * $ET$3:$ET$44)","v":0},{"$f":"IF(IF(Monopoly_Active_Player = 1, EZ29 > 0, IF(Monopoly_Active_Player = 2, FA29 > 0, IF(Monopoly_Active_Player = 3, FB29 > 0, IF(Monopoly_Active_Player = 4, FC29 > 0)))), INDEX(Monopoly_Property_Full_Names, MATCH(IF(Monopoly_Active_Player = 1, EZ29, IF(Monopoly_Active_Player = 2, FA29, IF(Monopoly_Active_Player = 3, FB29, IF(Monopoly_Active_Player = 4, FC29)))), Monopoly_Property_Table[51 - Dummy Value], 0)), \"\")","v":""},{"$f":"IF(FD29 <> \"\", ROUND(IF(Monopoly_Active_Player = 1, EZ29, IF(Monopoly_Active_Player = 2, FA29, IF(Monopoly_Active_Player = 3, FB29, IF(Monopoly_Active_Player = 4, FC29)))), 0)  - CX29, \"\")","v":""}]
[null,"UTILITIES/RAILROADS",null,null,null,null,null,null,null,null,"UTILITIES/RAILROADS",null,null,null,null,null,null,null,null,null,null,null,null,null,null,null,null,null,null,null,null,null,null,null,null,null,null,null,null,null,null,null,null,null,null,null,null,null,null,null,null,null,null,null,null,null,null,"UTILITIES/RAILROADS",null,null,null,null,null,null,null,null,"UTILITIES/RAILROADS",null,null,null,null,null,null,null,null,null,null,null,null,null,null,null,null,null,null,2,"     Doctors fee.\n     Pay $50.",12,0.55657332824085304,-50,null,{"$f":"SUMIF(Monopoly_P3_Mortgage_Table[[#All],[Column2]], \">1000\", Monopoly_P3_Mortgage_Table[[#All],[Column4]])","v":0},{"$f":"MAX(Monopoly_P3_Mortgage_Table[[#All],[Column2]])","v":0},{"$f":"VLOOKUP(Monopoly_P3_Mortgage_This_Price, Monopoly_P3_Mortgage_Table[[#All],[Column2]:[Column3]], 2,FALSE)","v":{"$error":"#N/A"}},null,{"$f":"SUMIF(Monopoly_P4_Mortgage_Table[[#All],[Column2]], \">1000\", Monopoly_P4_Mortgage_Table[[#All],[Column4]])","v":0},{"$f":"MAX(Monopoly_P4_Mortgage_Table[[#All],[Column2]])","v":0},{"$f":"VLOOKUP(Monopoly_P4_Mortgage_This_Price, Monopoly_P4_Mortgage_Table[[#All],[Column2]:[Column3]], 2,FALSE)","v":{"$error":"#N/A"}},null,"Space_Ventnor_Avenue","Yellow",260,"Yes","Ventnor Avenue",22,110,330,800,975,1150,0,{"$f":"IF(AND(CY32=CY30, CY32=CY29, CY30<>\"Yes\"), \"2\", \"1\")","v":"1"},150,6,3,15,3,{"$f":"COUNTIF($CY$29:$CY$32,\"1\")-(IF($CY$31=1,1))","v":0},{"$f":"COUNTIF($CY$29:$CY$32,\"2\")-(IF($CY$31=2, 1))","v":0},{"$f":"COUNTIF($CY$29:$CY$32,\"3\")-(IF($CY$31=3, 1))","v":0},{"$f":"COUNTIF($CY$29:$CY$32,\"4\")-(IF($CY$31=4, 1))","v":0},1,{"$f":"MAX(DG29,DG30,DG32)","v":0},{"$f":"MIN(DG29,DG30,DG32)","v":0},130,{"$f":"IF(OR(DR30=0, DR32=0, DR29=0), 0, 1)","v":1},{"$f":"CONCATENATE(\"Whole \" &CW30& \" Group\")","v":"Whole Yellow Group"},"Ventnor Avenue","Coventry Street","Hong Kong","Calle Bailén","Church Headquarters","Ventnor Avenue","Coventry Street","Hong Kong","Calle Bailén","Church Headq'rtrs",{"$f":"IF(AND($CY30 = 1, $DV30 = 1, $DK30 = $DN30, $DG30 < 5, $DG30 = $DT30), OFFSET($DX30, 0, Monopoly_Edition), \"\")","v":""},{"$f":"IF(AND($CY30 = 1, $DG30 > 0, $DG30 = $DS30), OFFSET($DX30, 0, Monopoly_Edition), \"\")","v":""},{"$f":"IF(AND($CY30 = 2, $DV30 = 1, $DK30 = $DO30, $DG30 < 5, $DG30 = $DT30), OFFSET($DX30, 0, Monopoly_Edition), \"\")","v":""},{"$f":"IF(AND($CY30 = 2, $DG30 > 0, $DG30 = $DS30), OFFSET($DX30, 0, Monopoly_Edition), \"\")","v":""},{"$f":"IF(AND($CY30 = 3, $DV30 = 1, $DK30 = $DP30, $DG30 < 5, $DG30 = $DT30), OFFSET($DX30, 0, Monopoly_Edition), \"\")","v":""},{"$f":"IF(AND($CY30 = 3, $DG30 > 0, $DG30 = $DS30), OFFSET($DX30, 0, Monopoly_Edition), \"\")","v":""},{"$f":"IF(AND($CY30 = 4, $DV30 = 1, $DK30 = $DQ30, $DG30 < 5, $DG30 = $DT30), OFFSET($DX30, 0, Monopoly_Edition), \"\")","v":""},{"$f":"IF(AND($CY30 = 4, $DG30 > 0, $DG30 = $DS30), OFFSET($DX30, 0, Monopoly_Edition), \"\")","v":""},{"$f":"IF(AND(CY30 = 1, DR30 = 0, OR(DK30 = DN30, Monopoly_P1_Cash > 2000), (CX30*0.55) < (Monopoly_P1_Cash - 50)), CV30, \"\")","v":""},{"$f":"IF(AND(CY30 = 2, DR30 = 0, OR(DK30 = DO30, Monopoly_P2_Cash > 2000), (CX30*0.55) < (Monopoly_P2_Cash - 50)), CV30, \"\")","v":""},{"$f":"IF(AND(CY30 = 3, DR30 = 0, OR(DK30 = DP30, Monopoly_P3_Cash > 2000), (CX30*0.55) < (Monopoly_P3_Cash - 50)), CV30, \"\")","v":""},{"$f":"IF(AND(CY30 = 4, DR30 = 0, OR(DK30 = DQ30, Monopoly_P4_Cash > 2000), (CX30*0.55) < (Monopoly_P4_Cash - 50)), CV30, \"\")","v":""},260.00027,"N","N","N","N","N",{"$f":"MAX(OR($EY$29 = \"A\", $EY$30 = \"A\", $EY$32 = \"A\") * (EU30 <> \"N\") *  (EU3:EU44 <> EY30) * (Monopoly_Property_Availability = 1) * ($CW$3:$CW$44 <> CW30) * (DK3:DK44 <> DN3:DN44) * $ET$3:$ET$44)","v":0},{"$f":"MAX(OR($EY$29 = \"A\", $EY$30 = \"A\", $EY$32 = \"A\") * (EV30 <> \"N\") *  (EV3:EV44 <> EY30) * (Monopoly_Property_Availability = 2) * ($CW$3:$CW$44 <> CW30) * (DK3:DK44 <> DN3:DN44) * $ET$3:$ET$44)","v":0},{"$f":"MAX(OR($EY$29 = \"A\", $EY$30 = \"A\", $EY$32 = \"A\") * (EW30 <> \"N\") *  (EW3:EW44 <> EY30) * (Monopoly_Property_Availability = 3) * ($CW$3:$CW$44 <> CW30) * (DK3:DK44 <> DN3:DN44) * $ET$3:$ET$44)","v":0},{"$f":"MAX(OR($EY$29 = \"A\", $EY$30 = \"A\", $EY$32 = \"A\") * (EX30 <> \"N\") *  (EX3:EX44 <> EY30) * (Monopoly_Property_Availability = 4) * ($CW$3:$CW$44 <> CW30) * (DK3:DK44 <> DN3:DN44) * $ET$3:$ET$44)","v":0},{"$f":"IF(IF(Monopoly_Active_Player = 1, EZ30 > 0, IF(Monopoly_Active_Player = 2, FA30 > 0, IF(Monopoly_Active_Player = 3, FB30 > 0, IF(Monopoly_Active_Player = 4, FC30 > 0)))), INDEX(Monopoly_Property_Full_Names, MATCH(IF(Monopoly_Active_Player = 1, EZ30, IF(Monopoly_Active_Player = 2, FA30, IF(Monopoly_Active_Player = 3, FB30, IF(Monopoly_Active_Player = 4, FC30)))), Monopoly_Property_Table[51 - Dummy Value], 0)), \"\")","v":""},{"$f":"IF(FD30 <> \"\", ROUND(IF(Monopoly_Active_Player = 1, EZ30, IF(Monopoly_Active_Player = 2, FA30, IF(Monopoly_Active_Player = 3, FB30, IF(Monopoly_Active_Player = 4, FC30)))), 0)  - CX30, \"\")","v":""}]
[null,{"$f":"IF($CY8 = 1, OFFSET($DX8, 0, Monopoly_Edition), \"\")","v":""},null,null,null,null,null,null,null,null,{"$f":"IF($CY8 = 2, OFFSET($DX8, 0, Monopoly_Edition), \"\")","v":""},null,null,null,null,null,null,null,null,null,null,{"$f":"IF(CY14=\"Yes\",Monopoly_Currency&CX14,IF(DR14=0,\"Mort P\",\"Sold P\")&CY14)","v":"$140"},{"$f":"OFFSET($EC14, 0, Monopoly_Edition)","v":"St Charls Place"},null,null,null,null,null,null,null,null,null,null,null,null,null,null,null,null,null,null,null,null,null,null,null,null,null,null,null,null,{"$f":"OFFSET($EC42, 0, Monopoly_Edition)","v":"Board Walk"},null,{"$f":"IF(CY42=\"Yes\",Monopoly_Currency&CX42,IF(DR42=0,\"Mort P\",\"Sold P\")&CY42)","v":"$400"},null,null,null,{"$f":"IF($CY8 = 3, OFFSET($DX8, 0, Monopoly_Edition), \"\")","v":""},null,null,null,null,null,null,null,null,{"$f":"IF($CY8 = 4, OFFSET($DX8, 0, Monopoly_Edition), \"\")","v":""},null,null,null,null,null,null,null,null,null,null,null,null,"OFFER ACCEPTANCE CALCULATOR",null,null,null,null,null,3,"     Advance to Go.\n     (Collect $200)",6,6.7682732264047307E-2,"Space_GO",null,null,null,null,null,null,null,null,null,"Space_Water_Works",null,150,"Yes","Water Works",{"$f":"Monopoly_Die_One + Monopoly_Die_Two","v":10},null,null,null,null,null,0,{"$f":"IF(AND(CY15=CY31, CY31<>\"Yes\"), \"10\", \"4\")","v":"4"},null,null,null,null,null,null,null,null,null,1,null,null,75,null,null,"Water Works","Water Works","Wind Energy","Compañía de Aguas","Water Irrigation","Water Works","Water Works","Wind Energy","Compañía de Aguas","Water Irrigation",{"$f":"IF(AND($CY31 = 1, $DV31 = 1, $DK31 = $DN31, $DG31 < 5, $DG31 = $DT31), OFFSET($DX31, 0, Monopoly_Edition), \"\")","v":""},{"$f":"IF(AND($CY31 = 1, $DG31 > 0, $DG31 = $DS31), OFFSET($DX31, 0, Monopoly_Edition), \"\")","v":""},{"$f":"IF(AND($CY31 = 2, $DV31 = 1, $DK31 = $DO31, $DG31 < 5, $DG31 = $DT31), OFFSET($DX31, 0, Monopoly_Edition), \"\")","v":""},{"$f":"IF(AND($CY31 = 2, $DG31 > 0, $DG31 = $DS31), OFFSET($DX31, 0, Monopoly_Edition), \"\")","v":""},{"$f":"IF(AND($CY31 = 3, $DV31 = 1, $DK31 = $DP31, $DG31 < 5, $DG31 = $DT31), OFFSET($DX31, 0, Monopoly_Edition), \"\")","v":""},{"$f":"IF(AND($CY31 = 3, $DG31 > 0, $DG31 = $DS31), OFFSET($DX31, 0, Monopoly_Edition), \"\")","v":""},{"$f":"IF(AND($CY31 = 4, $DV31 = 1, $DK31 = $DQ31, $DG31 < 5, $DG31 = $DT31), OFFSET($DX31, 0, Monopoly_Edition), \"\")","v":""},{"$f":"IF(AND($CY31 = 4, $DG31 > 0, $DG31 = $DS31), OFFSET($DX31, 0, Monopoly_Edition), \"\")","v":""},{"$f":"IF(AND(CY31 = 1, DR31 = 0, OR(DK31 = DN31, Monopoly_P1_Cash > 2000), (CX31*0.55) < (Monopoly_P1_Cash - 50)), CV31, \"\")","v":""},{"$f":"IF(AND(CY31 = 2, DR31 = 0, OR(DK31 = DO31, Monopoly_P2_Cash > 2000), (CX31*0.55) < (Monopoly_P2_Cash - 50)), CV31, \"\")","v":""},{"$f":"IF(AND(CY31 = 3, DR31 = 0, OR(DK31 = DP31, Monopoly_P3_Cash > 2000), (CX31*0.55) < (Monopoly_P3_Cash - 50)), CV31, \"\")","v":""},{"$f":"IF(AND(CY31 = 4, DR31 = 0, OR(DK31 = DQ31, Monopoly_P4_Cash > 2000), (CX31*0.55) < (Monopoly_P4_Cash - 50)), CV31, \"\")","v":""},150.00028,"N","N","N","N","N",null,null,null,null,{"$f":"IF(IF(Monopoly_Active_Player = 1, EZ31 > 0, IF(Monopoly_Active_Player = 2, FA31 > 0, IF(Monopoly_Active_Player = 3, FB31 > 0, IF(Monopoly_Active_Player = 4, FC31 > 0)))), INDEX(Monopoly_Property_Full_Names, MATCH(IF(Monopoly_Active_Player = 1, EZ31, IF(Monopoly_Active_Player = 2, FA31, IF(Monopoly_Active_Player = 3, FB31, IF(Monopoly_Active_Player = 4, FC31)))), Monopoly_Property_Table[51 - Dummy Value], 0)), \"\")","v":""},""]
[null,{"$f":"IF($CY18 = 1, OFFSET($DX18, 0, Monopoly_Edition), \"\")","v":""},null,null,null,null,null,null,null,null,{"$f":"IF($CY18 = 2, OFFSET($DX18, 0, Monopoly_Edition), \"\")","v":""},null,null,null,null,null,null,null,null,null,null,null,null,null,null,null,null,null,null,null,null,null,null,null,null,null,null,null,null,null,null,null,null,null,null,null,null,null,null,null,null,null,null,null,null,null,null,{"$f":"IF($CY18 = 3, OFFSET($DX18, 0, Monopoly_Edition), \"\")","v":""},null,null,null,null,null,null,null,null,{"$f":"IF($CY18 = 4, OFFSET($DX18, 0, Monopoly_Edition), \"\")","v":""},null,null,null,null,null,null,null,null,null,null,null,null,"Deal Bribe","Match Offered","Match Demanded","Deal Offered","Deal Demanded",null,4,"     Take a Chance.\n     If you refuse, you must pay a fine of $10.\n     Click 'Yes' to take chance.",4,0.56026351493181836,null,null,null,null,null,null,null,null,null,null,"Space_Marvin_Gardens","Yellow",280,"Yes","Marvin Gardens",24,120,360,850,1025,1200,0,{"$f":"IF(AND(CY30=CY32, CY30=CY29, CY32<>\"Yes\"), \"2\", \"1\")","v":"1"},150,6,3,15,3,{"$f":"COUNTIF($CY$29:$CY$32,\"1\")-(IF($CY$31=1,1))","v":0},{"$f":"COUNTIF($CY$29:$CY$32,\"2\")-(IF($CY$31=2, 1))","v":0},{"$f":"COUNTIF($CY$29:$CY$32,\"3\")-(IF($CY$31=3, 1))","v":0},{"$f":"COUNTIF($CY$29:$CY$32,\"4\")-(IF($CY$31=4, 1))","v":0},1,{"$f":"MAX(DG30,DG29,DG32)","v":0},{"$f":"MIN(DG29,DG30,DG32)","v":0},140,{"$f":"IF(OR(DR32=0, DR30=0, DR29=0), 0, 1)","v":1},{"$f":"CONCATENATE(\"Whole \" &CW32& \" Group\")","v":"Whole Yellow Group"},"Marvin Gardens","Piccadilly","Jerusalem","Plaza de España","Conference Center","Marvin Gardens","Picadilly","Jerusalem","Plaza de España","Conf'rence Center","","","","","","","","","","","","",280.00029000000001,"N","N","N","N","N",{"$f":"MAX(OR($EY$29 = \"A\", $EY$30 = \"A\", $EY$32 = \"A\") * (EU32 <> \"N\") *  (EU3:EU44 <> EY32) * (Monopoly_Property_Availability = 1) * ($CW$3:$CW$44 <> CW32) * (DK3:DK44 <> DN3:DN44) * $ET$3:$ET$44)","v":0},{"$f":"MAX(OR($EY$29 = \"A\", $EY$30 = \"A\", $EY$32 = \"A\") * (EV32 <> \"N\") *  (EV3:EV44 <> EY32) * (Monopoly_Property_Availability = 2) * ($CW$3:$CW$44 <> CW32) * (DK3:DK44 <> DN3:DN44) * $ET$3:$ET$44)","v":0},{"$f":"MAX(OR($EY$29 = \"A\", $EY$30 = \"A\", $EY$32 = \"A\") * (EW32 <> \"N\") *  (EW3:EW44 <> EY32) * (Monopoly_Property_Availability = 3) * ($CW$3:$CW$44 <> CW32) * (DK3:DK44 <> DN3:DN44) * $ET$3:$ET$44)","v":0},{"$f":"MAX(OR($EY$29 = \"A\", $EY$30 = \"A\", $EY$32 = \"A\") * (EX32 <> \"N\") *  (EX3:EX44 <> EY32) * (Monopoly_Property_Availability = 4) * ($CW$3:$CW$44 <> CW32) * (DK3:DK44 <> DN3:DN44) * $ET$3:$ET$44)","v":0},{"$f":"IF(IF(Monopoly_Active_Player = 1, EZ32 > 0, IF(Monopoly_Active_Player = 2, FA32 > 0, IF(Monopoly_Active_Player = 3, FB32 > 0, IF(Monopoly_Active_Player = 4, FC32 > 0)))), INDEX(Monopoly_Property_Full_Names, MATCH(IF(Monopoly_Active_Player = 1, EZ32, IF(Monopoly_Active_Player = 2, FA32, IF(Monopoly_Active_Player = 3, FB32, IF(Monopoly_Active_Player = 4, FC32)))), Monopoly_Property_Table[51 - Dummy Value], 0)), \"\")","v":""},{"$f":"IF(FD32 <> \"\", ROUND(IF(Monopoly_Active_Player = 1, EZ32, IF(Monopoly_Active_Player = 2, FA32, IF(Monopoly_Active_Player = 3, FB32, IF(Monopoly_Active_Player = 4, FC32)))), 0)  - CX32, \"\")","v":""}]
[null,{"$f":"IF($CY28 = 1, OFFSET($DX28, 0, Monopoly_Edition), \"\")","v":""},null,null,null,null,null,null,null,null,{"$f":"IF($CY28 = 2, OFFSET($DX28, 0, Monopoly_Edition), \"\")","v":""},null,null,null,null,null,null,null,null,null,null,null,null,null,null,null,null,null,null,null,null,null,null,null,null,null,null,null,null,null,null,null,null,null,null,null,null,null,null,null,null,null,null,null,null,null,null,{"$f":"IF($CY28 = 3, OFFSET($DX28, 0, Monopoly_Edition), \"\")","v":""},null,null,null,null,null,null,null,null,{"$f":"IF($CY28 = 4, OFFSET($DX28, 0, Monopoly_Edition), \"\")","v":""},null,null,null,null,null,null,null,null,null,null,null,null,260,{"$f":"IFERROR(INDEX(Monopoly_P2_Wants, MATCH(CE33, Monopoly_Property_Full_Names, 0)), \"\")","v":"N"},{"$f":"IFERROR(INDEX(Monopoly_P3_Wants, MATCH(CF33, Monopoly_Property_Full_Names, 0)), \"\")","v":"N"},"Space_Pennsylvania_Avenue","Space_Baltic_Avenue",null,5,"     Pay hospital $100.",12,0.23661723152611991,-100,null,null,null,null,null,null,null,null,null,"Space_Go_to_Jail",null,null,"NA","Go To Jail",null,null,null,null,null,null,0,null,null,null,null,null,null,null,null,null,null,1,null,null,0,null,null,"Go To Jail","Go To Jail","Go To Jail","Vayase a la Carcel","Go to Carthage Jail","Go To Jail","Go To Jail","Go To Jail","Vayase a Carcel","Go to Church",{"$f":"IF(AND($CY33 = 1, $DV33 = 1, $DK33 = $DN33, $DG33 < 5, $DG33 = $DT33), OFFSET($DX33, 0, Monopoly_Edition), \"\")","v":""},{"$f":"IF(AND($CY33 = 1, $DG33 > 0, $DG33 = $DS33), OFFSET($DX33, 0, Monopoly_Edition), \"\")","v":""},{"$f":"IF(AND($CY33 = 2, $DV33 = 1, $DK33 = $DO33, $DG33 < 5, $DG33 = $DT33), OFFSET($DX33, 0, Monopoly_Edition), \"\")","v":""},{"$f":"IF(AND($CY33 = 2, $DG33 > 0, $DG33 = $DS33), OFFSET($DX33, 0, Monopoly_Edition), \"\")","v":""},{"$f":"IF(AND($CY33 = 3, $DV33 = 1, $DK33 = $DP33, $DG33 < 5, $DG33 = $DT33), OFFSET($DX33, 0, Monopoly_Edition), \"\")","v":""},{"$f":"IF(AND($CY33 = 3, $DG33 > 0, $DG33 = $DS33), OFFSET($DX33, 0, Monopoly_Edition), \"\")","v":""},{"$f":"IF(AND($CY33 = 4, $DV33 = 1, $DK33 = $DQ33, $DG33 < 5, $DG33 = $DT33), OFFSET($DX33, 0, Monopoly_Edition), \"\")","v":""},{"$f":"IF(AND($CY33 = 4, $DG33 > 0, $DG33 = $DS33), OFFSET($DX33, 0, Monopoly_Edition), \"\")","v":""},{"$f":"IF(AND(CY33 = 1, DR33 = 0, OR(DK33 = DN33, Monopoly_P1_Cash > 2000), (CX33*0.55) < (Monopoly_P1_Cash - 50)), CV33, \"\")","v":""},{"$f":"IF(AND(CY33 = 2, DR33 = 0, OR(DK33 = DO33, Monopoly_P2_Cash > 2000), (CX33*0.55) < (Monopoly_P2_Cash - 50)), CV33, \"\")","v":""},{"$f":"IF(AND(CY33 = 3, DR33 = 0, OR(DK33 = DP33, Monopoly_P3_Cash > 2000), (CX33*0.55) < (Monopoly_P3_Cash - 50)), CV33, \"\")","v":""},{"$f":"IF(AND(CY33 = 4, DR33 = 0, OR(DK33 = DQ33, Monopoly_P4_Cash > 2000), (CX33*0.55) < (Monopoly_P4_Cash - 50)), CV33, \"\")","v":""},null,null,null,null,null,null,null,null,null,null,null,""]
[null,{"$f":"IF($CY38 = 1, OFFSET($DX38, 0, Monopoly_Edition), \"\")","v":""},null,null,null,null,null,null,null,null,{"$f":"IF($CY38 = 2, OFFSET($DX38, 0, Monopoly_Edition), \"\")","v":""},null,null,null,null,null,null,null,null,{"$f":"IF(Monopoly_Edition = 3, \"Solo\", \"Just\")","v":"Just"},null,{"$f":"OFFSET($EC44, 0, Monopoly_Edition)","v":"JAIL"},null,null,{"$f":"OFFSET($EC12, 0, Monopoly_Edition)","v":"C'nn'ticut Avenue"},null,null,{"$f":"OFFSET($EC11, 0, Monopoly_Edition)","v":"Vermont Avenue"},null,null,"?",null,null,{"$f":"OFFSET($EC9, 0, Monopoly_Edition)","v":"Oriental Avenue"},null,null,{"$f":"OFFSET($EC8, 0, Monopoly_Edition)","v":"Reading Railroad"},null,null,{"$f":"OFFSET(EC7, 0, Monopoly_Edition)","v":"Income Tax $200 or 10%"},null,null,{"$f":"OFFSET($EC6, 0, Monopoly_Edition)","v":"Baltic Avenue"},null,null,"CC",null,null,{"$f":"OFFSET($EC4, 0, Monopoly_Edition)","v":"Med'ean Avenue"},null,null,{"$f":"OFFSET($EC3, 0, Monopoly_Edition)","v":"GO"},null,null,null,null,null,{"$f":"IF($CY38 = 3, OFFSET($DX38, 0, Monopoly_Edition), \"\")","v":""},null,null,null,null,null,null,null,null,{"$f":"IF($CY38 = 4, OFFSET($DX38, 0, Monopoly_Edition), \"\")","v":""},null,null,null,null,null,null,null,null,null,null,null,null,null,"","",null,null,null,6,"     You inherit $100.",12,0.28894015081062319,100,null,null,null,null,null,null,null,null,null,"Space_Pacific_Avenue","Green",300,"Yes","Pacific Avenue",26,130,390,900,1100,1275,0,{"$f":"IF(AND(CY35=CY34, CY35=CY37, CY34<>\"Yes\"), \"2\", \"1\")","v":"1"},200,50,3,45,8,{"$f":"COUNTIF($CY$34:$CY$37, \"1\")","v":0},{"$f":"COUNTIF($CY$34:$CY$37, \"2\")","v":0},{"$f":"COUNTIF($CY$34:$CY$37, \"3\")","v":0},{"$f":"COUNTIF($CY$34:$CY$37, \"4\")","v":0},1,{"$f":"MAX(DG34,DG35,DG37)","v":0},{"$f":"MIN(DG34,DG35,DG37)","v":0},150,{"$f":"IF(OR(DR34=0, DR35=0, DR37=0), 0, 1)","v":1},{"$f":"CONCATENATE(\"Whole \" &CW34& \" Group\")","v":"Whole Green Group"},"Pacific Avenue","Regent Street","Paris","Puerta del Sol","Palmyra","Pacific Avenue","Regent Street","Paris","Puerta Sol","Palmyra","","","","","","","","","","","","",{"$f":"CX34+ROW(A31)/100000","v":300.00031000000001},{"$f":"IF(AND(DG34 = 0, OR(CY34 = 2, CY34 = 3, CY34 = 4), DK34 - DN34 = 1), \"A\", IF(AND(DG34 = 0, OR(CY34 = 2, CY34 = 3, CY34 = 4), DN34 = 1, OR(DO34 = 1, DP34 = 1, DQ34 = 1)), \"B\", \"N\"))","v":"N"},{"$f":"IF(AND(DG34 = 0, OR(CY34 = 1, CY34 = 3, CY34 = 4), DK34 - DO34 = 1), \"A\", IF(AND(DG34 = 0, OR(CY34 = 1, CY34 = 3, CY34 = 4), DO34 = 1, OR(DN34 = 1, DP34 = 1, DQ34 = 1)), \"B\", \"N\"))","v":"N"},{"$f":"IF(AND(DG34 = 0, OR(CY34 = 1, CY34 = 2, CY34 = 4), DK34 - DP34 = 1), \"A\", IF(AND(DG34 = 0, OR(CY34 = 1, CY34 = 2, CY34 = 4), DP34 = 1, OR(DN34 = 1, DO34 = 1, DQ34 = 1)), \"B\", \"N\"))","v":"N"},{"$f":"IF(AND(DG34 = 0, OR(CY34 = 1, CY34 = 2, CY34 = 3), DK34 - DQ34 = 1), \"A\", IF(AND(DG34 = 0, OR(CY34 = 1, CY34 = 2, CY34 = 3), DQ34 = 1, OR(DN34 = 1, DO34 = 1, DP34 = 1)), \"B\", \"N\"))","v":"N"},{"$f":"IF(OR(EU34 = \"A\", EV34 = \"A\", EW34 = \"A\", EX34 = \"A\"), \"A\", IF(OR(EU34 = \"B\", EV34 = \"B\", EW34 = \"B\", EX34 = \"B\"), \"B\", \"N\"))","v":"N"},{"$f":"MAX(OR($EY$34 = \"A\", $EY$35 = \"A\", $EY$37 = \"A\") * (EU34 <> \"N\") *  (EU3:EU44 <> EY34) * (Monopoly_Property_Availability = 1) * ($CW$3:$CW$44 <> CW34) * (DK3:DK44 <> DN3:DN44) * $ET$3:$ET$44)","v":0},{"$f":"MAX(OR($EY$34 = \"A\", $EY$35 = \"A\", $EY$37 = \"A\") * (EV34 <> \"N\") *  (EV3:EV44 <> EY34) * (Monopoly_Property_Availability = 2) * ($CW$3:$CW$44 <> CW34) * (DK3:DK44 <> DN3:DN44) * $ET$3:$ET$44)","v":0},{"$f":"MAX(OR($EY$34 = \"A\", $EY$35 = \"A\", $EY$37 = \"A\") * (EW34 <> \"N\") *  (EW3:EW44 <> EY34) * (Monopoly_Property_Availability = 3) * ($CW$3:$CW$44 <> CW34) * (DK3:DK44 <> DN3:DN44) * $ET$3:$ET$44)","v":0},{"$f":"MAX(OR($EY$34 = \"A\", $EY$35 = \"A\", $EY$37 = \"A\") * (EX34 <> \"N\") *  (EX3:EX44 <> EY34) * (Monopoly_Property_Availability = 4) * ($CW$3:$CW$44 <> CW34) * (DK3:DK44 <> DN3:DN44) * $ET$3:$ET$44)","v":0},{"$f":"IF(IF(Monopoly_Active_Player = 1, EZ34 > 0, IF(Monopoly_Active_Player = 2, FA34 > 0, IF(Monopoly_Active_Player = 3, FB34 > 0, IF(Monopoly_Active_Player = 4, FC34 > 0)))), INDEX(Monopoly_Property_Full_Names, MATCH(IF(Monopoly_Active_Player = 1, EZ34, IF(Monopoly_Active_Player = 2, FA34, IF(Monopoly_Active_Player = 3, FB34, IF(Monopoly_Active_Player = 4, FC34)))), Monopoly_Property_Table[51 - Dummy Value], 0)), \"\")","v":""},{"$f":"IF(FD34 <> \"\", ROUND(IF(Monopoly_Active_Player = 1, EZ34, IF(Monopoly_Active_Player = 2, FA34, IF(Monopoly_Active_Player = 3, FB34, IF(Monopoly_Active_Player = 4, FC34)))), 0)  - CX34, \"\")","v":""}]
[null,{"$f":"IF($CY15 = 1, OFFSET($DX15, 0, Monopoly_Edition), \"\")","v":""},null,null,null,null,null,null,null,null,{"$f":"IF($CY15 = 2, OFFSET($DX15, 0, Monopoly_Edition), \"\")","v":""},null,null,null,null,null,null,null,null,null,null,null,null,null,null,null,null,null,null,null,null,null,null,null,null,null,null,null,null,null,null,null,null,null,null,null,null,null,null,null,null,null,null,null,null,null,null,{"$f":"IF($CY15 = 3, OFFSET($DX15, 0, Monopoly_Edition), \"\")","v":""},null,null,null,null,null,null,null,null,{"$f":"IF($CY15 = 4, OFFSET($DX15, 0, Monopoly_Edition), \"\")","v":""},null,null,null,null,null,null,null,null,null,null,null,null,"Offered Property Value",{"$f":"IFERROR(INDEX(Monopoly_P2_Wants, MATCH(CE35, Monopoly_Property_Full_Names, 0)), \"\")","v":""},{"$f":"IFERROR(INDEX(Monopoly_P3_Wants, MATCH(CF35, Monopoly_Property_Full_Names, 0)), \"\")","v":""},null,null,null,7,{"$f":"\"     Go back to \" & OFFSET($DX$4, 0, Monopoly_Editions) & \".\"","v":"     Go back to Mediterranean Avenue."},7,0.2405388867194701,"Space_Mediterranean_Avenue",null,null,null,null,null,null,null,null,null,"Space_North_Carolina_Avenue","Green",300,"Yes","North Carolina Avenue",26,130,390,900,1100,1275,0,{"$f":"IF(AND(CY37=CY35, CY37=CY34, CY35<>\"Yes\"), \"2\", \"1\")","v":"1"},200,50,3,45,8,{"$f":"COUNTIF($CY$34:$CY$37, \"1\")","v":0},{"$f":"COUNTIF($CY$34:$CY$37, \"2\")","v":0},{"$f":"COUNTIF($CY$34:$CY$37, \"3\")","v":0},{"$f":"COUNTIF($CY$34:$CY$37, \"4\")","v":0},1,{"$f":"MAX(DG34,DG35,DG37)","v":0},{"$f":"MIN(DG34,DG35,DG37)","v":0},150,{"$f":"IF(OR(DR35=0, DR37=0, DR34=0), 0, 1)","v":1},{"$f":"CONCATENATE(\"Whole \" &CW35& \" Group\")","v":"Whole Green Group"},"North Carolina Avenue","Oxford Street","Belgrade","Calle Alcalá","Kirtland","N Carl'na Avenue","Oxford Street","Belgrade","Calle Alcalá","Kirtland",{"$f":"IF(AND($CY35 = 1, $DV35 = 1, $DK35 = $DN35, $DG35 < 5, $DG35 = $DT35), OFFSET($DX35, 0, Monopoly_Edition), \"\")","v":""},{"$f":"IF(AND($CY35 = 1, $DG35 > 0, $DG35 = $DS35), OFFSET($DX35, 0, Monopoly_Edition), \"\")","v":""},{"$f":"IF(AND($CY35 = 2, $DV35 = 1, $DK35 = $DO35, $DG35 < 5, $DG35 = $DT35), OFFSET($DX35, 0, Monopoly_Edition), \"\")","v":""},{"$f":"IF(AND($CY35 = 2, $DG35 > 0, $DG35 = $DS35), OFFSET($DX35, 0, Monopoly_Edition), \"\")","v":""},{"$f":"IF(AND($CY35 = 3, $DV35 = 1, $DK35 = $DP35, $DG35 < 5, $DG35 = $DT35), OFFSET($DX35, 0, Monopoly_Edition), \"\")","v":""},{"$f":"IF(AND($CY35 = 3, $DG35 > 0, $DG35 = $DS35), OFFSET($DX35, 0, Monopoly_Edition), \"\")","v":""},{"$f":"IF(AND($CY35 = 4, $DV35 = 1, $DK35 = $DQ35, $DG35 < 5, $DG35 = $DT35), OFFSET($DX35, 0, Monopoly_Edition), \"\")","v":""},{"$f":"IF(AND($CY35 = 4, $DG35 > 0, $DG35 = $DS35), OFFSET($DX35, 0, Monopoly_Edition), \"\")","v":""},{"$f":"IF(AND(CY35 = 1, DR35 = 0, OR(DK35 = DN35, Monopoly_P1_Cash > 2000), (CX35*0.55) < (Monopoly_P1_Cash - 50)), CV35, \"\")","v":""},{"$f":"IF(AND(CY35 = 2, DR35 = 0, OR(DK35 = DO35, Monopoly_P2_Cash > 2000), (CX35*0.55) < (Monopoly_P2_Cash - 50)), CV35, \"\")","v":""},{"$f":"IF(AND(CY35 = 3, DR35 = 0, OR(DK35 = DP35, Monopoly_P3_Cash > 2000), (CX35*0.55) < (Monopoly_P3_Cash - 50)), CV35, \"\")","v":""},{"$f":"IF(AND(CY35 = 4, DR35 = 0, OR(DK35 = DQ35, Monopoly_P4_Cash > 2000), (CX35*0.55) < (Monopoly_P4_Cash - 50)), CV35, \"\")","v":""},{"$f":"CX35+ROW(A32)/100000","v":300.00031999999999},"N","N","N","N","N",{"$f":"MAX(OR($EY$34 = \"A\", $EY$35 = \"A\", $EY$37 = \"A\") * (EU35 <> \"N\") *  (EU3:EU44 <> EY35) * (Monopoly_Property_Availability = 1) * ($CW$3:$CW$44 <> CW35) * (DK3:DK44 <> DN3:DN44) * $ET$3:$ET$44)","v":0},{"$f":"MAX(OR($EY$34 = \"A\", $EY$35 = \"A\", $EY$37 = \"A\") * (EV35 <> \"N\") *  (EV3:EV44 <> EY35) * (Monopoly_Property_Availability = 2) * ($CW$3:$CW$44 <> CW35) * (DK3:DK44 <> DN3:DN44) * $ET$3:$ET$44)","v":0},{"$f":"MAX(OR($EY$34 = \"A\", $EY$35 = \"A\", $EY$37 = \"A\") * (EW35 <> \"N\") *  (EW3:EW44 <> EY35) * (Monopoly_Property_Availability = 3) * ($CW$3:$CW$44 <> CW35) * (DK3:DK44 <> DN3:DN44) * $ET$3:$ET$44)","v":0},{"$f":"MAX(OR($EY$34 = \"A\", $EY$35 = \"A\", $EY$37 = \"A\") * (EX35 <> \"N\") *  (EX3:EX44 <> EY35) * (Monopoly_Property_Availability = 4) * ($CW$3:$CW$44 <> CW35) * (DK3:DK44 <> DN3:DN44) * $ET$3:$ET$44)","v":0},{"$f":"IF(IF(Monopoly_Active_Player = 1, EZ35 > 0, IF(Monopoly_Active_Player = 2, FA35 > 0, IF(Monopoly_Active_Player = 3, FB35 > 0, IF(Monopoly_Active_Player = 4, FC35 > 0)))), INDEX(Monopoly_Property_Full_Names, MATCH(IF(Monopoly_Active_Player = 1, EZ35, IF(Monopoly_Active_Player = 2, FA35, IF(Monopoly_Active_Player = 3, FB35, IF(Monopoly_Active_Player = 4, FC35)))), Monopoly_Property_Table[51 - Dummy Value], 0)), \"\")","v":""},{"$f":"IF(FD35 <> \"\", ROUND(IF(Monopoly_Active_Player = 1, EZ35, IF(Monopoly_Active_Player = 2, FA35, IF(Monopoly_Active_Player = 3, FB35, IF(Monopoly_Active_Player = 4, FC35)))), 0)  - CX35, \"\")","v":""}]
[null,{"$f":"IF($CY31 = 1, OFFSET($DX31, 0, Monopoly_Edition), \"\")","v":""},null,null,null,null,null,null,null,null,{"$f":"IF($CY31 = 2, OFFSET($DX31, 0, Monopoly_Edition), \"\")","v":""},null,null,null,null,null,null,null,null,null,null,null,null,null,{"$f":"IF(CY12=\"Yes\",Monopoly_Currency&CX12,IF(DR12=0,\"Mort P\",\"Sold P\")&CY12)","v":"$120"},null,null,{"$f":"IF(CY11=\"Yes\",Monopoly_Currency&CX11,IF(DR11=0,\"Mort P\",\"Sold P\")&CY11)","v":"$100"},null,null,null,null,null,{"$f":"IF(CY9=\"Yes\",Monopoly_Currency&CX9,IF(DR9=0,\"Mort P\",\"Sold P\")&CY9)","v":"$100"},null,null,{"$f":"IF(CY8=\"Yes\",Monopoly_Currency&CX8,IF(DR8=0,\"Mort P\",\"Sold P\")& CY8)","v":"$200"},null,null,null,null,null,{"$f":"IF(CY6=\"Yes\",Monopoly_Currency & CX6,IF(DR6=0,\"Mort P\",\"Sold P\")&CY6)","v":"$60"},null,null,null,null,null,{"$f":"IF(CY4=\"Yes\",Monopoly_Currency & CX4,IF(DR4=0,\"Mort P\",\"Sold P\")&CY4)","v":"$60"},null,null,null,null,null,null,null,null,{"$f":"IF($CY31 = 3, OFFSET($DX31, 0, Monopoly_Edition), \"\")","v":""},null,null,null,null,null,null,null,null,{"$f":"IF($CY31 = 4, OFFSET($DX31, 0, Monopoly_Edition), \"\")","v":""},null,null,null,null,null,null,null,null,null,null,null,null,{"$f":"SUM(INDEX(Monopoly!$CX$4:$CX$42, MATCH(CE33, Monopoly!$CV$4:$CV$42, 0)), IFERROR(INDEX(Monopoly!$CX$4:$CX$42, MATCH(CE34, Monopoly!$CV$4:$CV$42, 0)), 0), IFERROR(INDEX(Monopoly!$CX$4:$CX$42, MATCH(CE35, Monopoly!$CV$4:$CV$42, 0)), 0), IFERROR(INDEX(Monopoly!$CX$4:$CX$42, MATCH(CE36, Monopoly!$CV$4:$CV$42, 0)), 0), IFERROR(INDEX(Monopoly!$CX$4:$CX$42, MATCH(CE37, Monopoly!$CV$4:$CV$42, 0)), 0), IFERROR(INDEX(Monopoly!$CX$4:$CX$42, MATCH(CE38, Monopoly!$CV$4:$CV$42, 0)), 0), IFERROR(INDEX(Monopoly!$CX$4:$CX$42, MATCH(CE39, Monopoly!$CV$4:$CV$42, 0)), 0), IFERROR(INDEX(Monopoly!$CX$4:$CX$42, MATCH(CE40, Monopoly!$CV$4:$CV$42, 0)), 0), IFERROR(INDEX(Monopoly!$CX$4:$CX$42, MATCH(CE41, Monopoly!$CV$4:$CV$42, 0)), 0), IFERROR(INDEX(Monopoly!$CX$4:$CX$42, MATCH(CE42, Monopoly!$CV$4:$CV$42, 0)), 0), IFERROR(INDEX(Monopoly!$CX$4:$CX$42, MATCH(CE43, Monopoly!$CV$4:$CV$42, 0)), 0), IFERROR(INDEX(Monopoly!$CX$4:$CX$42, MATCH(CE44, Monopoly!$CV$4:$CV$42, 0)), 0), IFERROR(INDEX(Monopoly!$CX$4:$CX$42, MATCH(CE45, Monopoly!$CV$4:$CV$42, 0)), 0), IFERROR(INDEX(Monopoly!$CX$4:$CX$42, MATCH(CE46, Monopoly!$CV$4:$CV$42, 0)), 0), IFERROR(INDEX(Monopoly!$CX$4:$CX$42, MATCH(CE47, Monopoly!$CV$4:$CV$42, 0)), 0))","v":320},{"$f":"IFERROR(INDEX(Monopoly_P2_Wants, MATCH(CE36, Monopoly_Property_Full_Names, 0)), \"\")","v":""},{"$f":"IFERROR(INDEX(Monopoly_P3_Wants, MATCH(CF36, Monopoly_Property_Full_Names, 0)), \"\")","v":""},null,null,null,8,"     Pay school tax of $150.",12,0.99436184462085953,-150,null,null,null,null,null,null,null,null,null,"Space_Comm_Chest_Three",null,null,"NA","Community Chest",null,null,null,null,null,null,0,null,null,null,null,null,null,null,null,null,null,1,null,null,0,null,null,"Community Chest","Community Chest","Community Chest","Caja de Comunidad","Ward Activity","Comm Chest","Comm Chest","Comm Chest","Caja Com'd","Ward Actvity",{"$f":"IF(AND($CY36 = 1, $DV36 = 1, $DK36 = $DN36, $DG36 < 5, $DG36 = $DT36), OFFSET($DX36, 0, Monopoly_Edition), \"\")","v":""},{"$f":"IF(AND($CY36 = 1, $DG36 > 0, $DG36 = $DS36), OFFSET($DX36, 0, Monopoly_Edition), \"\")","v":""},{"$f":"IF(AND($CY36 = 2, $DV36 = 1, $DK36 = $DO36, $DG36 < 5, $DG36 = $DT36), OFFSET($DX36, 0, Monopoly_Edition), \"\")","v":""},{"$f":"IF(AND($CY36 = 2, $DG36 > 0, $DG36 = $DS36), OFFSET($DX36, 0, Monopoly_Edition), \"\")","v":""},{"$f":"IF(AND($CY36 = 3, $DV36 = 1, $DK36 = $DP36, $DG36 < 5, $DG36 = $DT36), OFFSET($DX36, 0, Monopoly_Edition), \"\")","v":""},{"$f":"IF(AND($CY36 = 3, $DG36 > 0, $DG36 = $DS36), OFFSET($DX36, 0, Monopoly_Edition), \"\")","v":""},{"$f":"IF(AND($CY36 = 4, $DV36 = 1, $DK36 = $DQ36, $DG36 < 5, $DG36 = $DT36), OFFSET($DX36, 0, Monopoly_Edition), \"\")","v":""},{"$f":"IF(AND($CY36 = 4, $DG36 > 0, $DG36 = $DS36), OFFSET($DX36, 0, Monopoly_Edition), \"\")","v":""},{"$f":"IF(AND(CY36 = 1, DR36 = 0, OR(DK36 = DN36, Monopoly_P1_Cash > 2000), (CX36*0.55) < (Monopoly_P1_Cash - 50)), CV36, \"\")","v":""},{"$f":"IF(AND(CY36 = 2, DR36 = 0, OR(DK36 = DO36, Monopoly_P2_Cash > 2000), (CX36*0.55) < (Monopoly_P2_Cash - 50)), CV36, \"\")","v":""},{"$f":"IF(AND(CY36 = 3, DR36 = 0, OR(DK36 = DP36, Monopoly_P3_Cash > 2000), (CX36*0.55) < (Monopoly_P3_Cash - 50)), CV36, \"\")","v":""},{"$f":"IF(AND(CY36 = 4, DR36 = 0, OR(DK36 = DQ36, Monopoly_P4_Cash > 2000), (CX36*0.55) < (Monopoly_P4_Cash - 50)), CV36, \"\")","v":""},null,null,null,null,null,null,null,null,null,null,null,""]
[null,{"$f":"Monopoly_Currency & Monopoly_P1_Cash","v":"$1500"},null,null,null,null,null,null,null,null,{"$f":"Monopoly_Currency & Monopoly_P2_Cash","v":"$1500"},null,null,null,null,null,null,null,null,null,null,{"$f":"IF(Monopoly_Edition = 3, \"Visitas\", \"Visiting\")","v":"Visiting"},null,null,null,null,null,null,null,null,{"$f":"OFFSET($EC10, 0, Monopoly_Edition)","v":"Chance"},null,null,null,null,null,null,null,null,null,null,null,null,null,null,{"$f":"OFFSET($EC5, 0, Monopoly_Edition)","v":"Comm Chest"},null,null,null,null,null,null,null,null,null,null,null,{"$f":"Monopoly_Currency & Monopoly_P3_Cash","v":"$1500"},null,null,null,null,null,null,null,null,{"$f":"Monopoly_Currency & Monopoly_P4_Cash","v":"$1500"},null,null,null,null,null,null,null,null,null,null,null,null,null,"","",null,null,null,9,"     Go to Jail.\n     Go directly to Jail.\n     Do not pass GO.\n     Do not collect $200.",5,0.18572855329789717,null,null,null,null,null,null,null,null,null,null,"Space_Pennsylvania_Avenue","Green",320,"Yes","Pennsylvania Avenue",28,150,450,1000,1200,1400,0,{"$f":"IF(AND(CY35=CY37, CY35=CY34, CY37<>\"Yes\"), \"2\", \"1\")","v":"1"},200,50,3,45,8,{"$f":"COUNTIF($CY$34:$CY$37, \"1\")","v":0},{"$f":"COUNTIF($CY$34:$CY$37, \"2\")","v":0},{"$f":"COUNTIF($CY$34:$CY$37, \"3\")","v":0},{"$f":"COUNTIF($CY$34:$CY$37, \"4\")","v":0},1,{"$f":"MAX(DG35,DG34,DG37)","v":0},{"$f":"MIN(DG34,DG35,DG37)","v":0},160,{"$f":"IF(OR(DR37=0, DR35=0, DR34=0), 0, 1)","v":1},{"$f":"CONCATENATE(\"Whole \" &CW37& \" Group\")","v":"Whole Green Group"},"Pennsylvania Avenue","Bond Street","Cape Town","Gran Vía","Nauvoo","Penn'ia Avenue","Bond Street","Cape Town","Gran Vía","Nauvoo","","","","","","","","","","","","",{"$f":"CX37+ROW(A34)/100000","v":320.00033999999999},{"$f":"IF(AND(DG37 = 0, OR(CY37 = 2, CY37 = 3, CY37 = 4), DK37 - DN37 = 1), \"A\", IF(AND(DG37 = 0, OR(CY37 = 2, CY37 = 3, CY37 = 4), DN37 = 1, OR(DO37 = 1, DP37 = 1, DQ37 = 1)), \"B\", \"N\"))","v":"N"},{"$f":"IF(AND(DG37 = 0, OR(CY37 = 1, CY37 = 3, CY37 = 4), DK37 - DO37 = 1), \"A\", IF(AND(DG37 = 0, OR(CY37 = 1, CY37 = 3, CY37 = 4), DO37 = 1, OR(DN37 = 1, DP37 = 1, DQ37 = 1)), \"B\", \"N\"))","v":"N"},{"$f":"IF(AND(DG37 = 0, OR(CY37 = 1, CY37 = 2, CY37 = 4), DK37 - DP37 = 1), \"A\", IF(AND(DG37 = 0, OR(CY37 = 1, CY37 = 2, CY37 = 4), DP37 = 1, OR(DN37 = 1, DO37 = 1, DQ37 = 1)), \"B\", \"N\"))","v":"N"},{"$f":"IF(AND(DG37 = 0, OR(CY37 = 1, CY37 = 2, CY37 = 3), DK37 - DQ37 = 1), \"A\", IF(AND(DG37 = 0, OR(CY37 = 1, CY37 = 2, CY37 = 3), DQ37 = 1, OR(DN37 = 1, DO37 = 1, DP37 = 1)), \"B\", \"N\"))","v":"N"},{"$f":"IF(OR(EU37 = \"A\", EV37 = \"A\", EW37 = \"A\", EX37 = \"A\"), \"A\", IF(OR(EU37 = \"B\", EV37 = \"B\", EW37 = \"B\", EX37 = \"B\"), \"B\", \"N\"))","v":"N"},{"$f":"MAX(OR($EY$34 = \"A\", $EY$35 = \"A\", $EY$37 = \"A\") * (EU37 <> \"N\") *  (EU3:EU44 <> EY37) * (Monopoly_Property_Availability = 1) * ($CW$3:$CW$44 <> CW37) * (DK3:DK44 <> DN3:DN44) * $ET$3:$ET$44)","v":0},{"$f":"MAX(OR($EY$34 = \"A\", $EY$35 = \"A\", $EY$37 = \"A\") * (EV37 <> \"N\") *  (EV3:EV44 <> EY37) * (Monopoly_Property_Availability = 2) * ($CW$3:$CW$44 <> CW37) * (DK3:DK44 <> DN3:DN44) * $ET$3:$ET$44)","v":0},{"$f":"MAX(OR($EY$34 = \"A\", $EY$35 = \"A\", $EY$37 = \"A\") * (EW37 <> \"N\") *  (EW3:EW44 <> EY37) * (Monopoly_Property_Availability = 3) * ($CW$3:$CW$44 <> CW37) * (DK3:DK44 <> DN3:DN44) * $ET$3:$ET$44)","v":0},{"$f":"MAX(OR($EY$34 = \"A\", $EY$35 = \"A\", $EY$37 = \"A\") * (EX37 <> \"N\") *  (EX3:EX44 <> EY37) * (Monopoly_Property_Availability = 4) * ($CW$3:$CW$44 <> CW37) * (DK3:DK44 <> DN3:DN44) * $ET$3:$ET$44)","v":0},{"$f":"IF(IF(Monopoly_Active_Player = 1, EZ37 > 0, IF(Monopoly_Active_Player = 2, FA37 > 0, IF(Monopoly_Active_Player = 3, FB37 > 0, IF(Monopoly_Active_Player = 4, FC37 > 0)))), INDEX(Monopoly_Property_Full_Names, MATCH(IF(Monopoly_Active_Player = 1, EZ37, IF(Monopoly_Active_Player = 2, FA37, IF(Monopoly_Active_Player = 3, FB37, IF(Monopoly_Active_Player = 4, FC37)))), Monopoly_Property_Table[51 - Dummy Value], 0)), \"\")","v":""},{"$f":"IF(FD37 <> \"\", ROUND(IF(Monopoly_Active_Player = 1, EZ37, IF(Monopoly_Active_Player = 2, FA37, IF(Monopoly_Active_Player = 3, FB37, IF(Monopoly_Active_Player = 4, FC37)))), 0)  - CX37, \"\")","v":""}]
[null,null,null,null,null,null,null,null,null,null,null,null,null,null,null,null,null,null,null,null,null,null,null,null,null,null,null,null,null,null,null,null,null,null,null,null,null,null,null,null,null,null,null,null,null,null,null,null,null,null,null,null,null,null,null,null,null,null,null,null,null,null,null,null,null,null,null,null,null,null,null,null,null,null,null,null,null,null,null,"Demanded Property Value",{"$f":"IFERROR(INDEX(Monopoly_P2_Wants, MATCH(CE38, Monopoly_Property_Full_Names, 0)), \"\")","v":""},{"$f":"IFERROR(INDEX(Monopoly_P3_Wants, MATCH(CF38, Monopoly_Property_Full_Names, 0)), \"\")","v":""},null,null,null,10,"     Grand opera opening.\n     Collect $50 from each player for opening night seats.",11,0.59181498944923328,50,null,null,null,null,null,null,null,null,null,"Space_Short_Line_Railroad",null,200,"Yes","Short Line Railroad",25,{"$f":"IF(CY38=\"Yes\", \"\", CY38)","v":""},{"$f":"CY$8","v":"Yes"},{"$f":"CY$18","v":"Yes"},{"$f":"CY$28","v":"Yes"},{"$f":"COUNTIF(DC38:DE38, DB38)+1","v":1},0,{"$f":"2^(DF38-1)","v":1},null,null,null,null,null,null,null,null,null,1,null,null,100,null,null,"Short Line Railroad","Liverpool Street Station","Monopoly Space","Estación del Norte","Covered Wagon","Short Line Railroad","Liverpool St Station","Monop'ly Space","Estación del Norte","Covered Wagon",{"$f":"IF(AND($CY38 = 1, $DV38 = 1, $DK38 = $DN38, $DG38 < 5, $DG38 = $DT38), OFFSET($DX38, 0, Monopoly_Edition), \"\")","v":""},{"$f":"IF(AND($CY38 = 1, $DG38 > 0, $DG38 = $DS38), OFFSET($DX38, 0, Monopoly_Edition), \"\")","v":""},{"$f":"IF(AND($CY38 = 2, $DV38 = 1, $DK38 = $DO38, $DG38 < 5, $DG38 = $DT38), OFFSET($DX38, 0, Monopoly_Edition), \"\")","v":""},{"$f":"IF(AND($CY38 = 2, $DG38 > 0, $DG38 = $DS38), OFFSET($DX38, 0, Monopoly_Edition), \"\")","v":""},{"$f":"IF(AND($CY38 = 3, $DV38 = 1, $DK38 = $DP38, $DG38 < 5, $DG38 = $DT38), OFFSET($DX38, 0, Monopoly_Edition), \"\")","v":""},{"$f":"IF(AND($CY38 = 3, $DG38 > 0, $DG38 = $DS38), OFFSET($DX38, 0, Monopoly_Edition), \"\")","v":""},{"$f":"IF(AND($CY38 = 4, $DV38 = 1, $DK38 = $DQ38, $DG38 < 5, $DG38 = $DT38), OFFSET($DX38, 0, Monopoly_Edition), \"\")","v":""},{"$f":"IF(AND($CY38 = 4, $DG38 > 0, $DG38 = $DS38), OFFSET($DX38, 0, Monopoly_Edition), \"\")","v":""},{"$f":"IF(AND(CY38 = 1, DR38 = 0, OR(DK38 = DN38, Monopoly_P1_Cash > 2000), (CX38*0.55) < (Monopoly_P1_Cash - 50)), CV38, \"\")","v":""},{"$f":"IF(AND(CY38 = 2, DR38 = 0, OR(DK38 = DO38, Monopoly_P2_Cash > 2000), (CX38*0.55) < (Monopoly_P2_Cash - 50)), CV38, \"\")","v":""},{"$f":"IF(AND(CY38 = 3, DR38 = 0, OR(DK38 = DP38, Monopoly_P3_Cash > 2000), (CX38*0.55) < (Monopoly_P3_Cash - 50)), CV38, \"\")","v":""},{"$f":"IF(AND(CY38 = 4, DR38 = 0, OR(DK38 = DQ38, Monopoly_P4_Cash > 2000), (CX38*0.55) < (Monopoly_P4_Cash - 50)), CV38, \"\")","v":""},{"$f":"CX38+ROW(A35)/100000","v":200.00035},"N","N","N","N","N",null,null,null,null,{"$f":"IF(IF(Monopoly_Active_Player = 1, EZ38 > 0, IF(Monopoly_Active_Player = 2, FA38 > 0, IF(Monopoly_Active_Player = 3, FB38 > 0, IF(Monopoly_Active_Player = 4, FC38 > 0)))), INDEX(Monopoly_Property_Full_Names, MATCH(IF(Monopoly_Active_Player = 1, EZ38, IF(Monopoly_Active_Player = 2, FA38, IF(Monopoly_Active_Player = 3, FB38, IF(Monopoly_Active_Player = 4, FC38)))), Monopoly_Property_Table[51 - Dummy Value], 0)), \"\")","v":""},""]
[null,null,null,null,null,null,null,null,null,null,null,null,null,null,null,null,null,null,null,null,null,null,null,null,null,null,null,null,null,null,null,null,null,null,null,null,null,null,null,null,null,null,null,null,null,null,null,null,null,null,null,null,null,null,null,null,null,null,null,null,null,null,null,null,null,null,null,null,null,null,null,null,null,null,null,null,null,null,null,{"$f":"SUM(INDEX(Monopoly!$CX$4:$CX$42, MATCH(CF33, Monopoly!$CV$4:$CV$42, 0)), IFERROR(INDEX(Monopoly!$CX$4:$CX$42, MATCH(CF34, Monopoly!$CV$4:$CV$42, 0)), 0), IFERROR(INDEX(Monopoly!$CX$4:$CX$42, MATCH(CF35, Monopoly!$CV$4:$CV$42, 0)), 0), IFERROR(INDEX(Monopoly!$CX$4:$CX$42, MATCH(CF36, Monopoly!$CV$4:$CV$42, 0)), 0), IFERROR(INDEX(Monopoly!$CX$4:$CX$42, MATCH(CF37, Monopoly!$CV$4:$CV$42, 0)), 0), IFERROR(INDEX(Monopoly!$CX$4:$CX$42, MATCH(CF38, Monopoly!$CV$4:$CV$42, 0)), 0), IFERROR(INDEX(Monopoly!$CX$4:$CX$42, MATCH(CF39, Monopoly!$CV$4:$CV$42, 0)), 0), IFERROR(INDEX(Monopoly!$CX$4:$CX$42, MATCH(CF40, Monopoly!$CV$4:$CV$42, 0)), 0), IFERROR(INDEX(Monopoly!$CX$4:$CX$42, MATCH(CF41, Monopoly!$CV$4:$CV$42, 0)), 0), IFERROR(INDEX(Monopoly!$CX$4:$CX$42, MATCH(CF42, Monopoly!$CV$4:$CV$42, 0)), 0), IFERROR(INDEX(Monopoly!$CX$4:$CX$42, MATCH(CF43, Monopoly!$CV$4:$CV$42, 0)), 0), IFERROR(INDEX(Monopoly!$CX$4:$CX$42, MATCH(CF44, Monopoly!$CV$4:$CV$42, 0)), 0), IFERROR(INDEX(Monopoly!$CX$4:$CX$42, MATCH(CF45, Monopoly!$CV$4:$CV$42, 0)), 0), IFERROR(INDEX(Monopoly!$CX$4:$CX$42, MATCH(CF46, Monopoly!$CV$4:$CV$42, 0)), 0), IFERROR(INDEX(Monopoly!$CX$4:$CX$42, MATCH(CF47, Monopoly!$CV$4:$CV$42, 0)), 0))","v":60},"","",null,null,null,11,"     From sale of stock you get $45.",12,0.95358066955422849,45,null,null,null,null,null,null,null,null,null,"Space_Chance_Three",null,null,"NA","Chance",null,null,null,null,null,null,0,null,null,null,null,null,null,null,null,null,null,1,null,null,0,null,null,"Chance","Chance","Chance","Suerte","Mission","Chance","Chance","Chance","Suerte","Mision","","","","","","","","","","","","",null,null,null,null,null,null,null,null,null,null,null,""]
[null,null,null,null,null,null,null,null,null,null,null,null,null,null,null,null,null,null,null,null,null,null,null,null,null,null,null,null,null,null,null,null,null,null,null,null,null,null,null,null,null,null,null,null,null,null,null,null,null,null,null,null,null,null,null,null,null,null,null,null,null,null,null,null,null,null,null,null,null,null,null,null,null,null,null,null,null,null,null,null,"","",null,null,null,12,"     You have won second prize in a beauty contest.\n     Collect $10.",12,0.49982092632137631,10,null,null,null,null,null,null,null,null,null,"Space_Park_Place","Blue",350,"Yes","Park Place",35,175,500,1100,1300,1500,0,{"$f":"IF(AND(CY42=CY40, CY42<>\"Yes\"), \"2\", \"1\")","v":"1"},200,5,2,45,8,{"$f":"COUNTIF($CY$40:$CY$42, \"1\")","v":0},{"$f":"COUNTIF($CY$40:$CY$42, \"2\")","v":0},{"$f":"COUNTIF($CY$40:$CY$42, \"3\")","v":0},{"$f":"COUNTIF($CY$40:$CY$42, \"4\")","v":0},1,{"$f":"MAX(DG40,DG42)","v":0},{"$f":"MIN(DG40,DG42)","v":0},175,{"$f":"IF(OR(DR40=0, DR42=0), 0, 1)","v":1},{"$f":"CONCATENATE(\"Whole \" &CW40& \" Group\")","v":"Whole Blue Group"},"Park Place","Park Lane","Riga","Paseo de la Castellana","Adam-ondi-Ahman","Park Place","Park Lane","Riga","Paseo Cast'llana","Adam-ondi-Ahman","","","","","","","","","","","","",{"$f":"CX40+ROW(A37)/100000","v":350.00036999999998},"N","N","N","N","N",{"$f":"MAX(OR($EY$40 = \"A\", $EY$42 = \"A\") * (EU40 <> \"N\") *  (EU3:EU44 <> EY40) * (Monopoly_Property_Availability = 1) * ($CW$3:$CW$44 <> CW40) * (DK3:DK44 <> DN3:DN44) * $ET$3:$ET$44)","v":0},{"$f":"MAX(OR($EY$40 = \"A\", $EY$42 = \"A\") * (EV40 <> \"N\") *  (EV3:EV44 <> EY40) * (Monopoly_Property_Availability = 2) * ($CW$3:$CW$44 <> CW40) * (DK3:DK44 <> DN3:DN44) * $ET$3:$ET$44)","v":0},{"$f":"MAX(OR($EY$40 = \"A\", $EY$42 = \"A\") * (EW40 <> \"N\") *  (EW3:EW44 <> EY40) * (Monopoly_Property_Availability = 3) * ($CW$3:$CW$44 <> CW40) * (DK3:DK44 <> DN3:DN44) * $ET$3:$ET$44)","v":0},{"$f":"MAX(OR($EY$40 = \"A\", $EY$42 = \"A\") * (EX40 <> \"N\") *  (EX3:EX44 <> EY40) * (Monopoly_Property_Availability = 4) * ($CW$3:$CW$44 <> CW40) * (DK3:DK44 <> DN3:DN44) * $ET$3:$ET$44)","v":0},{"$f":"IF(IF(Monopoly_Active_Player = 1, EZ40 > 0, IF(Monopoly_Active_Player = 2, FA40 > 0, IF(Monopoly_Active_Player = 3, FB40 > 0, IF(Monopoly_Active_Player = 4, FC40 > 0)))), INDEX(Monopoly_Property_Full_Names, MATCH(IF(Monopoly_Active_Player = 1, EZ40, IF(Monopoly_Active_Player = 2, FA40, IF(Monopoly_Active_Player = 3, FB40, IF(Monopoly_Active_Player = 4, FC40)))), Monopoly_Property_Table[51 - Dummy Value], 0)), \"\")","v":""},{"$f":"IF(FD40 <> \"\", ROUND(IF(Monopoly_Active_Player = 1, EZ40, IF(Monopoly_Active_Player = 2, FA40, IF(Monopoly_Active_Player = 3, FB40, IF(Monopoly_Active_Player = 4, FC40)))), 0)  - CX40, \"\")","v":""}]
[null,null,null,null,null,null,null,null,null,null,null,null,null,null,null,null,null,null,null,null,null,null,null,null,null,null,null,null,null,null,null,null,null,null,null,null,null,null,null,null,null,null,null,null,null,null,null,null,null,null,null,null,null,null,null,null,null,null,null,null,null,null,null,null,null,null,null,null,null,null,null,null,null,null,null,null,null,null,null,"Bribe Calculation",{"$f":"IFERROR(INDEX(Monopoly_P2_Wants, MATCH(CE41, Monopoly_Property_Full_Names, 0)), \"\")","v":""},{"$f":"IFERROR(INDEX(Monopoly_P3_Wants, MATCH(CF41, Monopoly_Property_Full_Names, 0)), \"\")","v":""},null,null,null,13,"     Bank error in your favor.\n     Collect $200.",12,0.9813351899331243,200,null,null,null,null,null,null,null,null,null,"Space_Luxury_Tax",null,null,"NA","Luxury Tax",null,null,null,null,null,null,0,null,null,null,null,null,null,null,null,null,null,1,null,null,0,null,null,"Luxury Tax","Super Tax","Super Tax","Impuesto de Lujo","Fast Offerings","Luxury Tax $75","Super Tax £75","Super Tax","Imp'sto de Lujo","Fast Off'ring",{"$f":"IF(AND($CY41 = 1, $DV41 = 1, $DK41 = $DN41, $DG41 < 5, $DG41 = $DT41), OFFSET($DX41, 0, Monopoly_Edition), \"\")","v":""},{"$f":"IF(AND($CY41 = 1, $DG41 > 0, $DG41 = $DS41), OFFSET($DX41, 0, Monopoly_Edition), \"\")","v":""},{"$f":"IF(AND($CY41 = 2, $DV41 = 1, $DK41 = $DO41, $DG41 < 5, $DG41 = $DT41), OFFSET($DX41, 0, Monopoly_Edition), \"\")","v":""},{"$f":"IF(AND($CY41 = 2, $DG41 > 0, $DG41 = $DS41), OFFSET($DX41, 0, Monopoly_Edition), \"\")","v":""},{"$f":"IF(AND($CY41 = 3, $DV41 = 1, $DK41 = $DP41, $DG41 < 5, $DG41 = $DT41), OFFSET($DX41, 0, Monopoly_Edition), \"\")","v":""},{"$f":"IF(AND($CY41 = 3, $DG41 > 0, $DG41 = $DS41), OFFSET($DX41, 0, Monopoly_Edition), \"\")","v":""},{"$f":"IF(AND($CY41 = 4, $DV41 = 1, $DK41 = $DQ41, $DG41 < 5, $DG41 = $DT41), OFFSET($DX41, 0, Monopoly_Edition), \"\")","v":""},{"$f":"IF(AND($CY41 = 4, $DG41 > 0, $DG41 = $DS41), OFFSET($DX41, 0, Monopoly_Edition), \"\")","v":""},{"$f":"IF(AND(CY41 = 1, DR41 = 0, OR(DK41 = DN41, Monopoly_P1_Cash > 2000), (CX41*0.55) < (Monopoly_P1_Cash - 50)), CV41, \"\")","v":""},{"$f":"IF(AND(CY41 = 2, DR41 = 0, OR(DK41 = DO41, Monopoly_P2_Cash > 2000), (CX41*0.55) < (Monopoly_P2_Cash - 50)), CV41, \"\")","v":""},{"$f":"IF(AND(CY41 = 3, DR41 = 0, OR(DK41 = DP41, Monopoly_P3_Cash > 2000), (CX41*0.55) < (Monopoly_P3_Cash - 50)), CV41, \"\")","v":""},{"$f":"IF(AND(CY41 = 4, DR41 = 0, OR(DK41 = DQ41, Monopoly_P4_Cash > 2000), (CX41*0.55) < (Monopoly_P4_Cash - 50)), CV41, \"\")","v":""},null,null,null,null,null,null,null,null,null,null,null,""]
[null,null,null,null,null,null,null,null,null,null,null,null,null,null,null,null,null,null,null,null,null,null,null,null,null,null,null,null,null,null,null,null,null,null,null,null,null,null,null,null,null,null,null,null,null,null,null,null,null,null,null,null,null,null,null,null,null,null,null,null,null,null,null,null,null,null,null,null,null,null,null,null,null,null,null,null,null,null,null,{"$f":"CB36","v":320},"","",null,null,null,14,"     Life Insurance matures.\n     Collect $100.",12,0.21778761197261476,100,null,null,null,null,null,null,null,null,null,"Space_Board_Walk","Blue",400,"Yes","Board Walk",50,200,600,1400,1700,2000,0,{"$f":"IF(AND(CY40=CY42, CY40<>\"Yes\"), \"2\", \"1\")","v":"1"},200,5,2,45,8,{"$f":"COUNTIF($CY$40:$CY$42, \"1\")","v":0},{"$f":"COUNTIF($CY$40:$CY$42, \"2\")","v":0},{"$f":"COUNTIF($CY$40:$CY$42, \"3\")","v":0},{"$f":"COUNTIF($CY$40:$CY$42, \"4\")","v":0},1,{"$f":"MAX(DG40,DG42)","v":0},{"$f":"MIN(DG40,DG42)","v":0},200,{"$f":"IF(OR(DR42=0, DR40=0), 0, 1)","v":1},{"$f":"CONCATENATE(\"Whole \" &CW42& \" Group\")","v":"Whole Blue Group"},"Board Walk","Mayfair","Montreal","Paseo del Prado","Salt Lake City","Board Walk","Mayfair","Montreal","Paseo del Prado","Salt Lake City","","","","","","","","","","","","",{"$f":"CX42+ROW(A39)/100000","v":400.00038999999998},{"$f":"IF(AND(DG42 = 0, OR(CY42 = 2, CY42 = 3, CY42 = 4), DK42 - DN42 = 1), \"A\", IF(AND(DG42 = 0, OR(CY42 = 2, CY42 = 3, CY42 = 4), DN42 = 1, OR(DO42 = 1, DP42 = 1, DQ42 = 1)), \"B\", \"N\"))","v":"N"},{"$f":"IF(AND(DG42 = 0, OR(CY42 = 1, CY42 = 3, CY42 = 4), DK42 - DO42 = 1), \"A\", IF(AND(DG42 = 0, OR(CY42 = 1, CY42 = 3, CY42 = 4), DO42 = 1, OR(DN42 = 1, DP42 = 1, DQ42 = 1)), \"B\", \"N\"))","v":"N"},{"$f":"IF(AND(DG42 = 0, OR(CY42 = 1, CY42 = 2, CY42 = 4), DK42 - DP42 = 1), \"A\", IF(AND(DG42 = 0, OR(CY42 = 1, CY42 = 2, CY42 = 4), DP42 = 1, OR(DN42 = 1, DO42 = 1, DQ42 = 1)), \"B\", \"N\"))","v":"N"},{"$f":"IF(AND(DG42 = 0, OR(CY42 = 1, CY42 = 2, CY42 = 3), DK42 - DQ42 = 1), \"A\", IF(AND(DG42 = 0, OR(CY42 = 1, CY42 = 2, CY42 = 3), DQ42 = 1, OR(DN42 = 1, DO42 = 1, DP42 = 1)), \"B\", \"N\"))","v":"N"},{"$f":"IF(OR(EU42 = \"A\", EV42 = \"A\", EW42 = \"A\", EX42 = \"A\"), \"A\", IF(OR(EU42 = \"B\", EV42 = \"B\", EW42 = \"B\", EX42 = \"B\"), \"B\", \"N\"))","v":"N"},{"$f":"MAX(OR($EY$40 = \"A\", $EY$42 = \"A\") * (EU42 <> \"N\") *  (EU3:EU44 <> EY42) * (Monopoly_Property_Availability = 1) * ($CW$3:$CW$44 <> CW42) * (DK3:DK44 <> DN3:DN44) * $ET$3:$ET$44)","v":0},{"$f":"MAX(OR($EY$40 = \"A\", $EY$42 = \"A\") * (EV42 <> \"N\") *  (EV3:EV44 <> EY42) * (Monopoly_Property_Availability = 2) * ($CW$3:$CW$44 <> CW42) * (DK3:DK44 <> DN3:DN44) * $ET$3:$ET$44)","v":0},{"$f":"MAX(OR($EY$40 = \"A\", $EY$42 = \"A\") * (EW42 <> \"N\") *  (EW3:EW44 <> EY42) * (Monopoly_Property_Availability = 3) * ($CW$3:$CW$44 <> CW42) * (DK3:DK44 <> DN3:DN44) * $ET$3:$ET$44)","v":0},{"$f":"MAX(OR($EY$40 = \"A\", $EY$42 = \"A\") * (EX42 <> \"N\") *  (EX3:EX44 <> EY42) * (Monopoly_Property_Availability = 4) * ($CW$3:$CW$44 <> CW42) * (DK3:DK44 <> DN3:DN44) * $ET$3:$ET$44)","v":0},{"$f":"IF(IF(Monopoly_Active_Player = 1, EZ42 > 0, IF(Monopoly_Active_Player = 2, FA42 > 0, IF(Monopoly_Active_Player = 3, FB42 > 0, IF(Monopoly_Active_Player = 4, FC42 > 0)))), INDEX(Monopoly_Property_Full_Names, MATCH(IF(Monopoly_Active_Player = 1, EZ42, IF(Monopoly_Active_Player = 2, FA42, IF(Monopoly_Active_Player = 3, FB42, IF(Monopoly_Active_Player = 4, FC42)))), Monopoly_Property_Table[51 - Dummy Value], 0)), \"\")","v":""},{"$f":"IF(FD42 <> \"\", ROUND(IF(Monopoly_Active_Player = 1, EZ42, IF(Monopoly_Active_Player = 2, FA42, IF(Monopoly_Active_Player = 3, FB42, IF(Monopoly_Active_Player = 4, FC42)))), 0)  - CX42, \"\")","v":""}]
[null,null,null,null,null,null,null,null,null,null,null,null,null,null,null,null,null,null,null,null,null,null,null,null,null,null,null,null,null,null,null,null,null,null,null,null,null,null,null,null,null,null,null,null,null,null,null,null,null,null,null,null,null,null,null,null,null,null,null,null,null,null,null,null,null,null,null,null,null,null,null,null,null,null,null,null,null,null,null,{"$f":"CB39","v":60},{"$f":"IFERROR(INDEX(Monopoly_P2_Wants, MATCH(CE43, Monopoly_Property_Full_Names, 0)), \"\")","v":""},{"$f":"IFERROR(INDEX(Monopoly_P3_Wants, MATCH(CF43, Monopoly_Property_Full_Names, 0)), \"\")","v":""},null,null,null,15,"     Receive for services $25.",12,0.34665901847326885,25,null,null,null,null,null,null,null,null,null,"Space_GO",null,null,"NA","GO",null,null,null,null,null,null,0,null,null,null,null,null,null,null,null,null,null,null,null,null,null,null,null,"GO","GO","GO","Salida","GO","GO","GO","GO","Salida","GO",null,null,null,null,null,null,null,null,null,null,null,null,null,null,null,null,null,null,null,null,null,null,null,""]
[null,null,null,null,null,null,null,null,null,null,null,null,null,null,null,null,null,null,null,null,null,null,null,null,null,null,null,null,null,null,null,null,null,null,null,null,null,null,null,null,null,null,null,null,null,null,null,null,null,null,null,null,null,null,null,null,null,null,null,null,null,null,null,null,null,null,null,null,null,null,null,null,null,null,null,null,null,null,null,{"$f":" CB42 - CB43","v":260},"","",null,null,null,16,"     You are assessed for street repairs:\n          $40 per house\n          $115 per hotel",3,0.49688947340263079,null,null,null,null,null,null,null,null,null,null,"Space_Jail",null,null,"NA","Jail",null,null,null,null,null,null,0,null,null,null,null,null,null,null,null,null,null,null,null,null,null,null,null,"Jail","Jail","Jail","La Carcel","Carthage Jail","JAIL","JAIL","JAIL","Carcel","Church",null,null,null,null,null,null,null,null,null,null,null,null,null,null,null,null,null,null,null,null,null,null,null,""]
[null,null,null,null,null,null,null,null,null,null,null,null,null,null,null,null,null,null,null,null,null,null,null,null,null,null,null,null,null,null,null,null,null,null,null,null,null,null,null,null,null,null,null,null,null,null,null,null,null,null,null,null,null,null,null,null,null,null,null,null,null,null,null,null,null,null,null,null,null,null,null,null,null,null,null,null,null,null,null,null,"","",null,null,null,17,"     Income Tax refund.\n     Collect $20.",12,0.45705874122469481,20]
[null,null,null,null,null,null,null,null,null,null,null,null,null,null,null,null,null,null,null,null,null,null,null,null,null,null,null,null,null,null,null,null,null,null,null,null,null,null,null,null,null,null,null,null,null,null,null,null,null,null,null,null,null,null,null,null,null,null,null,null,null,null,null,null,null,null,null,null,null,null,null,null,null,null,null,null,null,null,null,"Cash OK","",""]
[null,null,null,null,null,null,null,null,null,null,null,null,null,null,null,null,null,null,null,null,null,null,null,null,null,null,null,null,null,null,null,null,null,null,null,null,null,null,null,null,null,null,null,null,null,null,null,null,null,null,null,null,null,null,null,null,null,null,null,null,null,null,null,null,null,null,null,null,null,null,null,null,null,null,null,null,null,null,null,{"$f":"AND(CB52 = TRUE, SUM(-Monopoly_Deal_Bribe, CB44) >= 0)","v":true},"","",null,null,null,"Next:",{"$f":"SUBSTITUTE(VLOOKUP($CK$48, Comm_Chest_Pack, 2, FALSE), \"$\", Monopoly_Currency)","v":"     Get out of jail free.\n     This card may be kept until needed or sold."},{"$f":"VLOOKUP($CK$48, Comm_Chest_Pack, 3, FALSE)","v":1},0,{"$f":"VLOOKUP($CK$48, Comm_Chest_Pack, 5, FALSE)","v":""}]
[null,null,null,null,null,null,null,null,null,null,null,null,null,null,null,null,null,null,null,null,null,null,null,null,null,null,null,null,null,null,null,null,null,null,null,null,null,null,null,null,null,null,null,null,null,null,null,null,null,null,null,null,null,null,null,null,null,null,null,null,null,null,null,null,null,null,null,null,null,null,null,null,null,null,null,null,null,null,null,null,null,null,null,null,null,null,{"$f":"SUBSTITUTE(Comm_Chest_Text,\"$\",Monopoly_Currency)","v":"     Get out of jail free.\n     This card may be kept until needed or sold."},null,{"$f":"MOD($CK$47, 18)","v":0}]
[null,null,null,null,null,null,null,null,null,null,null,null,null,null,null,null,null,null,null,null,null,null,null,null,null,null,null,null,null,null,null,null,null,null,null,null,null,null,null,null,null,null,null,null,null,null,null,null,null,null,null,null,null,null,null,null,null,null,null,null,null,null,null,null,null,null,null,null,null,null,null,null,null,null,null,null,null,null,null,"Cash Override","A Properties","B Properties","N Properties","Final Answer"]
[null,null,null,null,null,null,null,null,null,null,null,null,null,null,null,null,null,null,null,null,null,null,null,null,null,null,null,null,null,null,null,null,null,null,null,null,null,null,null,null,null,null,null,null,null,null,null,null,null,null,null,null,null,null,null,null,null,null,null,null,null,null,null,null,null,null,null,null,null,null,null,null,null,null,null,null,null,null,null,{"$f":"IF(CB44 < 0, CB33 <= CB44 * 2, FALSE)","v":false},{"$f":"COUNTIF(Monopoly_Offer_Table[Match Offered], \"A\")","v":0},{"$f":"COUNTIF(Monopoly_Offer_Table[Match Offered], \"B\")","v":0},{"$f":"COUNTIF(Monopoly_Offer_Table[Match Offered], \"N\")","v":1},{"$f":"OR(AND(CB52,CB47),CB50)","v":true}]
[null,null,null,null,null,null,null,null,null,null,null,null,null,null,null,null,null,null,null,null,null,null,null,null,null,null,null,null,null,null,null,null,null,null,null,null,null,null,null,null,null,null,null,null,null,null,null,null,null,null,null,null,null,null,null,null,null,null,null,null,null,null,null,null,null,null,null,null,null,null,null,null,null,null,null,null,null,null,null,"Compares Property",{"$f":"COUNTIF(Monopoly_Offer_Table[Match Demanded], \"A\")","v":0},{"$f":"COUNTIF(Monopoly_Offer_Table[Match Demanded], \"B\")","v":0},{"$f":"COUNTIF(Monopoly_Offer_Table[Match Demanded], \"N\")","v":1}]
[null,null,null,null,null,null,null,null,null,null,null,null,null,null,null,null,null,null,null,null,null,null,null,null,null,null,null,null,null,null,null,null,null,null,null,null,null,null,null,null,null,null,null,null,null,null,null,null,null,null,null,null,null,null,null,null,null,null,null,null,null,null,null,null,null,null,null,null,null,null,null,null,null,null,null,null,null,null,null,{"$f":"IF(OR(AND(CC50 > CC51, CD50 >= CD51 - 1, CE50 >= CE51 - 2), AND(CC50 >= CC51, CD50 >= CD51, CE50 >= CE51), AND(CC50 >= CC51, CD50 >= CE51, CE50 >= CD51), AND(CD50 >= CC51 * 2, CC50 >= CC51 - 1, CE50 >= CE51), AND(CE50 >= CC51 * 4 -CC50 * 4, CC50 >= CC51 - 1, CD50 >= CD51, CE50 >= CE51 - CC51 * 4)), TRUE, FALSE)","v":true}]
[]
[null,null,null,null,null,null,null,null,null,null,null,null,null,null,null,null,null,null,null,null,null,null,null,null,null,null,null,null,null,null,null,null,null,null,null,null,null,null,null,null,null,null,null,null,null,null,null,null,null,null,null,null,null,null,null,null,null,null,null,null,null,null,null,null,null,null,null,null,null,null,null,null,null,null,null,null,null,null,null,"Auto Offer","Offered Property","Demanded Property","Sweetener","Deal On"]
[null,null,null,null,null,null,null,null,null,null,null,null,null,null,null,null,null,null,null,null,null,null,null,null,null,null,null,null,null,null,null,null,null,null,null,null,null,null,null,null,null,null,null,null,null,null,null,null,null,null,null,null,null,null,null,null,null,null,null,null,null,null,null,null,null,null,null,null,null,null,null,null,null,null,null,null,null,null,null,null,{"$f":"IF(Monopoly_Sweetener <> 0, VLOOKUP(Monopoly_Auto_Demand_Property, Monopoly_Property_Table[], 61, FALSE), \"\")","v":""},{"$f":"IF(Monopoly_Sweetener <> 0, INDEX(Monopoly_Property_Full_Names, MATCH(Monopoly_Sweetener, Monopoly_Property_Table[59 - Sweetener], 0)), \"\")","v":""},{"$f":"IF(ISERR(SMALL(Monopoly_Property_Table[59 - Sweetener], CE56)), 0, SMALL(Monopoly_Property_Table[59 - Sweetener], CE56))","v":0},{"$f":"COUNTIF(Monopoly_Property_Table[59 - Sweetener], \"<\" & 0) + COUNTIF(Monopoly_Property_Table[59 - Sweetener], \">\" & 0)","v":0}]
[null,null,null,null,null,null,null,null,null,null,null,null,null,null,null,null,null,null,null,null,null,null,null,null,null,null,null,null,null,null,null,null,null,null,null,null,null,null,null,null,null,null,null,null,null,null,null,null,null,null,null,null,null,null,null,null,null,null,null,null,null,null,null,null,null,null,null,null,null,null,null,null,null,null,null,null,null,null,null,null,null,{"$f":"INDEX(Monopoly_Property_Availability, MATCH(Monopoly_Auto_Demand_Property, Monopoly_Property_Full_Names, 0))","v":{"$error":"#N/A"}},{"$f":"ROUND(RAND() * Monopoly_Deal_On + 0.5, 0)","v":1}]